Organisation Name,Organisation Code,Unique Ref No,Effective Date,Directorate where expenditure incurred,Supplier Name ,Payment Date,Net Amount,Purpose of Spend,"Procurement Classification
(Higher Level)","Procurement Classification 
(Lower Level)",CAPITAL / REVENUE
Walsall Council,http://opendatacommunities.org/id/metropolitan-district-council/walsall ,WC141-1,31.08.2022,CHILDRENS,247 CARS (WILLENHALL) LIMITED,16/08/2022,"2,520.00",6241-Hire of Vehicle with Driver,TRANSPORT,DIRECT TRANSPORT COSTS,REVENUE
Walsall Council,http://opendatacommunities.org/id/metropolitan-district-council/walsall ,WC141-2,31.08.2022,CHILDRENS,247 CARS (WILLENHALL) LIMITED,16/08/2022,"1,365.00",6241-Hire of Vehicle with Driver,TRANSPORT,DIRECT TRANSPORT COSTS,REVENUE
Walsall Council,http://opendatacommunities.org/id/metropolitan-district-council/walsall ,WC141-3,31.08.2022,CHILDRENS,247 CARS (WILLENHALL) LIMITED,16/08/2022,283.88,6241-Hire of Vehicle with Driver,TRANSPORT,DIRECT TRANSPORT COSTS,REVENUE
Walsall Council,http://opendatacommunities.org/id/metropolitan-district-council/walsall ,WC141-4,31.08.2022,CHILDRENS,247 CARS (WILLENHALL) LIMITED,16/08/2022,"1,295.00",6241-Hire of Vehicle with Driver,TRANSPORT,DIRECT TRANSPORT COSTS,REVENUE
Walsall Council,http://opendatacommunities.org/id/metropolitan-district-council/walsall ,WC141-5,31.08.2022,CHILDRENS,247 CARS (WILLENHALL) LIMITED,16/08/2022,"1,295.00",6241-Hire of Vehicle with Driver,TRANSPORT,DIRECT TRANSPORT COSTS,REVENUE
Walsall Council,http://opendatacommunities.org/id/metropolitan-district-council/walsall ,WC141-6,31.08.2022,CHILDRENS,247 CARS (WILLENHALL) LIMITED,16/08/2022,"1,295.00",6241-Hire of Vehicle with Driver,TRANSPORT,DIRECT TRANSPORT COSTS,REVENUE
Walsall Council,http://opendatacommunities.org/id/metropolitan-district-council/walsall ,WC141-7,31.08.2022,CHILDRENS,247 CARS (WILLENHALL) LIMITED,16/08/2022,"1,295.00",6241-Hire of Vehicle with Driver,TRANSPORT,DIRECT TRANSPORT COSTS,REVENUE
Walsall Council,http://opendatacommunities.org/id/metropolitan-district-council/walsall ,WC141-8,31.08.2022,CHILDRENS,247 CARS (WILLENHALL) LIMITED,16/08/2022,"1,035.00",6241-Hire of Vehicle with Driver,TRANSPORT,DIRECT TRANSPORT COSTS,REVENUE
Walsall Council,http://opendatacommunities.org/id/metropolitan-district-council/walsall ,WC141-9,31.08.2022,CHILDRENS,247 CARS (WILLENHALL) LIMITED,16/08/2022,931.00,6241-Hire of Vehicle with Driver,TRANSPORT,DIRECT TRANSPORT COSTS,REVENUE
Walsall Council,http://opendatacommunities.org/id/metropolitan-district-council/walsall ,WC141-10,31.08.2022,CHILDRENS,247 CARS (WILLENHALL) LIMITED,16/08/2022,"1,771.00",6241-Hire of Vehicle with Driver,TRANSPORT,DIRECT TRANSPORT COSTS,REVENUE
Walsall Council,http://opendatacommunities.org/id/metropolitan-district-council/walsall ,WC141-11,31.08.2022,CHILDRENS,247 CARS (WILLENHALL) LIMITED,16/08/2022,"1,734.60",6241-Hire of Vehicle with Driver,TRANSPORT,DIRECT TRANSPORT COSTS,REVENUE
Walsall Council,http://opendatacommunities.org/id/metropolitan-district-council/walsall ,WC141-12,31.08.2022,CHILDRENS,247 CARS (WILLENHALL) LIMITED,16/08/2022,"1,295.00",6241-Hire of Vehicle with Driver,TRANSPORT,DIRECT TRANSPORT COSTS,REVENUE
Walsall Council,http://opendatacommunities.org/id/metropolitan-district-council/walsall ,WC141-13,31.08.2022,CHILDRENS,247 CARS (WILLENHALL) LIMITED,16/08/2022,560.00,6241-Hire of Vehicle with Driver,TRANSPORT,DIRECT TRANSPORT COSTS,REVENUE
Walsall Council,http://opendatacommunities.org/id/metropolitan-district-council/walsall ,WC141-14,31.08.2022,CHILDRENS,247 CARS (WILLENHALL) LIMITED,16/08/2022,730.80,6241-Hire of Vehicle with Driver,TRANSPORT,DIRECT TRANSPORT COSTS,REVENUE
Walsall Council,http://opendatacommunities.org/id/metropolitan-district-council/walsall ,WC141-15,31.08.2022,CHILDRENS,247 CARS (WILLENHALL) LIMITED,16/08/2022,"1,120.00",6241-Hire of Vehicle with Driver,TRANSPORT,DIRECT TRANSPORT COSTS,REVENUE
Walsall Council,http://opendatacommunities.org/id/metropolitan-district-council/walsall ,WC141-16,31.08.2022,CHILDRENS,247 CARS (WILLENHALL) LIMITED,16/08/2022,"1,083.00",6241-Hire of Vehicle with Driver,TRANSPORT,DIRECT TRANSPORT COSTS,REVENUE
Walsall Council,http://opendatacommunities.org/id/metropolitan-district-council/walsall ,WC141-17,31.08.2022,CHILDRENS,247 CARS (WILLENHALL) LIMITED,16/08/2022,750.00,6241-Hire of Vehicle with Driver,TRANSPORT,DIRECT TRANSPORT COSTS,REVENUE
Walsall Council,http://opendatacommunities.org/id/metropolitan-district-council/walsall ,WC141-18,31.08.2022,RESOURCES AND TRANSFORMATION,3 SPIRIT UK TRAINING & CONSULTANCY,01/08/2022,725.00,6625-Consultant Fees,SUPPLIES & SERVICES,SERVICES,REVENUE
Walsall Council,http://opendatacommunities.org/id/metropolitan-district-council/walsall ,WC141-19,31.08.2022,RESOURCES AND TRANSFORMATION,4 SIGHT EYECARE CENTRE 002,09/08/2022,-346.46,6625-Eye Tests,DIRECT EMPLOYEES,EMPLOYEE ALLOWANCES & EXPENSES,REVENUE
Walsall Council,http://opendatacommunities.org/id/metropolitan-district-council/walsall ,WC141-20,31.08.2022,RESOURCES AND TRANSFORMATION,4 SIGHT EYECARE CENTRE 002,09/08/2022,346.46,6625-Eye Tests,DIRECT EMPLOYEES,EMPLOYEE ALLOWANCES & EXPENSES,REVENUE
Walsall Council,http://opendatacommunities.org/id/metropolitan-district-council/walsall ,WC141-21,31.08.2022,RESOURCES AND TRANSFORMATION,4 SIGHT EYECARE CENTRE 002,09/08/2022,750.00,6625-Eye Tests,DIRECT EMPLOYEES,EMPLOYEE ALLOWANCES & EXPENSES,REVENUE
Walsall Council,http://opendatacommunities.org/id/metropolitan-district-council/walsall ,WC141-22,31.08.2022,ADULT SOCIAL CARE,5 CARE SERVICES LTD,01/08/2022,"1,216.60",6541-Domiciliary Care,THIRD PARTY PAYMENTS,PRIVATE CONTRACTOR,REVENUE
Walsall Council,http://opendatacommunities.org/id/metropolitan-district-council/walsall ,WC141-23,31.08.2022,ADULT SOCIAL CARE,5 CARE SERVICES LTD,01/08/2022,568.80,6541-Domiciliary Care,THIRD PARTY PAYMENTS,PRIVATE CONTRACTOR,REVENUE
Walsall Council,http://opendatacommunities.org/id/metropolitan-district-council/walsall ,WC141-24,31.08.2022,ADULT SOCIAL CARE,5 CARE SERVICES LTD,01/08/2022,252.80,6541-Domiciliary Care,THIRD PARTY PAYMENTS,PRIVATE CONTRACTOR,REVENUE
Walsall Council,http://opendatacommunities.org/id/metropolitan-district-council/walsall ,WC141-25,31.08.2022,ADULT SOCIAL CARE,5 CARE SERVICES LTD,01/08/2022,497.70,6541-Domiciliary Care,THIRD PARTY PAYMENTS,PRIVATE CONTRACTOR,REVENUE
Walsall Council,http://opendatacommunities.org/id/metropolitan-district-council/walsall ,WC141-26,31.08.2022,ADULT SOCIAL CARE,5 CARE SERVICES LTD,01/08/2022,316.00,6541-Domiciliary Care,THIRD PARTY PAYMENTS,PRIVATE CONTRACTOR,REVENUE
Walsall Council,http://opendatacommunities.org/id/metropolitan-district-council/walsall ,WC141-27,31.08.2022,ADULT SOCIAL CARE,5 CARE SERVICES LTD,01/08/2022,331.80,6541-Domiciliary Care,THIRD PARTY PAYMENTS,PRIVATE CONTRACTOR,REVENUE
Walsall Council,http://opendatacommunities.org/id/metropolitan-district-council/walsall ,WC141-28,31.08.2022,ADULT SOCIAL CARE,5 CARE SERVICES LTD,01/08/2022,497.70,6541-Domiciliary Care,THIRD PARTY PAYMENTS,PRIVATE CONTRACTOR,REVENUE
Walsall Council,http://opendatacommunities.org/id/metropolitan-district-council/walsall ,WC141-29,31.08.2022,ADULT SOCIAL CARE,5 CARE SERVICES LTD,01/08/2022,442.40,6541-Domiciliary Care,THIRD PARTY PAYMENTS,PRIVATE CONTRACTOR,REVENUE
Walsall Council,http://opendatacommunities.org/id/metropolitan-district-council/walsall ,WC141-30,31.08.2022,ADULT SOCIAL CARE,5 CARE SERVICES LTD,01/08/2022,497.70,6541-Domiciliary Care,THIRD PARTY PAYMENTS,PRIVATE CONTRACTOR,REVENUE
Walsall Council,http://opendatacommunities.org/id/metropolitan-district-council/walsall ,WC141-31,31.08.2022,ADULT SOCIAL CARE,5 CARE SERVICES LTD,01/08/2022,442.40,6541-Domiciliary Care,THIRD PARTY PAYMENTS,PRIVATE CONTRACTOR,REVENUE
Walsall Council,http://opendatacommunities.org/id/metropolitan-district-council/walsall ,WC141-32,31.08.2022,ADULT SOCIAL CARE,5 CARE SERVICES LTD,01/08/2022,948.00,6541-Domiciliary Care,THIRD PARTY PAYMENTS,PRIVATE CONTRACTOR,REVENUE
Walsall Council,http://opendatacommunities.org/id/metropolitan-district-council/walsall ,WC141-33,31.08.2022,ADULT SOCIAL CARE,5 CARE SERVICES LTD,01/08/2022,288.35,6541-Domiciliary Care,THIRD PARTY PAYMENTS,PRIVATE CONTRACTOR,REVENUE
Walsall Council,http://opendatacommunities.org/id/metropolitan-district-council/walsall ,WC141-34,31.08.2022,ADULT SOCIAL CARE,5 CARE SERVICES LTD,01/08/2022,884.80,6541-Domiciliary Care,THIRD PARTY PAYMENTS,PRIVATE CONTRACTOR,REVENUE
Walsall Council,http://opendatacommunities.org/id/metropolitan-district-council/walsall ,WC141-35,31.08.2022,ADULT SOCIAL CARE,5 CARE SERVICES LTD,01/08/2022,718.90,6541-Domiciliary Care,THIRD PARTY PAYMENTS,PRIVATE CONTRACTOR,REVENUE
Walsall Council,http://opendatacommunities.org/id/metropolitan-district-council/walsall ,WC141-36,31.08.2022,ADULT SOCIAL CARE,5 CARE SERVICES LTD,01/08/2022,663.60,6541-Domiciliary Care,THIRD PARTY PAYMENTS,PRIVATE CONTRACTOR,REVENUE
Walsall Council,http://opendatacommunities.org/id/metropolitan-district-council/walsall ,WC141-37,31.08.2022,ADULT SOCIAL CARE,5 CARE SERVICES LTD,01/08/2022,331.80,6541-Domiciliary Care,THIRD PARTY PAYMENTS,PRIVATE CONTRACTOR,REVENUE
Walsall Council,http://opendatacommunities.org/id/metropolitan-district-council/walsall ,WC141-38,31.08.2022,ADULT SOCIAL CARE,5 CARE SERVICES LTD,01/08/2022,645.19,6541-Domiciliary Care,THIRD PARTY PAYMENTS,PRIVATE CONTRACTOR,REVENUE
Walsall Council,http://opendatacommunities.org/id/metropolitan-district-council/walsall ,WC141-39,31.08.2022,ADULT SOCIAL CARE,5 CARE SERVICES LTD,01/08/2022,379.20,6541-Domiciliary Care,THIRD PARTY PAYMENTS,PRIVATE CONTRACTOR,REVENUE
Walsall Council,http://opendatacommunities.org/id/metropolitan-district-council/walsall ,WC141-40,31.08.2022,ADULT SOCIAL CARE,5 CARE SERVICES LTD,01/08/2022,553.00,6541-Domiciliary Care,THIRD PARTY PAYMENTS,PRIVATE CONTRACTOR,REVENUE
Walsall Council,http://opendatacommunities.org/id/metropolitan-district-council/walsall ,WC141-41,31.08.2022,ADULT SOCIAL CARE,5 CARE SERVICES LTD,01/08/2022,476.71,6541-Domiciliary Care,THIRD PARTY PAYMENTS,PRIVATE CONTRACTOR,REVENUE
Walsall Council,http://opendatacommunities.org/id/metropolitan-district-council/walsall ,WC141-42,31.08.2022,ADULT SOCIAL CARE,5 CARE SERVICES LTD,01/08/2022,568.80,6541-Domiciliary Care,THIRD PARTY PAYMENTS,PRIVATE CONTRACTOR,REVENUE
Walsall Council,http://opendatacommunities.org/id/metropolitan-district-council/walsall ,WC141-43,31.08.2022,ADULT SOCIAL CARE,5 CARE SERVICES LTD,01/08/2022,497.70,6541-Domiciliary Care,THIRD PARTY PAYMENTS,PRIVATE CONTRACTOR,REVENUE
Walsall Council,http://opendatacommunities.org/id/metropolitan-district-council/walsall ,WC141-44,31.08.2022,ADULT SOCIAL CARE,5 CARE SERVICES LTD,01/08/2022,884.80,6541-Domiciliary Care,THIRD PARTY PAYMENTS,PRIVATE CONTRACTOR,REVENUE
Walsall Council,http://opendatacommunities.org/id/metropolitan-district-council/walsall ,WC141-45,31.08.2022,ADULT SOCIAL CARE,5 CARE SERVICES LTD,01/08/2022,568.80,6541-Domiciliary Care,THIRD PARTY PAYMENTS,PRIVATE CONTRACTOR,REVENUE
Walsall Council,http://opendatacommunities.org/id/metropolitan-district-council/walsall ,WC141-46,31.08.2022,ADULT SOCIAL CARE,5 CARE SERVICES LTD,01/08/2022,252.80,6541-Domiciliary Care,THIRD PARTY PAYMENTS,PRIVATE CONTRACTOR,REVENUE
Walsall Council,http://opendatacommunities.org/id/metropolitan-district-council/walsall ,WC141-47,31.08.2022,ADULT SOCIAL CARE,5 CARE SERVICES LTD,01/08/2022,663.60,6541-Domiciliary Care,THIRD PARTY PAYMENTS,PRIVATE CONTRACTOR,REVENUE
Walsall Council,http://opendatacommunities.org/id/metropolitan-district-council/walsall ,WC141-48,31.08.2022,ADULT SOCIAL CARE,5 CARE SERVICES LTD,01/08/2022,331.80,6541-Domiciliary Care,THIRD PARTY PAYMENTS,PRIVATE CONTRACTOR,REVENUE
Walsall Council,http://opendatacommunities.org/id/metropolitan-district-council/walsall ,WC141-49,31.08.2022,ADULT SOCIAL CARE,5 CARE SERVICES LTD,01/08/2022,645.19,6541-Domiciliary Care,THIRD PARTY PAYMENTS,PRIVATE CONTRACTOR,REVENUE
Walsall Council,http://opendatacommunities.org/id/metropolitan-district-council/walsall ,WC141-50,31.08.2022,ADULT SOCIAL CARE,5 CARE SERVICES LTD,01/08/2022,497.70,6541-Domiciliary Care,THIRD PARTY PAYMENTS,PRIVATE CONTRACTOR,REVENUE
Walsall Council,http://opendatacommunities.org/id/metropolitan-district-council/walsall ,WC141-51,31.08.2022,ADULT SOCIAL CARE,5 CARE SERVICES LTD,01/08/2022,395.00,6541-Domiciliary Care,THIRD PARTY PAYMENTS,PRIVATE CONTRACTOR,REVENUE
Walsall Council,http://opendatacommunities.org/id/metropolitan-district-council/walsall ,WC141-52,31.08.2022,ADULT SOCIAL CARE,5 CARE SERVICES LTD,01/08/2022,316.00,6541-Domiciliary Care,THIRD PARTY PAYMENTS,PRIVATE CONTRACTOR,REVENUE
Walsall Council,http://opendatacommunities.org/id/metropolitan-district-council/walsall ,WC141-53,31.08.2022,ADULT SOCIAL CARE,5 CARE SERVICES LTD,01/08/2022,331.80,6541-Domiciliary Care,THIRD PARTY PAYMENTS,PRIVATE CONTRACTOR,REVENUE
Walsall Council,http://opendatacommunities.org/id/metropolitan-district-council/walsall ,WC141-54,31.08.2022,ADULT SOCIAL CARE,5 CARE SERVICES LTD,01/08/2022,497.70,6541-Domiciliary Care,THIRD PARTY PAYMENTS,PRIVATE CONTRACTOR,REVENUE
Walsall Council,http://opendatacommunities.org/id/metropolitan-district-council/walsall ,WC141-55,31.08.2022,ADULT SOCIAL CARE,5 CARE SERVICES LTD,01/08/2022,442.40,6541-Domiciliary Care,THIRD PARTY PAYMENTS,PRIVATE CONTRACTOR,REVENUE
Walsall Council,http://opendatacommunities.org/id/metropolitan-district-council/walsall ,WC141-56,31.08.2022,ADULT SOCIAL CARE,5 CARE SERVICES LTD,01/08/2022,442.40,6541-Domiciliary Care,THIRD PARTY PAYMENTS,PRIVATE CONTRACTOR,REVENUE
Walsall Council,http://opendatacommunities.org/id/metropolitan-district-council/walsall ,WC141-57,31.08.2022,ADULT SOCIAL CARE,5 CARE SERVICES LTD,01/08/2022,718.90,6541-Domiciliary Care,THIRD PARTY PAYMENTS,PRIVATE CONTRACTOR,REVENUE
Walsall Council,http://opendatacommunities.org/id/metropolitan-district-council/walsall ,WC141-58,31.08.2022,ADULT SOCIAL CARE,5 CARE SERVICES LTD,01/08/2022,474.00,6541-Domiciliary Care,THIRD PARTY PAYMENTS,PRIVATE CONTRACTOR,REVENUE
Walsall Council,http://opendatacommunities.org/id/metropolitan-district-council/walsall ,WC141-59,31.08.2022,ADULT SOCIAL CARE,5 CARE SERVICES LTD,01/08/2022,288.35,6541-Domiciliary Care,THIRD PARTY PAYMENTS,PRIVATE CONTRACTOR,REVENUE
Walsall Council,http://opendatacommunities.org/id/metropolitan-district-council/walsall ,WC141-60,31.08.2022,ADULT SOCIAL CARE,5 CARE SERVICES LTD,01/08/2022,553.00,6541-Domiciliary Care,THIRD PARTY PAYMENTS,PRIVATE CONTRACTOR,REVENUE
Walsall Council,http://opendatacommunities.org/id/metropolitan-district-council/walsall ,WC141-61,31.08.2022,ADULT SOCIAL CARE,5 CARE SERVICES LTD,16/08/2022,497.70,6541-Domiciliary Care,THIRD PARTY PAYMENTS,PRIVATE CONTRACTOR,REVENUE
Walsall Council,http://opendatacommunities.org/id/metropolitan-district-council/walsall ,WC141-62,31.08.2022,ADULT SOCIAL CARE,5 CARE SERVICES LTD,16/08/2022,884.80,6541-Domiciliary Care,THIRD PARTY PAYMENTS,PRIVATE CONTRACTOR,REVENUE
Walsall Council,http://opendatacommunities.org/id/metropolitan-district-council/walsall ,WC141-63,31.08.2022,ADULT SOCIAL CARE,5 CARE SERVICES LTD,16/08/2022,442.40,6541-Domiciliary Care,THIRD PARTY PAYMENTS,PRIVATE CONTRACTOR,REVENUE
Walsall Council,http://opendatacommunities.org/id/metropolitan-district-council/walsall ,WC141-64,31.08.2022,ADULT SOCIAL CARE,5 CARE SERVICES LTD,16/08/2022,252.80,6541-Domiciliary Care,THIRD PARTY PAYMENTS,PRIVATE CONTRACTOR,REVENUE
Walsall Council,http://opendatacommunities.org/id/metropolitan-district-council/walsall ,WC141-65,31.08.2022,ADULT SOCIAL CARE,5 CARE SERVICES LTD,16/08/2022,-521.40,6541-Domiciliary Care,THIRD PARTY PAYMENTS,PRIVATE CONTRACTOR,REVENUE
Walsall Council,http://opendatacommunities.org/id/metropolitan-district-council/walsall ,WC141-66,31.08.2022,ADULT SOCIAL CARE,5 CARE SERVICES LTD,16/08/2022,568.80,6541-Domiciliary Care,THIRD PARTY PAYMENTS,PRIVATE CONTRACTOR,REVENUE
Walsall Council,http://opendatacommunities.org/id/metropolitan-district-council/walsall ,WC141-67,31.08.2022,ADULT SOCIAL CARE,5 CARE SERVICES LTD,16/08/2022,718.90,6541-Domiciliary Care,THIRD PARTY PAYMENTS,PRIVATE CONTRACTOR,REVENUE
Walsall Council,http://opendatacommunities.org/id/metropolitan-district-council/walsall ,WC141-68,31.08.2022,ADULT SOCIAL CARE,5 CARE SERVICES LTD,16/08/2022,663.60,6541-Domiciliary Care,THIRD PARTY PAYMENTS,PRIVATE CONTRACTOR,REVENUE
Walsall Council,http://opendatacommunities.org/id/metropolitan-district-council/walsall ,WC141-69,31.08.2022,ADULT SOCIAL CARE,5 CARE SERVICES LTD,16/08/2022,331.80,6541-Domiciliary Care,THIRD PARTY PAYMENTS,PRIVATE CONTRACTOR,REVENUE
Walsall Council,http://opendatacommunities.org/id/metropolitan-district-council/walsall ,WC141-70,31.08.2022,ADULT SOCIAL CARE,5 CARE SERVICES LTD,16/08/2022,645.19,6541-Domiciliary Care,THIRD PARTY PAYMENTS,PRIVATE CONTRACTOR,REVENUE
Walsall Council,http://opendatacommunities.org/id/metropolitan-district-council/walsall ,WC141-71,31.08.2022,ADULT SOCIAL CARE,5 CARE SERVICES LTD,16/08/2022,497.70,6541-Domiciliary Care,THIRD PARTY PAYMENTS,PRIVATE CONTRACTOR,REVENUE
Walsall Council,http://opendatacommunities.org/id/metropolitan-district-council/walsall ,WC141-72,31.08.2022,ADULT SOCIAL CARE,5 CARE SERVICES LTD,16/08/2022,442.40,6541-Domiciliary Care,THIRD PARTY PAYMENTS,PRIVATE CONTRACTOR,REVENUE
Walsall Council,http://opendatacommunities.org/id/metropolitan-district-council/walsall ,WC141-73,31.08.2022,ADULT SOCIAL CARE,5 CARE SERVICES LTD,16/08/2022,497.70,6541-Domiciliary Care,THIRD PARTY PAYMENTS,PRIVATE CONTRACTOR,REVENUE
Walsall Council,http://opendatacommunities.org/id/metropolitan-district-council/walsall ,WC141-74,31.08.2022,ADULT SOCIAL CARE,5 CARE SERVICES LTD,16/08/2022,316.00,6541-Domiciliary Care,THIRD PARTY PAYMENTS,PRIVATE CONTRACTOR,REVENUE
Walsall Council,http://opendatacommunities.org/id/metropolitan-district-council/walsall ,WC141-75,31.08.2022,ADULT SOCIAL CARE,5 CARE SERVICES LTD,16/08/2022,288.35,6541-Domiciliary Care,THIRD PARTY PAYMENTS,PRIVATE CONTRACTOR,REVENUE
Walsall Council,http://opendatacommunities.org/id/metropolitan-district-council/walsall ,WC141-76,31.08.2022,ADULT SOCIAL CARE,5 CARE SERVICES LTD,16/08/2022,758.40,6541-Domiciliary Care,THIRD PARTY PAYMENTS,PRIVATE CONTRACTOR,REVENUE
Walsall Council,http://opendatacommunities.org/id/metropolitan-district-council/walsall ,WC141-77,31.08.2022,ADULT SOCIAL CARE,5 CARE SERVICES LTD,16/08/2022,316.00,6541-Domiciliary Care,THIRD PARTY PAYMENTS,PRIVATE CONTRACTOR,REVENUE
Walsall Council,http://opendatacommunities.org/id/metropolitan-district-council/walsall ,WC141-78,31.08.2022,ADULT SOCIAL CARE,5 CARE SERVICES LTD,16/08/2022,331.80,6541-Domiciliary Care,THIRD PARTY PAYMENTS,PRIVATE CONTRACTOR,REVENUE
Walsall Council,http://opendatacommunities.org/id/metropolitan-district-council/walsall ,WC141-79,31.08.2022,ADULT SOCIAL CARE,5 CARE SERVICES LTD,16/08/2022,497.70,6541-Domiciliary Care,THIRD PARTY PAYMENTS,PRIVATE CONTRACTOR,REVENUE
Walsall Council,http://opendatacommunities.org/id/metropolitan-district-council/walsall ,WC141-80,31.08.2022,ADULT SOCIAL CARE,5 CARE SERVICES LTD,16/08/2022,489.80,6541-Domiciliary Care,THIRD PARTY PAYMENTS,PRIVATE CONTRACTOR,REVENUE
Walsall Council,http://opendatacommunities.org/id/metropolitan-district-council/walsall ,WC141-81,31.08.2022,ADULT SOCIAL CARE,5 CARE SERVICES LTD,16/08/2022,442.40,6541-Domiciliary Care,THIRD PARTY PAYMENTS,PRIVATE CONTRACTOR,REVENUE
Walsall Council,http://opendatacommunities.org/id/metropolitan-district-council/walsall ,WC141-82,31.08.2022,ADULT SOCIAL CARE,5 CARE SERVICES LTD,16/08/2022,553.00,6541-Domiciliary Care,THIRD PARTY PAYMENTS,PRIVATE CONTRACTOR,REVENUE
Walsall Council,http://opendatacommunities.org/id/metropolitan-district-council/walsall ,WC141-83,31.08.2022,ADULT SOCIAL CARE,5 CARE SERVICES LTD,16/08/2022,545.10,6541-Domiciliary Care,THIRD PARTY PAYMENTS,PRIVATE CONTRACTOR,REVENUE
Walsall Council,http://opendatacommunities.org/id/metropolitan-district-council/walsall ,WC141-84,31.08.2022,ADULT SOCIAL CARE,5 CARE SERVICES LTD,16/08/2022,288.35,6541-Domiciliary Care,THIRD PARTY PAYMENTS,PRIVATE CONTRACTOR,REVENUE
Walsall Council,http://opendatacommunities.org/id/metropolitan-district-council/walsall ,WC141-85,31.08.2022,ADULT SOCIAL CARE,5 CARE SERVICES LTD,16/08/2022,497.70,6541-Domiciliary Care,THIRD PARTY PAYMENTS,PRIVATE CONTRACTOR,REVENUE
Walsall Council,http://opendatacommunities.org/id/metropolitan-district-council/walsall ,WC141-86,31.08.2022,ADULT SOCIAL CARE,5 CARE SERVICES LTD,16/08/2022,884.80,6541-Domiciliary Care,THIRD PARTY PAYMENTS,PRIVATE CONTRACTOR,REVENUE
Walsall Council,http://opendatacommunities.org/id/metropolitan-district-council/walsall ,WC141-87,31.08.2022,ADULT SOCIAL CARE,5 CARE SERVICES LTD,16/08/2022,948.00,6541-Domiciliary Care,THIRD PARTY PAYMENTS,PRIVATE CONTRACTOR,REVENUE
Walsall Council,http://opendatacommunities.org/id/metropolitan-district-council/walsall ,WC141-88,31.08.2022,ADULT SOCIAL CARE,5 CARE SERVICES LTD,16/08/2022,663.60,6541-Domiciliary Care,THIRD PARTY PAYMENTS,PRIVATE CONTRACTOR,REVENUE
Walsall Council,http://opendatacommunities.org/id/metropolitan-district-council/walsall ,WC141-89,31.08.2022,ADULT SOCIAL CARE,5 CARE SERVICES LTD,16/08/2022,645.19,6541-Domiciliary Care,THIRD PARTY PAYMENTS,PRIVATE CONTRACTOR,REVENUE
Walsall Council,http://opendatacommunities.org/id/metropolitan-district-council/walsall ,WC141-90,31.08.2022,ADULT SOCIAL CARE,5 CARE SERVICES LTD,16/08/2022,316.00,6541-Domiciliary Care,THIRD PARTY PAYMENTS,PRIVATE CONTRACTOR,REVENUE
Walsall Council,http://opendatacommunities.org/id/metropolitan-district-council/walsall ,WC141-91,31.08.2022,ADULT SOCIAL CARE,5 CARE SERVICES LTD,16/08/2022,331.80,6541-Domiciliary Care,THIRD PARTY PAYMENTS,PRIVATE CONTRACTOR,REVENUE
Walsall Council,http://opendatacommunities.org/id/metropolitan-district-council/walsall ,WC141-92,31.08.2022,ADULT SOCIAL CARE,5 CARE SERVICES LTD,16/08/2022,497.70,6541-Domiciliary Care,THIRD PARTY PAYMENTS,PRIVATE CONTRACTOR,REVENUE
Walsall Council,http://opendatacommunities.org/id/metropolitan-district-council/walsall ,WC141-93,31.08.2022,ADULT SOCIAL CARE,5 CARE SERVICES LTD,16/08/2022,442.40,6541-Domiciliary Care,THIRD PARTY PAYMENTS,PRIVATE CONTRACTOR,REVENUE
Walsall Council,http://opendatacommunities.org/id/metropolitan-district-council/walsall ,WC141-94,31.08.2022,ADULT SOCIAL CARE,5 CARE SERVICES LTD,16/08/2022,489.80,6541-Domiciliary Care,THIRD PARTY PAYMENTS,PRIVATE CONTRACTOR,REVENUE
Walsall Council,http://opendatacommunities.org/id/metropolitan-district-council/walsall ,WC141-95,31.08.2022,ADULT SOCIAL CARE,5 CARE SERVICES LTD,16/08/2022,553.00,6541-Domiciliary Care,THIRD PARTY PAYMENTS,PRIVATE CONTRACTOR,REVENUE
Walsall Council,http://opendatacommunities.org/id/metropolitan-district-council/walsall ,WC141-96,31.08.2022,ADULT SOCIAL CARE,5 CARE SERVICES LTD,16/08/2022,924.30,6541-Domiciliary Care,THIRD PARTY PAYMENTS,PRIVATE CONTRACTOR,REVENUE
Walsall Council,http://opendatacommunities.org/id/metropolitan-district-council/walsall ,WC141-97,31.08.2022,ADULT SOCIAL CARE,5 CARE SERVICES LTD,16/08/2022,442.40,6541-Domiciliary Care,THIRD PARTY PAYMENTS,PRIVATE CONTRACTOR,REVENUE
Walsall Council,http://opendatacommunities.org/id/metropolitan-district-council/walsall ,WC141-98,31.08.2022,ADULT SOCIAL CARE,5 CARE SERVICES LTD,16/08/2022,568.80,6541-Domiciliary Care,THIRD PARTY PAYMENTS,PRIVATE CONTRACTOR,REVENUE
Walsall Council,http://opendatacommunities.org/id/metropolitan-district-council/walsall ,WC141-99,31.08.2022,ADULT SOCIAL CARE,5 CARE SERVICES LTD,16/08/2022,442.40,6541-Domiciliary Care,THIRD PARTY PAYMENTS,PRIVATE CONTRACTOR,REVENUE
Walsall Council,http://opendatacommunities.org/id/metropolitan-district-council/walsall ,WC141-100,31.08.2022,ADULT SOCIAL CARE,5 CARE SERVICES LTD,16/08/2022,252.80,6541-Domiciliary Care,THIRD PARTY PAYMENTS,PRIVATE CONTRACTOR,REVENUE
Walsall Council,http://opendatacommunities.org/id/metropolitan-district-council/walsall ,WC141-101,31.08.2022,ADULT SOCIAL CARE,5 CARE SERVICES LTD,16/08/2022,718.90,6541-Domiciliary Care,THIRD PARTY PAYMENTS,PRIVATE CONTRACTOR,REVENUE
Walsall Council,http://opendatacommunities.org/id/metropolitan-district-council/walsall ,WC141-102,31.08.2022,ADULT SOCIAL CARE,5 CARE SERVICES LTD,16/08/2022,497.70,6541-Domiciliary Care,THIRD PARTY PAYMENTS,PRIVATE CONTRACTOR,REVENUE
Walsall Council,http://opendatacommunities.org/id/metropolitan-district-council/walsall ,WC141-103,31.08.2022,ADULT SOCIAL CARE,5 CARE SERVICES LTD,16/08/2022,497.70,6541-Domiciliary Care,THIRD PARTY PAYMENTS,PRIVATE CONTRACTOR,REVENUE
Walsall Council,http://opendatacommunities.org/id/metropolitan-district-council/walsall ,WC141-104,31.08.2022,ADULT SOCIAL CARE,5 CARE SERVICES LTD,24/08/2022,"1,990.80",6541-Domiciliary Care,THIRD PARTY PAYMENTS,PRIVATE CONTRACTOR,REVENUE
Walsall Council,http://opendatacommunities.org/id/metropolitan-district-council/walsall ,WC141-105,31.08.2022,ADULT SOCIAL CARE,5 CARE SERVICES LTD,24/08/2022,"1,295.60",6541-Domiciliary Care,THIRD PARTY PAYMENTS,PRIVATE CONTRACTOR,REVENUE
Walsall Council,http://opendatacommunities.org/id/metropolitan-district-council/walsall ,WC141-106,31.08.2022,ADULT SOCIAL CARE,5 CARE SERVICES LTD,24/08/2022,260.70,6541-Domiciliary Care,THIRD PARTY PAYMENTS,PRIVATE CONTRACTOR,REVENUE
Walsall Council,http://opendatacommunities.org/id/metropolitan-district-council/walsall ,WC141-107,31.08.2022,ADULT SOCIAL CARE,5 CARE SERVICES LTD,24/08/2022,"1,777.50",6541-Domiciliary Care,THIRD PARTY PAYMENTS,PRIVATE CONTRACTOR,REVENUE
Walsall Council,http://opendatacommunities.org/id/metropolitan-district-council/walsall ,WC141-108,31.08.2022,ADULT SOCIAL CARE,5 CARE SERVICES LTD,26/08/2022,252.80,6541-Domiciliary Care,THIRD PARTY PAYMENTS,PRIVATE CONTRACTOR,REVENUE
Walsall Council,http://opendatacommunities.org/id/metropolitan-district-council/walsall ,WC141-109,31.08.2022,ADULT SOCIAL CARE,5 CARE SERVICES LTD,26/08/2022,497.70,6541-Domiciliary Care,THIRD PARTY PAYMENTS,PRIVATE CONTRACTOR,REVENUE
Walsall Council,http://opendatacommunities.org/id/metropolitan-district-council/walsall ,WC141-110,31.08.2022,ADULT SOCIAL CARE,5 CARE SERVICES LTD,26/08/2022,442.40,6541-Domiciliary Care,THIRD PARTY PAYMENTS,PRIVATE CONTRACTOR,REVENUE
Walsall Council,http://opendatacommunities.org/id/metropolitan-district-council/walsall ,WC141-111,31.08.2022,ADULT SOCIAL CARE,5 CARE SERVICES LTD,26/08/2022,718.90,6541-Domiciliary Care,THIRD PARTY PAYMENTS,PRIVATE CONTRACTOR,REVENUE
Walsall Council,http://opendatacommunities.org/id/metropolitan-district-council/walsall ,WC141-112,31.08.2022,ADULT SOCIAL CARE,5 CARE SERVICES LTD,26/08/2022,497.70,6541-Domiciliary Care,THIRD PARTY PAYMENTS,PRIVATE CONTRACTOR,REVENUE
Walsall Council,http://opendatacommunities.org/id/metropolitan-district-council/walsall ,WC141-113,31.08.2022,ADULT SOCIAL CARE,5 CARE SERVICES LTD,26/08/2022,"1,327.20",6541-Domiciliary Care,THIRD PARTY PAYMENTS,PRIVATE CONTRACTOR,REVENUE
Walsall Council,http://opendatacommunities.org/id/metropolitan-district-council/walsall ,WC141-114,31.08.2022,ADULT SOCIAL CARE,5 CARE SERVICES LTD,26/08/2022,489.80,6541-Domiciliary Care,THIRD PARTY PAYMENTS,PRIVATE CONTRACTOR,REVENUE
Walsall Council,http://opendatacommunities.org/id/metropolitan-district-council/walsall ,WC141-115,31.08.2022,ADULT SOCIAL CARE,5 CARE SERVICES LTD,26/08/2022,288.35,6541-Domiciliary Care,THIRD PARTY PAYMENTS,PRIVATE CONTRACTOR,REVENUE
Walsall Council,http://opendatacommunities.org/id/metropolitan-district-council/walsall ,WC141-116,31.08.2022,ADULT SOCIAL CARE,5 CARE SERVICES LTD,26/08/2022,553.00,6541-Domiciliary Care,THIRD PARTY PAYMENTS,PRIVATE CONTRACTOR,REVENUE
Walsall Council,http://opendatacommunities.org/id/metropolitan-district-council/walsall ,WC141-117,31.08.2022,ADULT SOCIAL CARE,5 CARE SERVICES LTD,26/08/2022,924.30,6541-Domiciliary Care,THIRD PARTY PAYMENTS,PRIVATE CONTRACTOR,REVENUE
Walsall Council,http://opendatacommunities.org/id/metropolitan-district-council/walsall ,WC141-118,31.08.2022,ADULT SOCIAL CARE,5 CARE SERVICES LTD,26/08/2022,568.80,6541-Domiciliary Care,THIRD PARTY PAYMENTS,PRIVATE CONTRACTOR,REVENUE
Walsall Council,http://opendatacommunities.org/id/metropolitan-district-council/walsall ,WC141-119,31.08.2022,ADULT SOCIAL CARE,5 CARE SERVICES LTD,26/08/2022,497.70,6541-Domiciliary Care,THIRD PARTY PAYMENTS,PRIVATE CONTRACTOR,REVENUE
Walsall Council,http://opendatacommunities.org/id/metropolitan-district-council/walsall ,WC141-120,31.08.2022,ADULT SOCIAL CARE,5 CARE SERVICES LTD,26/08/2022,884.80,6541-Domiciliary Care,THIRD PARTY PAYMENTS,PRIVATE CONTRACTOR,REVENUE
Walsall Council,http://opendatacommunities.org/id/metropolitan-district-council/walsall ,WC141-121,31.08.2022,ADULT SOCIAL CARE,5 CARE SERVICES LTD,26/08/2022,316.00,6541-Domiciliary Care,THIRD PARTY PAYMENTS,PRIVATE CONTRACTOR,REVENUE
Walsall Council,http://opendatacommunities.org/id/metropolitan-district-council/walsall ,WC141-122,31.08.2022,ADULT SOCIAL CARE,5 CARE SERVICES LTD,26/08/2022,331.80,6541-Domiciliary Care,THIRD PARTY PAYMENTS,PRIVATE CONTRACTOR,REVENUE
Walsall Council,http://opendatacommunities.org/id/metropolitan-district-council/walsall ,WC141-123,31.08.2022,ADULT SOCIAL CARE,5 CARE SERVICES LTD,26/08/2022,497.70,6541-Domiciliary Care,THIRD PARTY PAYMENTS,PRIVATE CONTRACTOR,REVENUE
Walsall Council,http://opendatacommunities.org/id/metropolitan-district-council/walsall ,WC141-124,31.08.2022,ADULT SOCIAL CARE,5 CARE SERVICES LTD,26/08/2022,442.40,6541-Domiciliary Care,THIRD PARTY PAYMENTS,PRIVATE CONTRACTOR,REVENUE
Walsall Council,http://opendatacommunities.org/id/metropolitan-district-council/walsall ,WC141-125,31.08.2022,ADULT SOCIAL CARE,5 CARE SERVICES LTD,26/08/2022,663.60,6541-Domiciliary Care,THIRD PARTY PAYMENTS,PRIVATE CONTRACTOR,REVENUE
Walsall Council,http://opendatacommunities.org/id/metropolitan-district-council/walsall ,WC141-126,31.08.2022,ADULT SOCIAL CARE,5 CARE SERVICES LTD,26/08/2022,645.19,6541-Domiciliary Care,THIRD PARTY PAYMENTS,PRIVATE CONTRACTOR,REVENUE
Walsall Council,http://opendatacommunities.org/id/metropolitan-district-council/walsall ,WC141-127,31.08.2022,ADULT SOCIAL CARE,5 CARE SERVICES LTD,26/08/2022,442.40,6541-Domiciliary Care,THIRD PARTY PAYMENTS,PRIVATE CONTRACTOR,REVENUE
Walsall Council,http://opendatacommunities.org/id/metropolitan-district-council/walsall ,WC141-128,31.08.2022,ADULT SOCIAL CARE,5 CARE SERVICES LTD,26/08/2022,442.40,6541-Domiciliary Care,THIRD PARTY PAYMENTS,PRIVATE CONTRACTOR,REVENUE
Walsall Council,http://opendatacommunities.org/id/metropolitan-district-council/walsall ,WC141-129,31.08.2022,ADULT SOCIAL CARE,5 CARE SERVICES LTD,26/08/2022,252.80,6541-Domiciliary Care,THIRD PARTY PAYMENTS,PRIVATE CONTRACTOR,REVENUE
Walsall Council,http://opendatacommunities.org/id/metropolitan-district-council/walsall ,WC141-130,31.08.2022,ADULT SOCIAL CARE,5 CARE SERVICES LTD,26/08/2022,497.70,6541-Domiciliary Care,THIRD PARTY PAYMENTS,PRIVATE CONTRACTOR,REVENUE
Walsall Council,http://opendatacommunities.org/id/metropolitan-district-council/walsall ,WC141-131,31.08.2022,ADULT SOCIAL CARE,5 CARE SERVICES LTD,26/08/2022,884.80,6541-Domiciliary Care,THIRD PARTY PAYMENTS,PRIVATE CONTRACTOR,REVENUE
Walsall Council,http://opendatacommunities.org/id/metropolitan-district-council/walsall ,WC141-132,31.08.2022,ADULT SOCIAL CARE,5 CARE SERVICES LTD,26/08/2022,568.80,6541-Domiciliary Care,THIRD PARTY PAYMENTS,PRIVATE CONTRACTOR,REVENUE
Walsall Council,http://opendatacommunities.org/id/metropolitan-district-council/walsall ,WC141-133,31.08.2022,ADULT SOCIAL CARE,5 CARE SERVICES LTD,26/08/2022,288.35,6541-Domiciliary Care,THIRD PARTY PAYMENTS,PRIVATE CONTRACTOR,REVENUE
Walsall Council,http://opendatacommunities.org/id/metropolitan-district-council/walsall ,WC141-134,31.08.2022,ADULT SOCIAL CARE,5 CARE SERVICES LTD,26/08/2022,718.90,6541-Domiciliary Care,THIRD PARTY PAYMENTS,PRIVATE CONTRACTOR,REVENUE
Walsall Council,http://opendatacommunities.org/id/metropolitan-district-council/walsall ,WC141-135,31.08.2022,ADULT SOCIAL CARE,5 CARE SERVICES LTD,26/08/2022,"3,033.60",6541-Domiciliary Care,THIRD PARTY PAYMENTS,PRIVATE CONTRACTOR,REVENUE
Walsall Council,http://opendatacommunities.org/id/metropolitan-district-council/walsall ,WC141-136,31.08.2022,ADULT SOCIAL CARE,5 CARE SERVICES LTD,26/08/2022,497.70,6541-Domiciliary Care,THIRD PARTY PAYMENTS,PRIVATE CONTRACTOR,REVENUE
Walsall Council,http://opendatacommunities.org/id/metropolitan-district-council/walsall ,WC141-137,31.08.2022,ADULT SOCIAL CARE,5 CARE SERVICES LTD,26/08/2022,674.20,6541-Domiciliary Care,THIRD PARTY PAYMENTS,PRIVATE CONTRACTOR,REVENUE
Walsall Council,http://opendatacommunities.org/id/metropolitan-district-council/walsall ,WC141-138,31.08.2022,ADULT SOCIAL CARE,5 CARE SERVICES LTD,26/08/2022,524.08,6541-Domiciliary Care,THIRD PARTY PAYMENTS,PRIVATE CONTRACTOR,REVENUE
Walsall Council,http://opendatacommunities.org/id/metropolitan-district-council/walsall ,WC141-139,31.08.2022,ADULT SOCIAL CARE,5 CARE SERVICES LTD,26/08/2022,663.60,6541-Domiciliary Care,THIRD PARTY PAYMENTS,PRIVATE CONTRACTOR,REVENUE
Walsall Council,http://opendatacommunities.org/id/metropolitan-district-council/walsall ,WC141-140,31.08.2022,ADULT SOCIAL CARE,5 CARE SERVICES LTD,26/08/2022,645.19,6541-Domiciliary Care,THIRD PARTY PAYMENTS,PRIVATE CONTRACTOR,REVENUE
Walsall Council,http://opendatacommunities.org/id/metropolitan-district-council/walsall ,WC141-141,31.08.2022,ADULT SOCIAL CARE,5 CARE SERVICES LTD,26/08/2022,553.00,6541-Domiciliary Care,THIRD PARTY PAYMENTS,PRIVATE CONTRACTOR,REVENUE
Walsall Council,http://opendatacommunities.org/id/metropolitan-district-council/walsall ,WC141-142,31.08.2022,ADULT SOCIAL CARE,5 CARE SERVICES LTD,26/08/2022,442.40,6541-Domiciliary Care,THIRD PARTY PAYMENTS,PRIVATE CONTRACTOR,REVENUE
Walsall Council,http://opendatacommunities.org/id/metropolitan-district-council/walsall ,WC141-143,31.08.2022,ADULT SOCIAL CARE,5 CARE SERVICES LTD,26/08/2022,331.80,6541-Domiciliary Care,THIRD PARTY PAYMENTS,PRIVATE CONTRACTOR,REVENUE
Walsall Council,http://opendatacommunities.org/id/metropolitan-district-council/walsall ,WC141-144,31.08.2022,ADULT SOCIAL CARE,5 CARE SERVICES LTD,26/08/2022,497.70,6541-Domiciliary Care,THIRD PARTY PAYMENTS,PRIVATE CONTRACTOR,REVENUE
Walsall Council,http://opendatacommunities.org/id/metropolitan-district-council/walsall ,WC141-145,31.08.2022,ADULT SOCIAL CARE,5 CARE SERVICES LTD,26/08/2022,442.40,6541-Domiciliary Care,THIRD PARTY PAYMENTS,PRIVATE CONTRACTOR,REVENUE
Walsall Council,http://opendatacommunities.org/id/metropolitan-district-council/walsall ,WC141-146,31.08.2022,"ECONOMY, ENVIRONMENT & COMMUNITIES",5 CARE SERVICES LTD,24/08/2022,707.26,6313-Grants to Other Orgs,SUPPLIES & SERVICES,GRANTS (EXP) & SUBSCRIPTIONS,REVENUE
Walsall Council,http://opendatacommunities.org/id/metropolitan-district-council/walsall ,WC141-147,31.08.2022,"ECONOMY, ENVIRONMENT & COMMUNITIES",5 CARE SERVICES LTD,03/08/2022,741.54,6313-Grants to Other Orgs,SUPPLIES & SERVICES,GRANTS (EXP) & SUBSCRIPTIONS,REVENUE
Walsall Council,http://opendatacommunities.org/id/metropolitan-district-council/walsall ,WC141-148,31.08.2022,"ECONOMY, ENVIRONMENT & COMMUNITIES",5 CARE SERVICES LTD,24/08/2022,482.73,6313-Grants to Other Orgs,SUPPLIES & SERVICES,GRANTS (EXP) & SUBSCRIPTIONS,REVENUE
Walsall Council,http://opendatacommunities.org/id/metropolitan-district-council/walsall ,WC141-149,31.08.2022,"ECONOMY, ENVIRONMENT & COMMUNITIES",A & A SERVICES WEST MIDLANDS,16/08/2022,"5,000.00",6430-Grants to Other Orgs,SUPPLIES & SERVICES,GRANTS (EXP) & SUBSCRIPTIONS,REVENUE
Walsall Council,http://opendatacommunities.org/id/metropolitan-district-council/walsall ,WC141-150,31.08.2022,ADULT SOCIAL CARE,A & A SERVICES WEST MIDLANDS,09/08/2022,"1,400.00",6420-Professional Fees & Services,SUPPLIES & SERVICES,SERVICES,REVENUE
Walsall Council,http://opendatacommunities.org/id/metropolitan-district-council/walsall ,WC141-151,31.08.2022,RESOURCES AND TRANSFORMATION,A D T FIRE AND SECURITY PLC,04/08/2022,"1,338.43",6310-Repair & Maintenance of Furniture & Equipment,SUPPLIES & SERVICES,EQUIPMENT FURNITURE & MATERIALS,REVENUE
Walsall Council,http://opendatacommunities.org/id/metropolitan-district-council/walsall ,WC141-152,31.08.2022,RESOURCES AND TRANSFORMATION,A D T FIRE AND SECURITY PLC,16/08/2022,"1,190.56",6310-Repair & Maintenance of Furniture & Equipment,SUPPLIES & SERVICES,EQUIPMENT FURNITURE & MATERIALS,REVENUE
Walsall Council,http://opendatacommunities.org/id/metropolitan-district-council/walsall ,WC141-153,31.08.2022,RESOURCES AND TRANSFORMATION,A D T FIRE AND SECURITY PLC,16/08/2022,"1,208.32",6310-Repair & Maintenance of Furniture & Equipment,SUPPLIES & SERVICES,EQUIPMENT FURNITURE & MATERIALS,REVENUE
Walsall Council,http://opendatacommunities.org/id/metropolitan-district-council/walsall ,WC141-154,31.08.2022,RESOURCES AND TRANSFORMATION,A D T FIRE AND SECURITY PLC,16/08/2022,364.27,6310-Repair & Maintenance of Furniture & Equipment,SUPPLIES & SERVICES,EQUIPMENT FURNITURE & MATERIALS,REVENUE
Walsall Council,http://opendatacommunities.org/id/metropolitan-district-council/walsall ,WC141-155,31.08.2022,"ECONOMY, ENVIRONMENT & COMMUNITIES",A F BLAKEMORE & SON LTD,04/08/2022,-675.82,6413-Food & Drink Supplies,SUPPLIES & SERVICES,CATERING,REVENUE
Walsall Council,http://opendatacommunities.org/id/metropolitan-district-council/walsall ,WC141-156,31.08.2022,"ECONOMY, ENVIRONMENT & COMMUNITIES",A F BLAKEMORE & SON LTD,04/08/2022,-253.88,6413-Food & Drink Supplies,SUPPLIES & SERVICES,CATERING,REVENUE
Walsall Council,http://opendatacommunities.org/id/metropolitan-district-council/walsall ,WC141-157,31.08.2022,"ECONOMY, ENVIRONMENT & COMMUNITIES",A F BLAKEMORE & SON LTD,04/08/2022,-253.80,6413-Food & Drink Supplies,SUPPLIES & SERVICES,CATERING,REVENUE
Walsall Council,http://opendatacommunities.org/id/metropolitan-district-council/walsall ,WC141-158,31.08.2022,"ECONOMY, ENVIRONMENT & COMMUNITIES",A F BLAKEMORE & SON LTD,04/08/2022,253.80,6413-Food & Drink Supplies,SUPPLIES & SERVICES,CATERING,REVENUE
Walsall Council,http://opendatacommunities.org/id/metropolitan-district-council/walsall ,WC141-159,31.08.2022,"ECONOMY, ENVIRONMENT & COMMUNITIES",A F BLAKEMORE & SON LTD,04/08/2022,253.88,6413-Food & Drink Supplies,SUPPLIES & SERVICES,CATERING,REVENUE
Walsall Council,http://opendatacommunities.org/id/metropolitan-district-council/walsall ,WC141-160,31.08.2022,"ECONOMY, ENVIRONMENT & COMMUNITIES",A F BLAKEMORE & SON LTD,04/08/2022,675.82,6413-Food & Drink Supplies,SUPPLIES & SERVICES,CATERING,REVENUE
Walsall Council,http://opendatacommunities.org/id/metropolitan-district-council/walsall ,WC141-161,31.08.2022,"ECONOMY, ENVIRONMENT & COMMUNITIES",A F BLAKEMORE & SON LTD,30/08/2022,266.16,6413-Food & Drink Supplies,SUPPLIES & SERVICES,CATERING,REVENUE
Walsall Council,http://opendatacommunities.org/id/metropolitan-district-council/walsall ,WC141-162,31.08.2022,"ECONOMY, ENVIRONMENT & COMMUNITIES",A F BLAKEMORE & SON LTD,30/08/2022,823.53,6413-Food & Drink Supplies,SUPPLIES & SERVICES,CATERING,REVENUE
Walsall Council,http://opendatacommunities.org/id/metropolitan-district-council/walsall ,WC141-163,31.08.2022,"ECONOMY, ENVIRONMENT & COMMUNITIES",A F BLAKEMORE & SON LTD,30/08/2022,850.14,6413-Food & Drink Supplies,SUPPLIES & SERVICES,CATERING,REVENUE
Walsall Council,http://opendatacommunities.org/id/metropolitan-district-council/walsall ,WC141-164,31.08.2022,"ECONOMY, ENVIRONMENT & COMMUNITIES",A F BLAKEMORE & SON LTD,30/08/2022,492.01,6413-Food & Drink Supplies,SUPPLIES & SERVICES,CATERING,REVENUE
Walsall Council,http://opendatacommunities.org/id/metropolitan-district-council/walsall ,WC141-165,31.08.2022,"ECONOMY, ENVIRONMENT & COMMUNITIES",A F BLAKEMORE & SON LTD,30/08/2022,"1,087.55",6413-Food & Drink Supplies,SUPPLIES & SERVICES,CATERING,REVENUE
Walsall Council,http://opendatacommunities.org/id/metropolitan-district-council/walsall ,WC141-166,31.08.2022,CHILDRENS,A1 WALSALL RADIO CARS,16/08/2022,"1,430.00",6241-Hire of Vehicle with Driver,TRANSPORT,DIRECT TRANSPORT COSTS,REVENUE
Walsall Council,http://opendatacommunities.org/id/metropolitan-district-council/walsall ,WC141-167,31.08.2022,CHILDRENS,A1 WALSALL RADIO CARS,16/08/2022,"1,274.00",6241-Hire of Vehicle with Driver,TRANSPORT,DIRECT TRANSPORT COSTS,REVENUE
Walsall Council,http://opendatacommunities.org/id/metropolitan-district-council/walsall ,WC141-168,31.08.2022,CHILDRENS,A1 WALSALL RADIO CARS,16/08/2022,"1,650.00",6241-Hire of Vehicle with Driver,TRANSPORT,DIRECT TRANSPORT COSTS,REVENUE
Walsall Council,http://opendatacommunities.org/id/metropolitan-district-council/walsall ,WC141-169,31.08.2022,RESOURCES AND TRANSFORMATION,AAINA COMMUNITY HUB,17/08/2022,"1,000.00",6310-Other Energy Costs,PREMISES,ENERGY,REVENUE
Walsall Council,http://opendatacommunities.org/id/metropolitan-district-council/walsall ,WC141-170,31.08.2022,"ECONOMY, ENVIRONMENT & COMMUNITIES",AAINA COMMUNITY HUB,24/08/2022,"1,250.00",6430-Grants to Other Orgs,SUPPLIES & SERVICES,GRANTS (EXP) & SUBSCRIPTIONS,REVENUE
Walsall Council,http://opendatacommunities.org/id/metropolitan-district-council/walsall ,WC141-171,31.08.2022,"ECONOMY, ENVIRONMENT & COMMUNITIES",AAINA COMMUNITY HUB,10/08/2022,"2,300.00",6430-Grants to Other Orgs,SUPPLIES & SERVICES,GRANTS (EXP) & SUBSCRIPTIONS,REVENUE
Walsall Council,http://opendatacommunities.org/id/metropolitan-district-council/walsall ,WC141-172,31.08.2022,CHILDRENS,ABACUS FOSTERING LTD,09/08/2022,"2,763.20",6223-Independent Foster Care-Oth Agency Provision,THIRD PARTY PAYMENTS,PRIVATE CONTRACTOR,REVENUE
Walsall Council,http://opendatacommunities.org/id/metropolitan-district-council/walsall ,WC141-173,31.08.2022,CHILDRENS,ABACUS FOSTERING LTD,09/08/2022,"2,763.20",6223-Independent Foster Care-Oth Agency Provision,THIRD PARTY PAYMENTS,PRIVATE CONTRACTOR,REVENUE
Walsall Council,http://opendatacommunities.org/id/metropolitan-district-council/walsall ,WC141-174,31.08.2022,ADULT SOCIAL CARE,ABBEY COURT NURSING & RESIDEN,02/08/2022,"2,366.04",6541-Residential EMI,THIRD PARTY PAYMENTS,PRIVATE CONTRACTOR,REVENUE
Walsall Council,http://opendatacommunities.org/id/metropolitan-district-council/walsall ,WC141-175,31.08.2022,ADULT SOCIAL CARE,ABBEY COURT NURSING & RESIDEN,02/08/2022,"2,095.40",6541-Residential,THIRD PARTY PAYMENTS,PRIVATE CONTRACTOR,REVENUE
Walsall Council,http://opendatacommunities.org/id/metropolitan-district-council/walsall ,WC141-176,31.08.2022,ADULT SOCIAL CARE,ABBEY COURT NURSING & RESIDEN,02/08/2022,"2,606.04",6541-Residential EMI,THIRD PARTY PAYMENTS,PRIVATE CONTRACTOR,REVENUE
Walsall Council,http://opendatacommunities.org/id/metropolitan-district-council/walsall ,WC141-177,31.08.2022,ADULT SOCIAL CARE,ABBEY COURT NURSING & RESIDEN,26/08/2022,"2,366.04",6541-Residential EMI,THIRD PARTY PAYMENTS,PRIVATE CONTRACTOR,REVENUE
Walsall Council,http://opendatacommunities.org/id/metropolitan-district-council/walsall ,WC141-178,31.08.2022,ADULT SOCIAL CARE,ABBEY COURT NURSING & RESIDEN,26/08/2022,"2,606.04",6541-Residential EMI,THIRD PARTY PAYMENTS,PRIVATE CONTRACTOR,REVENUE
Walsall Council,http://opendatacommunities.org/id/metropolitan-district-council/walsall ,WC141-179,31.08.2022,ADULT SOCIAL CARE,ABBEY COURT NURSING & RESIDEN,26/08/2022,"2,095.40",6541-Residential,THIRD PARTY PAYMENTS,PRIVATE CONTRACTOR,REVENUE
Walsall Council,http://opendatacommunities.org/id/metropolitan-district-council/walsall ,WC141-180,31.08.2022,ADULT SOCIAL CARE,ABBEY HEALTHCARE HOMES LTD,02/08/2022,"2,432.32",6541-Residential,THIRD PARTY PAYMENTS,PRIVATE CONTRACTOR,REVENUE
Walsall Council,http://opendatacommunities.org/id/metropolitan-district-council/walsall ,WC141-181,31.08.2022,ADULT SOCIAL CARE,ABBEY HEALTHCARE HOMES LTD,02/08/2022,"3,180.76",6541-Residential,THIRD PARTY PAYMENTS,PRIVATE CONTRACTOR,REVENUE
Walsall Council,http://opendatacommunities.org/id/metropolitan-district-council/walsall ,WC141-182,31.08.2022,ADULT SOCIAL CARE,ABBEY HEALTHCARE HOMES LTD,02/08/2022,"3,180.76",6541-Residential,THIRD PARTY PAYMENTS,PRIVATE CONTRACTOR,REVENUE
Walsall Council,http://opendatacommunities.org/id/metropolitan-district-council/walsall ,WC141-183,31.08.2022,ADULT SOCIAL CARE,ABBEY HEALTHCARE HOMES LTD,02/08/2022,"3,604.84",6541-Residential,THIRD PARTY PAYMENTS,PRIVATE CONTRACTOR,REVENUE
Walsall Council,http://opendatacommunities.org/id/metropolitan-district-council/walsall ,WC141-184,31.08.2022,ADULT SOCIAL CARE,ABBEY HEALTHCARE HOMES LTD,26/08/2022,"2,432.32",6541-Residential,THIRD PARTY PAYMENTS,PRIVATE CONTRACTOR,REVENUE
Walsall Council,http://opendatacommunities.org/id/metropolitan-district-council/walsall ,WC141-185,31.08.2022,ADULT SOCIAL CARE,ABBEY HEALTHCARE HOMES LTD,26/08/2022,"3,180.76",6541-Residential,THIRD PARTY PAYMENTS,PRIVATE CONTRACTOR,REVENUE
Walsall Council,http://opendatacommunities.org/id/metropolitan-district-council/walsall ,WC141-186,31.08.2022,ADULT SOCIAL CARE,ABBEY HEALTHCARE HOMES LTD,26/08/2022,"3,180.76",6541-Residential,THIRD PARTY PAYMENTS,PRIVATE CONTRACTOR,REVENUE
Walsall Council,http://opendatacommunities.org/id/metropolitan-district-council/walsall ,WC141-187,31.08.2022,ADULT SOCIAL CARE,ABBEY HEALTHCARE HOMES LTD,26/08/2022,"3,604.84",6541-Residential,THIRD PARTY PAYMENTS,PRIVATE CONTRACTOR,REVENUE
Walsall Council,http://opendatacommunities.org/id/metropolitan-district-council/walsall ,WC141-188,31.08.2022,ADULT SOCIAL CARE,REDACTED,03/08/2022,"4,327.68",6541-Direct Payment,THIRD PARTY PAYMENTS,PRIVATE CONTRACTOR,REVENUE
Walsall Council,http://opendatacommunities.org/id/metropolitan-district-council/walsall ,WC141-189,31.08.2022,ADULT SOCIAL CARE,ABILITY HEALTHCARE LTD,25/08/2022,331.80,6541-Domiciliary Care,THIRD PARTY PAYMENTS,PRIVATE CONTRACTOR,REVENUE
Walsall Council,http://opendatacommunities.org/id/metropolitan-district-council/walsall ,WC141-190,31.08.2022,ADULT SOCIAL CARE,ABILITY HEALTHCARE LTD,25/08/2022,"1,050.70",6541-Domiciliary Care,THIRD PARTY PAYMENTS,PRIVATE CONTRACTOR,REVENUE
Walsall Council,http://opendatacommunities.org/id/metropolitan-district-council/walsall ,WC141-191,31.08.2022,ADULT SOCIAL CARE,ABILITY HEALTHCARE LTD,25/08/2022,"2,359.56",6541-Domiciliary Care,THIRD PARTY PAYMENTS,PRIVATE CONTRACTOR,REVENUE
Walsall Council,http://opendatacommunities.org/id/metropolitan-district-council/walsall ,WC141-192,31.08.2022,ADULT SOCIAL CARE,ABILITY HEALTHCARE LTD,25/08/2022,"1,200.80",6541-Domiciliary Care,THIRD PARTY PAYMENTS,PRIVATE CONTRACTOR,REVENUE
Walsall Council,http://opendatacommunities.org/id/metropolitan-district-council/walsall ,WC141-193,31.08.2022,ADULT SOCIAL CARE,ABILITY HEALTHCARE LTD,25/08/2022,884.80,6541-Domiciliary Care,THIRD PARTY PAYMENTS,PRIVATE CONTRACTOR,REVENUE
Walsall Council,http://opendatacommunities.org/id/metropolitan-district-council/walsall ,WC141-194,31.08.2022,ADULT SOCIAL CARE,ABILITY HEALTHCARE LTD,25/08/2022,900.60,6541-Domiciliary Care,THIRD PARTY PAYMENTS,PRIVATE CONTRACTOR,REVENUE
Walsall Council,http://opendatacommunities.org/id/metropolitan-district-council/walsall ,WC141-195,31.08.2022,ADULT SOCIAL CARE,ABILITY HEALTHCARE LTD,25/08/2022,995.40,6541-Domiciliary Care,THIRD PARTY PAYMENTS,PRIVATE CONTRACTOR,REVENUE
Walsall Council,http://opendatacommunities.org/id/metropolitan-district-council/walsall ,WC141-196,31.08.2022,ADULT SOCIAL CARE,ABILITY HEALTHCARE LTD,25/08/2022,"1,769.60",6541-Domiciliary Care,THIRD PARTY PAYMENTS,PRIVATE CONTRACTOR,REVENUE
Walsall Council,http://opendatacommunities.org/id/metropolitan-district-council/walsall ,WC141-197,31.08.2022,ADULT SOCIAL CARE,ABILITY HEALTHCARE LTD,25/08/2022,"1,548.40",6541-Domiciliary Care,THIRD PARTY PAYMENTS,PRIVATE CONTRACTOR,REVENUE
Walsall Council,http://opendatacommunities.org/id/metropolitan-district-council/walsall ,WC141-198,31.08.2022,ADULT SOCIAL CARE,ABILITY HEALTHCARE LTD,25/08/2022,284.40,6541-Domiciliary Care,THIRD PARTY PAYMENTS,PRIVATE CONTRACTOR,REVENUE
Walsall Council,http://opendatacommunities.org/id/metropolitan-district-council/walsall ,WC141-199,31.08.2022,ADULT SOCIAL CARE,ABILITY HEALTHCARE LTD,25/08/2022,995.40,6541-Domiciliary Care,THIRD PARTY PAYMENTS,PRIVATE CONTRACTOR,REVENUE
Walsall Council,http://opendatacommunities.org/id/metropolitan-district-council/walsall ,WC141-200,31.08.2022,ADULT SOCIAL CARE,ABILITY HEALTHCARE LTD,25/08/2022,368.76,6541-Domiciliary Care,THIRD PARTY PAYMENTS,PRIVATE CONTRACTOR,REVENUE
Walsall Council,http://opendatacommunities.org/id/metropolitan-district-council/walsall ,WC141-201,31.08.2022,ADULT SOCIAL CARE,ABILITY HEALTHCARE LTD,25/08/2022,379.20,6554-Professional Services-Priv Contractor & Other Agencies,THIRD PARTY PAYMENTS,PRIVATE CONTRACTOR,REVENUE
Walsall Council,http://opendatacommunities.org/id/metropolitan-district-council/walsall ,WC141-202,31.08.2022,ADULT SOCIAL CARE,ABILITY HEALTHCARE LTD,25/08/2022,"1,990.80",6541-Domiciliary Care,THIRD PARTY PAYMENTS,PRIVATE CONTRACTOR,REVENUE
Walsall Council,http://opendatacommunities.org/id/metropolitan-district-council/walsall ,WC141-203,31.08.2022,ADULT SOCIAL CARE,ABILITY HEALTHCARE LTD,25/08/2022,"1,453.60",6541-Domiciliary Care,THIRD PARTY PAYMENTS,PRIVATE CONTRACTOR,REVENUE
Walsall Council,http://opendatacommunities.org/id/metropolitan-district-council/walsall ,WC141-204,31.08.2022,ADULT SOCIAL CARE,ABILITY HEALTHCARE LTD,25/08/2022,"1,769.60",6541-Domiciliary Care,THIRD PARTY PAYMENTS,PRIVATE CONTRACTOR,REVENUE
Walsall Council,http://opendatacommunities.org/id/metropolitan-district-council/walsall ,WC141-205,31.08.2022,ADULT SOCIAL CARE,ABILITY HEALTHCARE LTD,25/08/2022,790.00,6541-Domiciliary Care,THIRD PARTY PAYMENTS,PRIVATE CONTRACTOR,REVENUE
Walsall Council,http://opendatacommunities.org/id/metropolitan-district-council/walsall ,WC141-206,31.08.2022,ADULT SOCIAL CARE,ABILITY HEALTHCARE LTD,25/08/2022,"1,990.80",6541-Domiciliary Care,THIRD PARTY PAYMENTS,PRIVATE CONTRACTOR,REVENUE
Walsall Council,http://opendatacommunities.org/id/metropolitan-district-council/walsall ,WC141-207,31.08.2022,ADULT SOCIAL CARE,ABILITY HEALTHCARE LTD,25/08/2022,"1,848.60",6541-Domiciliary Care,THIRD PARTY PAYMENTS,PRIVATE CONTRACTOR,REVENUE
Walsall Council,http://opendatacommunities.org/id/metropolitan-district-council/walsall ,WC141-208,31.08.2022,ADULT SOCIAL CARE,ABILITY HEALTHCARE LTD,25/08/2022,"2,022.40",6541-Domiciliary Care,THIRD PARTY PAYMENTS,PRIVATE CONTRACTOR,REVENUE
Walsall Council,http://opendatacommunities.org/id/metropolitan-district-council/walsall ,WC141-209,31.08.2022,ADULT SOCIAL CARE,ABILITY HEALTHCARE LTD,25/08/2022,"1,548.40",6541-Domiciliary Care,THIRD PARTY PAYMENTS,PRIVATE CONTRACTOR,REVENUE
Walsall Council,http://opendatacommunities.org/id/metropolitan-district-council/walsall ,WC141-210,31.08.2022,ADULT SOCIAL CARE,ABILITY HEALTHCARE LTD,25/08/2022,"1,769.60",6541-Domiciliary Care,THIRD PARTY PAYMENTS,PRIVATE CONTRACTOR,REVENUE
Walsall Council,http://opendatacommunities.org/id/metropolitan-district-council/walsall ,WC141-211,31.08.2022,ADULT SOCIAL CARE,ABILITY HEALTHCARE LTD,25/08/2022,"1,232.40",6541-Domiciliary Care,THIRD PARTY PAYMENTS,PRIVATE CONTRACTOR,REVENUE
Walsall Council,http://opendatacommunities.org/id/metropolitan-district-council/walsall ,WC141-212,31.08.2022,ADULT SOCIAL CARE,ABILITY HEALTHCARE LTD,25/08/2022,"1,169.20",6541-Domiciliary Care,THIRD PARTY PAYMENTS,PRIVATE CONTRACTOR,REVENUE
Walsall Council,http://opendatacommunities.org/id/metropolitan-district-council/walsall ,WC141-213,31.08.2022,ADULT SOCIAL CARE,ABILITY HEALTHCARE LTD,25/08/2022,442.68,6541-Domiciliary Care,THIRD PARTY PAYMENTS,PRIVATE CONTRACTOR,REVENUE
Walsall Council,http://opendatacommunities.org/id/metropolitan-district-council/walsall ,WC141-214,31.08.2022,ADULT SOCIAL CARE,ABILITY HEALTHCARE LTD,25/08/2022,"1,622.32",6541-Domiciliary Care,THIRD PARTY PAYMENTS,PRIVATE CONTRACTOR,REVENUE
Walsall Council,http://opendatacommunities.org/id/metropolitan-district-council/walsall ,WC141-215,31.08.2022,ADULT SOCIAL CARE,ABILITY HEALTHCARE LTD,25/08/2022,"1,179.92",6541-Domiciliary Care,THIRD PARTY PAYMENTS,PRIVATE CONTRACTOR,REVENUE
Walsall Council,http://opendatacommunities.org/id/metropolitan-district-council/walsall ,WC141-216,31.08.2022,ADULT SOCIAL CARE,ABILITY HEALTHCARE LTD,25/08/2022,"1,769.60",6541-Domiciliary Care,THIRD PARTY PAYMENTS,PRIVATE CONTRACTOR,REVENUE
Walsall Council,http://opendatacommunities.org/id/metropolitan-district-council/walsall ,WC141-217,31.08.2022,ADULT SOCIAL CARE,ABILITY HEALTHCARE LTD,25/08/2022,"1,106.00",6541-Domiciliary Care,THIRD PARTY PAYMENTS,PRIVATE CONTRACTOR,REVENUE
Walsall Council,http://opendatacommunities.org/id/metropolitan-district-council/walsall ,WC141-218,31.08.2022,ADULT SOCIAL CARE,ABILITY HEALTHCARE LTD,25/08/2022,"2,212.00",6541-Domiciliary Care,THIRD PARTY PAYMENTS,PRIVATE CONTRACTOR,REVENUE
Walsall Council,http://opendatacommunities.org/id/metropolitan-district-council/walsall ,WC141-219,31.08.2022,ADULT SOCIAL CARE,ABILITY HEALTHCARE LTD,25/08/2022,995.40,6541-Domiciliary Care,THIRD PARTY PAYMENTS,PRIVATE CONTRACTOR,REVENUE
Walsall Council,http://opendatacommunities.org/id/metropolitan-district-council/walsall ,WC141-220,31.08.2022,ADULT SOCIAL CARE,ABILITY HEALTHCARE LTD,25/08/2022,"1,769.60",6541-Domiciliary Care,THIRD PARTY PAYMENTS,PRIVATE CONTRACTOR,REVENUE
Walsall Council,http://opendatacommunities.org/id/metropolitan-district-council/walsall ,WC141-221,31.08.2022,ADULT SOCIAL CARE,ABILITY HEALTHCARE LTD,25/08/2022,"2,322.60",6541-Domiciliary Care,THIRD PARTY PAYMENTS,PRIVATE CONTRACTOR,REVENUE
Walsall Council,http://opendatacommunities.org/id/metropolitan-district-council/walsall ,WC141-222,31.08.2022,ADULT SOCIAL CARE,ABILITY HEALTHCARE LTD,25/08/2022,"1,990.80",6541-Domiciliary Care,THIRD PARTY PAYMENTS,PRIVATE CONTRACTOR,REVENUE
Walsall Council,http://opendatacommunities.org/id/metropolitan-district-council/walsall ,WC141-223,31.08.2022,ADULT SOCIAL CARE,ABILITY HEALTHCARE LTD,25/08/2022,"1,327.20",6541-Domiciliary Care,THIRD PARTY PAYMENTS,PRIVATE CONTRACTOR,REVENUE
Walsall Council,http://opendatacommunities.org/id/metropolitan-district-council/walsall ,WC141-224,31.08.2022,ADULT SOCIAL CARE,ABILITY HEALTHCARE LTD,25/08/2022,"1,437.80",6541-Domiciliary Care,THIRD PARTY PAYMENTS,PRIVATE CONTRACTOR,REVENUE
Walsall Council,http://opendatacommunities.org/id/metropolitan-district-council/walsall ,WC141-225,31.08.2022,ADULT SOCIAL CARE,ABILITY HEALTHCARE LTD,25/08/2022,679.40,6541-Domiciliary Care,THIRD PARTY PAYMENTS,PRIVATE CONTRACTOR,REVENUE
Walsall Council,http://opendatacommunities.org/id/metropolitan-district-council/walsall ,WC141-226,31.08.2022,ADULT SOCIAL CARE,ABILITY HEALTHCARE LTD,25/08/2022,"1,327.20",6541-Domiciliary Care,THIRD PARTY PAYMENTS,PRIVATE CONTRACTOR,REVENUE
Walsall Council,http://opendatacommunities.org/id/metropolitan-district-council/walsall ,WC141-227,31.08.2022,ADULT SOCIAL CARE,ABILITY HEALTHCARE LTD,24/08/2022,316.00,6541-Domiciliary Care,THIRD PARTY PAYMENTS,PRIVATE CONTRACTOR,REVENUE
Walsall Council,http://opendatacommunities.org/id/metropolitan-district-council/walsall ,WC141-228,31.08.2022,ADULT SOCIAL CARE,ABILITY HEALTHCARE LTD,24/08/2022,679.40,6541-Domiciliary Care,THIRD PARTY PAYMENTS,PRIVATE CONTRACTOR,REVENUE
Walsall Council,http://opendatacommunities.org/id/metropolitan-district-council/walsall ,WC141-229,31.08.2022,ADULT SOCIAL CARE,ABILITY HEALTHCARE LTD,24/08/2022,"1,951.30",6541-Domiciliary Care,THIRD PARTY PAYMENTS,PRIVATE CONTRACTOR,REVENUE
Walsall Council,http://opendatacommunities.org/id/metropolitan-district-council/walsall ,WC141-230,31.08.2022,ADULT SOCIAL CARE,ABILITY HEALTHCARE LTD,24/08/2022,"1,990.80",6541-Domiciliary Care,THIRD PARTY PAYMENTS,PRIVATE CONTRACTOR,REVENUE
Walsall Council,http://opendatacommunities.org/id/metropolitan-district-council/walsall ,WC141-231,31.08.2022,ADULT SOCIAL CARE,ABILITY HEALTHCARE LTD,24/08/2022,"1,990.80",6541-Domiciliary Care,THIRD PARTY PAYMENTS,PRIVATE CONTRACTOR,REVENUE
Walsall Council,http://opendatacommunities.org/id/metropolitan-district-council/walsall ,WC141-232,31.08.2022,ADULT SOCIAL CARE,ABILITY HEALTHCARE LTD,24/08/2022,600.40,6541-Domiciliary Care,THIRD PARTY PAYMENTS,PRIVATE CONTRACTOR,REVENUE
Walsall Council,http://opendatacommunities.org/id/metropolitan-district-council/walsall ,WC141-233,31.08.2022,ADULT SOCIAL CARE,ABILITY HEALTHCARE LTD,24/08/2022,497.70,6541-Domiciliary Care,THIRD PARTY PAYMENTS,PRIVATE CONTRACTOR,REVENUE
Walsall Council,http://opendatacommunities.org/id/metropolitan-district-council/walsall ,WC141-234,31.08.2022,ADULT SOCIAL CARE,ABILITY HEALTHCARE LTD,24/08/2022,"1,990.80",6541-Domiciliary Care,THIRD PARTY PAYMENTS,PRIVATE CONTRACTOR,REVENUE
Walsall Council,http://opendatacommunities.org/id/metropolitan-district-council/walsall ,WC141-235,31.08.2022,CHILDRENS,ABLEWELL CARS,16/08/2022,675.00,6241-Hire of Vehicle with Driver,TRANSPORT,DIRECT TRANSPORT COSTS,REVENUE
Walsall Council,http://opendatacommunities.org/id/metropolitan-district-council/walsall ,WC141-236,31.08.2022,CHILDRENS,ABLEWELL CARS,16/08/2022,"1,248.00",6241-Hire of Vehicle with Driver,TRANSPORT,DIRECT TRANSPORT COSTS,REVENUE
Walsall Council,http://opendatacommunities.org/id/metropolitan-district-council/walsall ,WC141-237,31.08.2022,CHILDRENS,ABLEWELL CARS,16/08/2022,"1,383.20",6241-Hire of Vehicle with Driver,TRANSPORT,DIRECT TRANSPORT COSTS,REVENUE
Walsall Council,http://opendatacommunities.org/id/metropolitan-district-council/walsall ,WC141-238,31.08.2022,CHILDRENS,ABLEWELL CARS,16/08/2022,860.34,6241-Hire of Vehicle with Driver,TRANSPORT,DIRECT TRANSPORT COSTS,REVENUE
Walsall Council,http://opendatacommunities.org/id/metropolitan-district-council/walsall ,WC141-239,31.08.2022,CHILDRENS,ABLEWELL CARS,16/08/2022,584.00,6241-Hire of Vehicle with Driver,TRANSPORT,DIRECT TRANSPORT COSTS,REVENUE
Walsall Council,http://opendatacommunities.org/id/metropolitan-district-council/walsall ,WC141-240,31.08.2022,CHILDRENS,ABLEWELL CARS,16/08/2022,686.88,6241-Hire of Vehicle with Driver,TRANSPORT,DIRECT TRANSPORT COSTS,REVENUE
Walsall Council,http://opendatacommunities.org/id/metropolitan-district-council/walsall ,WC141-241,31.08.2022,CHILDRENS,ABS TAXIS (ALDRIDGE),16/08/2022,907.00,6241-Hire of Vehicle with Driver,TRANSPORT,DIRECT TRANSPORT COSTS,REVENUE
Walsall Council,http://opendatacommunities.org/id/metropolitan-district-council/walsall ,WC141-242,31.08.2022,CHILDRENS,ABS TAXIS (ALDRIDGE),16/08/2022,"1,283.10",6241-Hire of Vehicle with Driver,TRANSPORT,DIRECT TRANSPORT COSTS,REVENUE
Walsall Council,http://opendatacommunities.org/id/metropolitan-district-council/walsall ,WC141-243,31.08.2022,CHILDRENS,ABS TAXIS (ALDRIDGE),16/08/2022,"1,173.20",6241-Hire of Vehicle with Driver,TRANSPORT,DIRECT TRANSPORT COSTS,REVENUE
Walsall Council,http://opendatacommunities.org/id/metropolitan-district-council/walsall ,WC141-244,31.08.2022,CHILDRENS,ABSOLUTE INTERPRETING & TRANSLATIONS LTD,22/08/2022,450.00,6222-Language & Interpretation Services,SUPPLIES & SERVICES,SERVICES,REVENUE
Walsall Council,http://opendatacommunities.org/id/metropolitan-district-council/walsall ,WC141-245,31.08.2022,CHILDRENS,ABSOLUTE INTERPRETING & TRANSLATIONS LTD,22/08/2022,275.00,6222-Language & Interpretation Services,SUPPLIES & SERVICES,SERVICES,REVENUE
Walsall Council,http://opendatacommunities.org/id/metropolitan-district-council/walsall ,WC141-246,31.08.2022,CHILDRENS,ABSOLUTE INTERPRETING & TRANSLATIONS LTD,23/08/2022,300.00,6222-Language & Interpretation Services,SUPPLIES & SERVICES,SERVICES,REVENUE
Walsall Council,http://opendatacommunities.org/id/metropolitan-district-council/walsall ,WC141-247,31.08.2022,CHILDRENS,ABSOLUTE INTERPRETING & TRANSLATIONS LTD,23/08/2022,375.00,6222-Language & Interpretation Services,SUPPLIES & SERVICES,SERVICES,REVENUE
Walsall Council,http://opendatacommunities.org/id/metropolitan-district-council/walsall ,WC141-248,31.08.2022,CHILDRENS,ACCALIA CARE SERVICES LTD,09/08/2022,"20,960.00",6223-External Residential Care-Oth Agency Provision,THIRD PARTY PAYMENTS,PRIVATE CONTRACTOR,REVENUE
Walsall Council,http://opendatacommunities.org/id/metropolitan-district-council/walsall ,WC141-249,31.08.2022,RESOURCES AND TRANSFORMATION,ACCESS SYSTEMS (UK) LTD,11/08/2022,500.00,6623-Computer Equipment,SUPPLIES & SERVICES,COMMUNICATIONS & COMPUTING,REVENUE
Walsall Council,http://opendatacommunities.org/id/metropolitan-district-council/walsall ,WC141-250,31.08.2022,ADULT SOCIAL CARE,ACCESS UK LTD ,17/08/2022,"1,000.00",6551-Professional Fees & Services,SUPPLIES & SERVICES,SERVICES,REVENUE
Walsall Council,http://opendatacommunities.org/id/metropolitan-district-council/walsall ,WC141-251,31.08.2022,ADULT SOCIAL CARE,ACCESS UK LTD ,17/08/2022,"4,687.00",6551-Professional Fees & Services,SUPPLIES & SERVICES,SERVICES,REVENUE
Walsall Council,http://opendatacommunities.org/id/metropolitan-district-council/walsall ,WC141-252,31.08.2022,ADULT SOCIAL CARE,ACCESS UK LTD ,17/08/2022,"4,800.00",6551-Professional Fees & Services,SUPPLIES & SERVICES,SERVICES,REVENUE
Walsall Council,http://opendatacommunities.org/id/metropolitan-district-council/walsall ,WC141-253,31.08.2022,ADULT SOCIAL CARE,ACCESS UK LTD ,17/08/2022,"28,665.00",6551-Professional Fees & Services,SUPPLIES & SERVICES,SERVICES,REVENUE
Walsall Council,http://opendatacommunities.org/id/metropolitan-district-council/walsall ,WC141-254,31.08.2022,ADULT SOCIAL CARE,ACCESS UK LTD ,17/08/2022,"50,633.00",6551-Professional Fees & Services,SUPPLIES & SERVICES,SERVICES,REVENUE
Walsall Council,http://opendatacommunities.org/id/metropolitan-district-council/walsall ,WC141-255,31.08.2022,ADULT SOCIAL CARE,ACCESS UK LTD ,08/08/2022,"18,315.00",6551-Professional Fees & Services,SUPPLIES & SERVICES,SERVICES,REVENUE
Walsall Council,http://opendatacommunities.org/id/metropolitan-district-council/walsall ,WC141-256,31.08.2022,ADULT SOCIAL CARE,ACCESS UK LTD ,26/08/2022,"1,425.00",6551-Computer Equipment,SUPPLIES & SERVICES,COMMUNICATIONS & COMPUTING,REVENUE
Walsall Council,http://opendatacommunities.org/id/metropolitan-district-council/walsall ,WC141-257,31.08.2022,ADULT SOCIAL CARE,ACCOMPLISH GROUP LTD,02/08/2022,"7,912.44",6541-Residential,THIRD PARTY PAYMENTS,PRIVATE CONTRACTOR,REVENUE
Walsall Council,http://opendatacommunities.org/id/metropolitan-district-council/walsall ,WC141-258,31.08.2022,ADULT SOCIAL CARE,ACCOMPLISH GROUP LTD,26/08/2022,"7,912.44",6541-Residential,THIRD PARTY PAYMENTS,PRIVATE CONTRACTOR,REVENUE
Walsall Council,http://opendatacommunities.org/id/metropolitan-district-council/walsall ,WC141-259,31.08.2022,ADULT SOCIAL CARE,ACCORD - AGE MATTERS,03/08/2022,"1,059.36",6553-Direct Payments Support,TRANSFER PAYMENTS,ADULT SOCIAL SERVICES CLIENT,REVENUE
Walsall Council,http://opendatacommunities.org/id/metropolitan-district-council/walsall ,WC141-260,31.08.2022,ADULT SOCIAL CARE,ACCORD HOUSING ASSOCIATION LIMITED - HOBS MEADOW,02/08/2022,"4,960.90",6541-Residential,THIRD PARTY PAYMENTS,PRIVATE CONTRACTOR,REVENUE
Walsall Council,http://opendatacommunities.org/id/metropolitan-district-council/walsall ,WC141-261,31.08.2022,ADULT SOCIAL CARE,ACCORD HOUSING ASSOCIATION LIMITED - HOBS MEADOW,02/08/2022,"4,776.84",6541-Residential,THIRD PARTY PAYMENTS,PRIVATE CONTRACTOR,REVENUE
Walsall Council,http://opendatacommunities.org/id/metropolitan-district-council/walsall ,WC141-262,31.08.2022,ADULT SOCIAL CARE,ACCORD HOUSING ASSOCIATION LIMITED - HOBS MEADOW,02/08/2022,"4,776.84",6541-Residential,THIRD PARTY PAYMENTS,PRIVATE CONTRACTOR,REVENUE
Walsall Council,http://opendatacommunities.org/id/metropolitan-district-council/walsall ,WC141-263,31.08.2022,ADULT SOCIAL CARE,ACCORD HOUSING ASSOCIATION LIMITED - HOBS MEADOW,02/08/2022,"4,776.84",6541-Residential,THIRD PARTY PAYMENTS,PRIVATE CONTRACTOR,REVENUE
Walsall Council,http://opendatacommunities.org/id/metropolitan-district-council/walsall ,WC141-264,31.08.2022,ADULT SOCIAL CARE,ACCORD HOUSING ASSOCIATION LIMITED - HOBS MEADOW,26/08/2022,"4,776.84",6541-Residential,THIRD PARTY PAYMENTS,PRIVATE CONTRACTOR,REVENUE
Walsall Council,http://opendatacommunities.org/id/metropolitan-district-council/walsall ,WC141-265,31.08.2022,ADULT SOCIAL CARE,ACCORD HOUSING ASSOCIATION LIMITED - HOBS MEADOW,26/08/2022,"4,776.84",6541-Residential,THIRD PARTY PAYMENTS,PRIVATE CONTRACTOR,REVENUE
Walsall Council,http://opendatacommunities.org/id/metropolitan-district-council/walsall ,WC141-266,31.08.2022,ADULT SOCIAL CARE,ACCORD HOUSING ASSOCIATION LIMITED - HOBS MEADOW,26/08/2022,"4,776.84",6541-Residential,THIRD PARTY PAYMENTS,PRIVATE CONTRACTOR,REVENUE
Walsall Council,http://opendatacommunities.org/id/metropolitan-district-council/walsall ,WC141-267,31.08.2022,ADULT SOCIAL CARE,ACCORD HOUSING ASSOCIATION LIMITED - HOBS MEADOW,26/08/2022,"4,776.84",6541-Residential,THIRD PARTY PAYMENTS,PRIVATE CONTRACTOR,REVENUE
Walsall Council,http://opendatacommunities.org/id/metropolitan-district-council/walsall ,WC141-268,31.08.2022,CHILDRENS,ACE CARS & MINIBUSES LTD,16/08/2022,"1,498.00",6241-Hire of Vehicle with Driver,TRANSPORT,DIRECT TRANSPORT COSTS,REVENUE
Walsall Council,http://opendatacommunities.org/id/metropolitan-district-council/walsall ,WC141-269,31.08.2022,CHILDRENS,ACE CARS & MINIBUSES LTD,16/08/2022,"1,652.00",6241-Hire of Vehicle with Driver,TRANSPORT,DIRECT TRANSPORT COSTS,REVENUE
Walsall Council,http://opendatacommunities.org/id/metropolitan-district-council/walsall ,WC141-270,31.08.2022,CHILDRENS,ACE CARS & MINIBUSES LTD,16/08/2022,"2,648.66",6241-Hire of Vehicle with Driver,TRANSPORT,DIRECT TRANSPORT COSTS,REVENUE
Walsall Council,http://opendatacommunities.org/id/metropolitan-district-council/walsall ,WC141-271,31.08.2022,CHILDRENS,ACE CARS & MINIBUSES LTD,16/08/2022,"1,905.40",6241-Hire of Vehicle with Driver,TRANSPORT,DIRECT TRANSPORT COSTS,REVENUE
Walsall Council,http://opendatacommunities.org/id/metropolitan-district-council/walsall ,WC141-272,31.08.2022,CHILDRENS,ACE CARS & MINIBUSES LTD,16/08/2022,"2,153.06",6241-Hire of Vehicle with Driver,TRANSPORT,DIRECT TRANSPORT COSTS,REVENUE
Walsall Council,http://opendatacommunities.org/id/metropolitan-district-council/walsall ,WC141-273,31.08.2022,CHILDRENS,ACE CARS & MINIBUSES LTD,16/08/2022,"1,652.00",6241-Hire of Vehicle with Driver,TRANSPORT,DIRECT TRANSPORT COSTS,REVENUE
Walsall Council,http://opendatacommunities.org/id/metropolitan-district-council/walsall ,WC141-274,31.08.2022,CHILDRENS,ACE CARS & MINIBUSES LTD,16/08/2022,"1,883.28",6241-Hire of Vehicle with Driver,TRANSPORT,DIRECT TRANSPORT COSTS,REVENUE
Walsall Council,http://opendatacommunities.org/id/metropolitan-district-council/walsall ,WC141-275,31.08.2022,CHILDRENS,ACE CARS & MINIBUSES LTD,16/08/2022,"1,751.12",6241-Hire of Vehicle with Driver,TRANSPORT,DIRECT TRANSPORT COSTS,REVENUE
Walsall Council,http://opendatacommunities.org/id/metropolitan-district-council/walsall ,WC141-276,31.08.2022,CHILDRENS,ACE CARS & MINIBUSES LTD,16/08/2022,"1,652.00",6241-Hire of Vehicle with Driver,TRANSPORT,DIRECT TRANSPORT COSTS,REVENUE
Walsall Council,http://opendatacommunities.org/id/metropolitan-district-council/walsall ,WC141-277,31.08.2022,CHILDRENS,ACE CARS & MINIBUSES LTD,16/08/2022,"1,596.00",6241-Hire of Vehicle with Driver,TRANSPORT,DIRECT TRANSPORT COSTS,REVENUE
Walsall Council,http://opendatacommunities.org/id/metropolitan-district-council/walsall ,WC141-278,31.08.2022,CHILDRENS,ACE CARS & MINIBUSES LTD,16/08/2022,"1,673.00",6241-Hire of Vehicle with Driver,TRANSPORT,DIRECT TRANSPORT COSTS,REVENUE
Walsall Council,http://opendatacommunities.org/id/metropolitan-district-council/walsall ,WC141-279,31.08.2022,CHILDRENS,ACE CARS & MINIBUSES LTD,16/08/2022,"1,498.00",6241-Hire of Vehicle with Driver,TRANSPORT,DIRECT TRANSPORT COSTS,REVENUE
Walsall Council,http://opendatacommunities.org/id/metropolitan-district-council/walsall ,WC141-280,31.08.2022,CHILDRENS,ACE CARS & MINIBUSES LTD,16/08/2022,"1,498.00",6241-Hire of Vehicle with Driver,TRANSPORT,DIRECT TRANSPORT COSTS,REVENUE
Walsall Council,http://opendatacommunities.org/id/metropolitan-district-council/walsall ,WC141-281,31.08.2022,CHILDRENS,ACE CARS & MINIBUSES LTD,16/08/2022,"1,652.00",6241-Hire of Vehicle with Driver,TRANSPORT,DIRECT TRANSPORT COSTS,REVENUE
Walsall Council,http://opendatacommunities.org/id/metropolitan-district-council/walsall ,WC141-282,31.08.2022,CHILDRENS,ACE CARS & MINIBUSES LTD,16/08/2022,"1,673.00",6241-Hire of Vehicle with Driver,TRANSPORT,DIRECT TRANSPORT COSTS,REVENUE
Walsall Council,http://opendatacommunities.org/id/metropolitan-district-council/walsall ,WC141-283,31.08.2022,CHILDRENS,ACE CARS & MINIBUSES LTD,16/08/2022,"2,041.50",6241-Hire of Vehicle with Driver,TRANSPORT,DIRECT TRANSPORT COSTS,REVENUE
Walsall Council,http://opendatacommunities.org/id/metropolitan-district-council/walsall ,WC141-284,31.08.2022,CHILDRENS,ACE CARS & MINIBUSES LTD,16/08/2022,"1,905.40",6241-Hire of Vehicle with Driver,TRANSPORT,DIRECT TRANSPORT COSTS,REVENUE
Walsall Council,http://opendatacommunities.org/id/metropolitan-district-council/walsall ,WC141-285,31.08.2022,CHILDRENS,ACE CARS & MINIBUSES LTD,16/08/2022,"1,498.00",6241-Hire of Vehicle with Driver,TRANSPORT,DIRECT TRANSPORT COSTS,REVENUE
Walsall Council,http://opendatacommunities.org/id/metropolitan-district-council/walsall ,WC141-286,31.08.2022,CHILDRENS,ACE CARS & MINIBUSES LTD,16/08/2022,"1,498.00",6241-Hire of Vehicle with Driver,TRANSPORT,DIRECT TRANSPORT COSTS,REVENUE
Walsall Council,http://opendatacommunities.org/id/metropolitan-district-council/walsall ,WC141-287,31.08.2022,CHILDRENS,ACE CARS & MINIBUSES LTD,16/08/2022,"1,596.00",6241-Hire of Vehicle with Driver,TRANSPORT,DIRECT TRANSPORT COSTS,REVENUE
Walsall Council,http://opendatacommunities.org/id/metropolitan-district-council/walsall ,WC141-288,31.08.2022,CHILDRENS,ACE CARS & MINIBUSES LTD,16/08/2022,"1,673.00",6241-Hire of Vehicle with Driver,TRANSPORT,DIRECT TRANSPORT COSTS,REVENUE
Walsall Council,http://opendatacommunities.org/id/metropolitan-district-council/walsall ,WC141-289,31.08.2022,CHILDRENS,ACE CARS & MINIBUSES LTD,16/08/2022,"1,596.00",6241-Hire of Vehicle with Driver,TRANSPORT,DIRECT TRANSPORT COSTS,REVENUE
Walsall Council,http://opendatacommunities.org/id/metropolitan-district-council/walsall ,WC141-290,31.08.2022,CHILDRENS,ACE CARS & MINIBUSES LTD,16/08/2022,"1,498.00",6241-Hire of Vehicle with Driver,TRANSPORT,DIRECT TRANSPORT COSTS,REVENUE
Walsall Council,http://opendatacommunities.org/id/metropolitan-district-council/walsall ,WC141-291,31.08.2022,CHILDRENS,ACE CARS & MINIBUSES LTD,16/08/2022,"1,498.00",6241-Hire of Vehicle with Driver,TRANSPORT,DIRECT TRANSPORT COSTS,REVENUE
Walsall Council,http://opendatacommunities.org/id/metropolitan-district-council/walsall ,WC141-292,31.08.2022,CHILDRENS,ACE CARS & MINIBUSES LTD,16/08/2022,"2,219.00",6241-Hire of Vehicle with Driver,TRANSPORT,DIRECT TRANSPORT COSTS,REVENUE
Walsall Council,http://opendatacommunities.org/id/metropolitan-district-council/walsall ,WC141-293,31.08.2022,CHILDRENS,ACE CARS & MINIBUSES LTD,16/08/2022,"1,673.00",6241-Hire of Vehicle with Driver,TRANSPORT,DIRECT TRANSPORT COSTS,REVENUE
Walsall Council,http://opendatacommunities.org/id/metropolitan-district-council/walsall ,WC141-294,31.08.2022,CHILDRENS,ACE CARS & MINIBUSES LTD,16/08/2022,"1,792.50",6241-Hire of Vehicle with Driver,TRANSPORT,DIRECT TRANSPORT COSTS,REVENUE
Walsall Council,http://opendatacommunities.org/id/metropolitan-district-council/walsall ,WC141-295,31.08.2022,CHILDRENS,ACE CARS & MINIBUSES LTD,16/08/2022,"1,673.00",6241-Hire of Vehicle with Driver,TRANSPORT,DIRECT TRANSPORT COSTS,REVENUE
Walsall Council,http://opendatacommunities.org/id/metropolitan-district-council/walsall ,WC141-296,31.08.2022,CHILDRENS,ACE CARS & MINIBUSES LTD,16/08/2022,"1,905.40",6241-Hire of Vehicle with Driver,TRANSPORT,DIRECT TRANSPORT COSTS,REVENUE
Walsall Council,http://opendatacommunities.org/id/metropolitan-district-council/walsall ,WC141-297,31.08.2022,CHILDRENS,ACE CARS & MINIBUSES LTD,16/08/2022,"1,905.40",6241-Hire of Vehicle with Driver,TRANSPORT,DIRECT TRANSPORT COSTS,REVENUE
Walsall Council,http://opendatacommunities.org/id/metropolitan-district-council/walsall ,WC141-298,31.08.2022,CHILDRENS,ACE CARS & MINIBUSES LTD,16/08/2022,"2,316.00",6241-Hire of Vehicle with Driver,TRANSPORT,DIRECT TRANSPORT COSTS,REVENUE
Walsall Council,http://opendatacommunities.org/id/metropolitan-district-council/walsall ,WC141-299,31.08.2022,CHILDRENS,ACE CARS & MINIBUSES LTD,16/08/2022,"1,498.00",6241-Hire of Vehicle with Driver,TRANSPORT,DIRECT TRANSPORT COSTS,REVENUE
Walsall Council,http://opendatacommunities.org/id/metropolitan-district-council/walsall ,WC141-300,31.08.2022,CHILDRENS,ACE CARS & MINIBUSES LTD,16/08/2022,"2,973.60",6241-Hire of Vehicle with Driver,TRANSPORT,DIRECT TRANSPORT COSTS,REVENUE
Walsall Council,http://opendatacommunities.org/id/metropolitan-district-council/walsall ,WC141-301,31.08.2022,CHILDRENS,ACE CARS & MINIBUSES LTD,16/08/2022,"1,498.00",6241-Hire of Vehicle with Driver,TRANSPORT,DIRECT TRANSPORT COSTS,REVENUE
Walsall Council,http://opendatacommunities.org/id/metropolitan-district-council/walsall ,WC141-302,31.08.2022,CHILDRENS,ACE CARS & MINIBUSES LTD,16/08/2022,"1,905.40",6241-Hire of Vehicle with Driver,TRANSPORT,DIRECT TRANSPORT COSTS,REVENUE
Walsall Council,http://opendatacommunities.org/id/metropolitan-district-council/walsall ,WC141-303,31.08.2022,CHILDRENS,ACE CARS & MINIBUSES LTD,16/08/2022,"1,652.00",6241-Hire of Vehicle with Driver,TRANSPORT,DIRECT TRANSPORT COSTS,REVENUE
Walsall Council,http://opendatacommunities.org/id/metropolitan-district-council/walsall ,WC141-304,31.08.2022,CHILDRENS,ACE CARS & MINIBUSES LTD,16/08/2022,"1,596.00",6241-Hire of Vehicle with Driver,TRANSPORT,DIRECT TRANSPORT COSTS,REVENUE
Walsall Council,http://opendatacommunities.org/id/metropolitan-district-council/walsall ,WC141-305,31.08.2022,CHILDRENS,ACE CARS & MINIBUSES LTD,16/08/2022,"2,180.64",6241-Hire of Vehicle with Driver,TRANSPORT,DIRECT TRANSPORT COSTS,REVENUE
Walsall Council,http://opendatacommunities.org/id/metropolitan-district-council/walsall ,WC141-306,31.08.2022,ADULT SOCIAL CARE,ACEPAY LTD (COTTAGE NUR HOME),02/08/2022,"2,456.24",6541-Nursing,THIRD PARTY PAYMENTS,PRIVATE CONTRACTOR,REVENUE
Walsall Council,http://opendatacommunities.org/id/metropolitan-district-council/walsall ,WC141-307,31.08.2022,ADULT SOCIAL CARE,ACEPAY LTD (COTTAGE NUR HOME),02/08/2022,"2,456.24",6541-Nursing,THIRD PARTY PAYMENTS,PRIVATE CONTRACTOR,REVENUE
Walsall Council,http://opendatacommunities.org/id/metropolitan-district-council/walsall ,WC141-308,31.08.2022,ADULT SOCIAL CARE,ACEPAY LTD (COTTAGE NUR HOME),02/08/2022,"2,456.24",6541-Nursing,THIRD PARTY PAYMENTS,PRIVATE CONTRACTOR,REVENUE
Walsall Council,http://opendatacommunities.org/id/metropolitan-district-council/walsall ,WC141-309,31.08.2022,ADULT SOCIAL CARE,ACEPAY LTD (COTTAGE NUR HOME),02/08/2022,"2,366.04",6541-Residential EMI,THIRD PARTY PAYMENTS,PRIVATE CONTRACTOR,REVENUE
Walsall Council,http://opendatacommunities.org/id/metropolitan-district-council/walsall ,WC141-310,31.08.2022,ADULT SOCIAL CARE,ACEPAY LTD (COTTAGE NUR HOME),02/08/2022,"2,456.24",6541-Nursing,THIRD PARTY PAYMENTS,PRIVATE CONTRACTOR,REVENUE
Walsall Council,http://opendatacommunities.org/id/metropolitan-district-council/walsall ,WC141-311,31.08.2022,ADULT SOCIAL CARE,ACEPAY LTD (COTTAGE NUR HOME),02/08/2022,"2,456.24",6541-Nursing,THIRD PARTY PAYMENTS,PRIVATE CONTRACTOR,REVENUE
Walsall Council,http://opendatacommunities.org/id/metropolitan-district-council/walsall ,WC141-312,31.08.2022,ADULT SOCIAL CARE,ACEPAY LTD (COTTAGE NUR HOME),02/08/2022,"2,656.24",6541-Nursing,THIRD PARTY PAYMENTS,PRIVATE CONTRACTOR,REVENUE
Walsall Council,http://opendatacommunities.org/id/metropolitan-district-council/walsall ,WC141-313,31.08.2022,ADULT SOCIAL CARE,ACEPAY LTD (COTTAGE NUR HOME),02/08/2022,"2,763.80",6541-Nursing EMI,THIRD PARTY PAYMENTS,PRIVATE CONTRACTOR,REVENUE
Walsall Council,http://opendatacommunities.org/id/metropolitan-district-council/walsall ,WC141-314,31.08.2022,ADULT SOCIAL CARE,ACEPAY LTD (COTTAGE NUR HOME),02/08/2022,"2,366.04",6541-Residential EMI,THIRD PARTY PAYMENTS,PRIVATE CONTRACTOR,REVENUE
Walsall Council,http://opendatacommunities.org/id/metropolitan-district-council/walsall ,WC141-315,31.08.2022,ADULT SOCIAL CARE,ACEPAY LTD (COTTAGE NUR HOME),02/08/2022,"2,456.24",6541-Nursing,THIRD PARTY PAYMENTS,PRIVATE CONTRACTOR,REVENUE
Walsall Council,http://opendatacommunities.org/id/metropolitan-district-council/walsall ,WC141-316,31.08.2022,ADULT SOCIAL CARE,ACEPAY LTD (COTTAGE NUR HOME),02/08/2022,"2,456.24",6541-Nursing,THIRD PARTY PAYMENTS,PRIVATE CONTRACTOR,REVENUE
Walsall Council,http://opendatacommunities.org/id/metropolitan-district-council/walsall ,WC141-317,31.08.2022,ADULT SOCIAL CARE,ACEPAY LTD (COTTAGE NUR HOME),02/08/2022,"2,095.40",6541-Residential,THIRD PARTY PAYMENTS,PRIVATE CONTRACTOR,REVENUE
Walsall Council,http://opendatacommunities.org/id/metropolitan-district-council/walsall ,WC141-318,31.08.2022,ADULT SOCIAL CARE,ACEPAY LTD (COTTAGE NUR HOME),02/08/2022,"2,456.24",6541-Nursing,THIRD PARTY PAYMENTS,PRIVATE CONTRACTOR,REVENUE
Walsall Council,http://opendatacommunities.org/id/metropolitan-district-council/walsall ,WC141-319,31.08.2022,ADULT SOCIAL CARE,ACEPAY LTD (COTTAGE NUR HOME),02/08/2022,"2,456.24",6541-Nursing,THIRD PARTY PAYMENTS,PRIVATE CONTRACTOR,REVENUE
Walsall Council,http://opendatacommunities.org/id/metropolitan-district-council/walsall ,WC141-320,31.08.2022,ADULT SOCIAL CARE,ACEPAY LTD (COTTAGE NUR HOME),02/08/2022,"2,020.56",6541-Residential,THIRD PARTY PAYMENTS,PRIVATE CONTRACTOR,REVENUE
Walsall Council,http://opendatacommunities.org/id/metropolitan-district-council/walsall ,WC141-321,31.08.2022,ADULT SOCIAL CARE,ACEPAY LTD (COTTAGE NUR HOME),02/08/2022,"2,366.04",6541-Residential EMI,THIRD PARTY PAYMENTS,PRIVATE CONTRACTOR,REVENUE
Walsall Council,http://opendatacommunities.org/id/metropolitan-district-council/walsall ,WC141-322,31.08.2022,ADULT SOCIAL CARE,ACEPAY LTD (COTTAGE NUR HOME),02/08/2022,"2,763.80",6541-Nursing EMI,THIRD PARTY PAYMENTS,PRIVATE CONTRACTOR,REVENUE
Walsall Council,http://opendatacommunities.org/id/metropolitan-district-council/walsall ,WC141-323,31.08.2022,ADULT SOCIAL CARE,ACEPAY LTD (COTTAGE NUR HOME),02/08/2022,"2,763.80",6541-Nursing EMI,THIRD PARTY PAYMENTS,PRIVATE CONTRACTOR,REVENUE
Walsall Council,http://opendatacommunities.org/id/metropolitan-district-council/walsall ,WC141-324,31.08.2022,ADULT SOCIAL CARE,ACEPAY LTD (COTTAGE NUR HOME),02/08/2022,"2,456.24",6541-Nursing,THIRD PARTY PAYMENTS,PRIVATE CONTRACTOR,REVENUE
Walsall Council,http://opendatacommunities.org/id/metropolitan-district-council/walsall ,WC141-325,31.08.2022,ADULT SOCIAL CARE,ACEPAY LTD (COTTAGE NUR HOME),02/08/2022,"2,456.24",6541-Nursing,THIRD PARTY PAYMENTS,PRIVATE CONTRACTOR,REVENUE
Walsall Council,http://opendatacommunities.org/id/metropolitan-district-council/walsall ,WC141-326,31.08.2022,ADULT SOCIAL CARE,ACEPAY LTD (COTTAGE NUR HOME),26/08/2022,"2,456.24",6541-Nursing,THIRD PARTY PAYMENTS,PRIVATE CONTRACTOR,REVENUE
Walsall Council,http://opendatacommunities.org/id/metropolitan-district-council/walsall ,WC141-327,31.08.2022,ADULT SOCIAL CARE,ACEPAY LTD (COTTAGE NUR HOME),26/08/2022,"2,456.24",6541-Nursing,THIRD PARTY PAYMENTS,PRIVATE CONTRACTOR,REVENUE
Walsall Council,http://opendatacommunities.org/id/metropolitan-district-council/walsall ,WC141-328,31.08.2022,ADULT SOCIAL CARE,ACEPAY LTD (COTTAGE NUR HOME),26/08/2022,"2,366.04",6541-Residential EMI,THIRD PARTY PAYMENTS,PRIVATE CONTRACTOR,REVENUE
Walsall Council,http://opendatacommunities.org/id/metropolitan-district-council/walsall ,WC141-329,31.08.2022,ADULT SOCIAL CARE,ACEPAY LTD (COTTAGE NUR HOME),26/08/2022,"2,456.24",6541-Nursing,THIRD PARTY PAYMENTS,PRIVATE CONTRACTOR,REVENUE
Walsall Council,http://opendatacommunities.org/id/metropolitan-district-council/walsall ,WC141-330,31.08.2022,ADULT SOCIAL CARE,ACEPAY LTD (COTTAGE NUR HOME),26/08/2022,"2,456.24",6541-Nursing,THIRD PARTY PAYMENTS,PRIVATE CONTRACTOR,REVENUE
Walsall Council,http://opendatacommunities.org/id/metropolitan-district-council/walsall ,WC141-331,31.08.2022,ADULT SOCIAL CARE,ACEPAY LTD (COTTAGE NUR HOME),26/08/2022,"2,095.40",6541-Residential,THIRD PARTY PAYMENTS,PRIVATE CONTRACTOR,REVENUE
Walsall Council,http://opendatacommunities.org/id/metropolitan-district-council/walsall ,WC141-332,31.08.2022,ADULT SOCIAL CARE,ACEPAY LTD (COTTAGE NUR HOME),26/08/2022,"2,456.24",6541-Nursing,THIRD PARTY PAYMENTS,PRIVATE CONTRACTOR,REVENUE
Walsall Council,http://opendatacommunities.org/id/metropolitan-district-council/walsall ,WC141-333,31.08.2022,ADULT SOCIAL CARE,ACEPAY LTD (COTTAGE NUR HOME),26/08/2022,"2,456.24",6541-Nursing,THIRD PARTY PAYMENTS,PRIVATE CONTRACTOR,REVENUE
Walsall Council,http://opendatacommunities.org/id/metropolitan-district-council/walsall ,WC141-334,31.08.2022,ADULT SOCIAL CARE,ACEPAY LTD (COTTAGE NUR HOME),26/08/2022,"2,366.04",6541-Residential EMI,THIRD PARTY PAYMENTS,PRIVATE CONTRACTOR,REVENUE
Walsall Council,http://opendatacommunities.org/id/metropolitan-district-council/walsall ,WC141-335,31.08.2022,ADULT SOCIAL CARE,ACEPAY LTD (COTTAGE NUR HOME),26/08/2022,"2,456.24",6541-Nursing,THIRD PARTY PAYMENTS,PRIVATE CONTRACTOR,REVENUE
Walsall Council,http://opendatacommunities.org/id/metropolitan-district-council/walsall ,WC141-336,31.08.2022,ADULT SOCIAL CARE,ACEPAY LTD (COTTAGE NUR HOME),26/08/2022,"2,456.24",6541-Nursing,THIRD PARTY PAYMENTS,PRIVATE CONTRACTOR,REVENUE
Walsall Council,http://opendatacommunities.org/id/metropolitan-district-council/walsall ,WC141-337,31.08.2022,ADULT SOCIAL CARE,ACEPAY LTD (COTTAGE NUR HOME),26/08/2022,"2,656.24",6541-Nursing,THIRD PARTY PAYMENTS,PRIVATE CONTRACTOR,REVENUE
Walsall Council,http://opendatacommunities.org/id/metropolitan-district-council/walsall ,WC141-338,31.08.2022,ADULT SOCIAL CARE,ACEPAY LTD (COTTAGE NUR HOME),26/08/2022,"2,763.80",6541-Nursing EMI,THIRD PARTY PAYMENTS,PRIVATE CONTRACTOR,REVENUE
Walsall Council,http://opendatacommunities.org/id/metropolitan-district-council/walsall ,WC141-339,31.08.2022,ADULT SOCIAL CARE,ACEPAY LTD (COTTAGE NUR HOME),26/08/2022,"2,763.80",6541-Nursing EMI,THIRD PARTY PAYMENTS,PRIVATE CONTRACTOR,REVENUE
Walsall Council,http://opendatacommunities.org/id/metropolitan-district-council/walsall ,WC141-340,31.08.2022,ADULT SOCIAL CARE,ACEPAY LTD (COTTAGE NUR HOME),26/08/2022,"2,456.24",6541-Nursing,THIRD PARTY PAYMENTS,PRIVATE CONTRACTOR,REVENUE
Walsall Council,http://opendatacommunities.org/id/metropolitan-district-council/walsall ,WC141-341,31.08.2022,ADULT SOCIAL CARE,ACEPAY LTD (COTTAGE NUR HOME),26/08/2022,"2,763.80",6541-Nursing EMI,THIRD PARTY PAYMENTS,PRIVATE CONTRACTOR,REVENUE
Walsall Council,http://opendatacommunities.org/id/metropolitan-district-council/walsall ,WC141-342,31.08.2022,ADULT SOCIAL CARE,ACEPAY LTD (COTTAGE NUR HOME),26/08/2022,"2,456.24",6541-Nursing,THIRD PARTY PAYMENTS,PRIVATE CONTRACTOR,REVENUE
Walsall Council,http://opendatacommunities.org/id/metropolitan-district-council/walsall ,WC141-343,31.08.2022,ADULT SOCIAL CARE,ACEPAY LTD (COTTAGE NUR HOME),26/08/2022,"2,366.04",6541-Residential EMI,THIRD PARTY PAYMENTS,PRIVATE CONTRACTOR,REVENUE
Walsall Council,http://opendatacommunities.org/id/metropolitan-district-council/walsall ,WC141-344,31.08.2022,ADULT SOCIAL CARE,ACHIEVE TOGETHER LIMITED,02/08/2022,"5,424.72",6541-Residential,THIRD PARTY PAYMENTS,PRIVATE CONTRACTOR,REVENUE
Walsall Council,http://opendatacommunities.org/id/metropolitan-district-council/walsall ,WC141-345,31.08.2022,ADULT SOCIAL CARE,ACHIEVE TOGETHER LIMITED,02/08/2022,"7,361.20",6541-Residential,THIRD PARTY PAYMENTS,PRIVATE CONTRACTOR,REVENUE
Walsall Council,http://opendatacommunities.org/id/metropolitan-district-council/walsall ,WC141-346,31.08.2022,ADULT SOCIAL CARE,ACHIEVE TOGETHER LIMITED,02/08/2022,"3,852.80",6541-Residential,THIRD PARTY PAYMENTS,PRIVATE CONTRACTOR,REVENUE
Walsall Council,http://opendatacommunities.org/id/metropolitan-district-council/walsall ,WC141-347,31.08.2022,ADULT SOCIAL CARE,ACHIEVE TOGETHER LIMITED,02/08/2022,"39,046.31",6541-Residential,THIRD PARTY PAYMENTS,PRIVATE CONTRACTOR,REVENUE
Walsall Council,http://opendatacommunities.org/id/metropolitan-district-council/walsall ,WC141-348,31.08.2022,ADULT SOCIAL CARE,ACHIEVE TOGETHER LIMITED,02/08/2022,"75,854.03",6541-Residential,THIRD PARTY PAYMENTS,PRIVATE CONTRACTOR,REVENUE
Walsall Council,http://opendatacommunities.org/id/metropolitan-district-council/walsall ,WC141-349,31.08.2022,ADULT SOCIAL CARE,ACHIEVE TOGETHER LIMITED,26/08/2022,"7,361.20",6541-Residential,THIRD PARTY PAYMENTS,PRIVATE CONTRACTOR,REVENUE
Walsall Council,http://opendatacommunities.org/id/metropolitan-district-council/walsall ,WC141-350,31.08.2022,ADULT SOCIAL CARE,ACHIEVE TOGETHER LIMITED,26/08/2022,"5,799.56",6541-Residential,THIRD PARTY PAYMENTS,PRIVATE CONTRACTOR,REVENUE
Walsall Council,http://opendatacommunities.org/id/metropolitan-district-council/walsall ,WC141-351,31.08.2022,ADULT SOCIAL CARE,ACHIEVE TOGETHER LIMITED,26/08/2022,"5,740.84",6541-Residential,THIRD PARTY PAYMENTS,PRIVATE CONTRACTOR,REVENUE
Walsall Council,http://opendatacommunities.org/id/metropolitan-district-council/walsall ,WC141-352,31.08.2022,ADULT SOCIAL CARE,ACHIEVE TOGETHER LIMITED,26/08/2022,"3,852.80",6541-Residential,THIRD PARTY PAYMENTS,PRIVATE CONTRACTOR,REVENUE
Walsall Council,http://opendatacommunities.org/id/metropolitan-district-council/walsall ,WC141-353,31.08.2022,ADULT SOCIAL CARE,ACHIEVE TOGETHER LIMITED,26/08/2022,"4,920.72",6541-Residential,THIRD PARTY PAYMENTS,PRIVATE CONTRACTOR,REVENUE
Walsall Council,http://opendatacommunities.org/id/metropolitan-district-council/walsall ,WC141-354,31.08.2022,CHILDRENS,ACIRE CARE LTD,12/08/2022,"3,064.29",6223-Accommodation and Related Costs-Assistance to S/S Clients,TRANSFER PAYMENTS,ADULT SOCIAL SERVICES CLIENT,REVENUE
Walsall Council,http://opendatacommunities.org/id/metropolitan-district-council/walsall ,WC141-355,31.08.2022,CHILDRENS,ACORN CARE & EDUCATION LTD (SALES),18/08/2022,"20,460.00",1220-Top Up Funding -Grants to Schools,SUPPLIES & SERVICES,GRANTS (EXP) & SUBSCRIPTIONS,REVENUE
Walsall Council,http://opendatacommunities.org/id/metropolitan-district-council/walsall ,WC141-356,31.08.2022,CHILDRENS,ACORN CARE & EDUCATION LTD (SALES),18/08/2022,"17,302.00",1220-Top Up Funding -Grants to Schools,SUPPLIES & SERVICES,GRANTS (EXP) & SUBSCRIPTIONS,REVENUE
Walsall Council,http://opendatacommunities.org/id/metropolitan-district-council/walsall ,WC141-357,31.08.2022,CHILDRENS,ACORN CARE & EDUCATION LTD (SALES),18/08/2022,"19,883.34",1220-Top Up Funding -Grants to Schools,SUPPLIES & SERVICES,GRANTS (EXP) & SUBSCRIPTIONS,REVENUE
Walsall Council,http://opendatacommunities.org/id/metropolitan-district-council/walsall ,WC141-358,31.08.2022,CHILDRENS,ACORN CARE & EDUCATION LTD (SALES),18/08/2022,"25,960.00",1220-Top Up Funding -Grants to Schools,SUPPLIES & SERVICES,GRANTS (EXP) & SUBSCRIPTIONS,REVENUE
Walsall Council,http://opendatacommunities.org/id/metropolitan-district-council/walsall ,WC141-359,31.08.2022,CHILDRENS,ACORN CARE & EDUCATION LTD (SALES),05/08/2022,"14,053.34",1220-Professional Fees & Services,SUPPLIES & SERVICES,SERVICES,REVENUE
Walsall Council,http://opendatacommunities.org/id/metropolitan-district-council/walsall ,WC141-360,31.08.2022,CHILDRENS,ACORN CARE & EDUCATION LTD (SALES),05/08/2022,"17,302.00",1220-Top Up Funding -Grants to Schools,SUPPLIES & SERVICES,GRANTS (EXP) & SUBSCRIPTIONS,REVENUE
Walsall Council,http://opendatacommunities.org/id/metropolitan-district-council/walsall ,WC141-361,31.08.2022,CHILDRENS,ACORN CARE & EDUCATION LTD (SALES),05/08/2022,"17,803.34",1220-Top Up Funding -Grants to Schools,SUPPLIES & SERVICES,GRANTS (EXP) & SUBSCRIPTIONS,REVENUE
Walsall Council,http://opendatacommunities.org/id/metropolitan-district-council/walsall ,WC141-362,31.08.2022,CHILDRENS,ACORN CARE & EDUCATION LTD (SALES),08/08/2022,"17,302.00",1220-Professional Fees & Services,SUPPLIES & SERVICES,SERVICES,REVENUE
Walsall Council,http://opendatacommunities.org/id/metropolitan-district-council/walsall ,WC141-363,31.08.2022,CHILDRENS,ACORN CARE & EDUCATION LTD (SALES),05/08/2022,"20,460.00",1220-Professional Fees & Services,SUPPLIES & SERVICES,SERVICES,REVENUE
Walsall Council,http://opendatacommunities.org/id/metropolitan-district-council/walsall ,WC141-364,31.08.2022,CHILDRENS,ACORN CARE & EDUCATION LTD (SALES),08/08/2022,"19,761.66",1220-Professional Fees & Services,SUPPLIES & SERVICES,SERVICES,REVENUE
Walsall Council,http://opendatacommunities.org/id/metropolitan-district-council/walsall ,WC141-365,31.08.2022,CHILDRENS,ACORN CARE & EDUCATION LTD (SALES),08/08/2022,"17,302.00",1220-Professional Fees & Services,SUPPLIES & SERVICES,SERVICES,REVENUE
Walsall Council,http://opendatacommunities.org/id/metropolitan-district-council/walsall ,WC141-366,31.08.2022,CHILDRENS,ACORN CARE & EDUCATION LTD (SALES),25/08/2022,"15,554.34",1220-Top Up Funding -Grants to Schools,SUPPLIES & SERVICES,GRANTS (EXP) & SUBSCRIPTIONS,REVENUE
Walsall Council,http://opendatacommunities.org/id/metropolitan-district-council/walsall ,WC141-367,31.08.2022,CHILDRENS,ACORN CARE & EDUCATION LTD (SALES),25/08/2022,"6,306.18",1220-Professional Fees & Services,SUPPLIES & SERVICES,SERVICES,REVENUE
Walsall Council,http://opendatacommunities.org/id/metropolitan-district-council/walsall ,WC141-368,31.08.2022,CHILDRENS,ACORN FOSTERING SERVICES LTD,09/08/2022,"3,216.00",6223-Independent Foster Care-Oth Agency Provision,THIRD PARTY PAYMENTS,PRIVATE CONTRACTOR,REVENUE
Walsall Council,http://opendatacommunities.org/id/metropolitan-district-council/walsall ,WC141-369,31.08.2022,"ECONOMY, ENVIRONMENT & COMMUNITIES",ACTION GRAPHICS & DISPLAY LTD,02/08/2022,307.20,6414-Outwork Print & Design,SUPPLIES & SERVICES,PRINTING STATIONERY & GENERAL OFFICE,REVENUE
Walsall Council,http://opendatacommunities.org/id/metropolitan-district-council/walsall ,WC141-370,31.08.2022,"ECONOMY, ENVIRONMENT & COMMUNITIES",ACTION GRAPHICS & DISPLAY LTD,31/08/2022,846.40,6414-Events & Visual Arts,SUPPLIES & SERVICES,SERVICES,REVENUE
Walsall Council,http://opendatacommunities.org/id/metropolitan-district-council/walsall ,WC141-371,31.08.2022,CHILDRENS,ACTIVE CARE SOLUTIONS LTD,09/08/2022,"3,445.08",6223-Independent Foster Care-Oth Agency Provision,THIRD PARTY PAYMENTS,PRIVATE CONTRACTOR,REVENUE
Walsall Council,http://opendatacommunities.org/id/metropolitan-district-council/walsall ,WC141-372,31.08.2022,"ECONOMY, ENVIRONMENT & COMMUNITIES",ACTIVE GYM LIMITED,25/08/2022,350.00,6413-Repair & Maintenance of Furniture & Equipment,SUPPLIES & SERVICES,EQUIPMENT FURNITURE & MATERIALS,REVENUE
Walsall Council,http://opendatacommunities.org/id/metropolitan-district-council/walsall ,WC141-373,31.08.2022,ADULT SOCIAL CARE,REDACTED,03/08/2022,715.40,6541-Direct Payment,THIRD PARTY PAYMENTS,PRIVATE CONTRACTOR,REVENUE
Walsall Council,http://opendatacommunities.org/id/metropolitan-district-council/walsall ,WC141-374,31.08.2022,ADULT SOCIAL CARE,REDACTED,03/08/2022,"2,083.20",6541-Direct Payment,THIRD PARTY PAYMENTS,PRIVATE CONTRACTOR,REVENUE
Walsall Council,http://opendatacommunities.org/id/metropolitan-district-council/walsall ,WC141-375,31.08.2022,ADULT SOCIAL CARE,ADVANCE HEALTH CARE (UK) LTD,25/08/2022,"2,265.04",6541-Domiciliary Care,THIRD PARTY PAYMENTS,PRIVATE CONTRACTOR,REVENUE
Walsall Council,http://opendatacommunities.org/id/metropolitan-district-council/walsall ,WC141-376,31.08.2022,ADULT SOCIAL CARE,ADVANCE HEALTH CARE (UK) LTD,25/08/2022,"2,504.62",6541-Domiciliary Care,THIRD PARTY PAYMENTS,PRIVATE CONTRACTOR,REVENUE
Walsall Council,http://opendatacommunities.org/id/metropolitan-district-council/walsall ,WC141-377,31.08.2022,ADULT SOCIAL CARE,ADVANCE HEALTH CARE (UK) LTD,25/08/2022,"1,042.80",6541-Domiciliary Care,THIRD PARTY PAYMENTS,PRIVATE CONTRACTOR,REVENUE
Walsall Council,http://opendatacommunities.org/id/metropolitan-district-council/walsall ,WC141-378,31.08.2022,ADULT SOCIAL CARE,ADVANCE HEALTH CARE (UK) LTD,25/08/2022,921.76,6541-Domiciliary Care,THIRD PARTY PAYMENTS,PRIVATE CONTRACTOR,REVENUE
Walsall Council,http://opendatacommunities.org/id/metropolitan-district-council/walsall ,WC141-379,31.08.2022,ADULT SOCIAL CARE,ADVANCE HEALTH CARE (UK) LTD,25/08/2022,"1,027.00",6541-Domiciliary Care,THIRD PARTY PAYMENTS,PRIVATE CONTRACTOR,REVENUE
Walsall Council,http://opendatacommunities.org/id/metropolitan-district-council/walsall ,WC141-380,31.08.2022,ADULT SOCIAL CARE,ADVANCE HEALTH CARE (UK) LTD,25/08/2022,774.48,6541-Domiciliary Care,THIRD PARTY PAYMENTS,PRIVATE CONTRACTOR,REVENUE
Walsall Council,http://opendatacommunities.org/id/metropolitan-district-council/walsall ,WC141-381,31.08.2022,ADULT SOCIAL CARE,ADVANCE HEALTH CARE (UK) LTD,25/08/2022,737.52,6541-Domiciliary Care,THIRD PARTY PAYMENTS,PRIVATE CONTRACTOR,REVENUE
Walsall Council,http://opendatacommunities.org/id/metropolitan-district-council/walsall ,WC141-382,31.08.2022,ADULT SOCIAL CARE,ADVANCE HEALTH CARE (UK) LTD,25/08/2022,"1,843.80",6541-Domiciliary Care,THIRD PARTY PAYMENTS,PRIVATE CONTRACTOR,REVENUE
Walsall Council,http://opendatacommunities.org/id/metropolitan-district-council/walsall ,WC141-383,31.08.2022,ADULT SOCIAL CARE,ADVANCE HEALTH CARE (UK) LTD,25/08/2022,"1,000.72",6541-Domiciliary Care,THIRD PARTY PAYMENTS,PRIVATE CONTRACTOR,REVENUE
Walsall Council,http://opendatacommunities.org/id/metropolitan-district-council/walsall ,WC141-384,31.08.2022,ADULT SOCIAL CARE,ADVANCE HEALTH CARE (UK) LTD,25/08/2022,479.36,6541-Domiciliary Care,THIRD PARTY PAYMENTS,PRIVATE CONTRACTOR,REVENUE
Walsall Council,http://opendatacommunities.org/id/metropolitan-district-council/walsall ,WC141-385,31.08.2022,ADULT SOCIAL CARE,ADVANCE HEALTH CARE (UK) LTD,25/08/2022,811.16,6541-Domiciliary Care,THIRD PARTY PAYMENTS,PRIVATE CONTRACTOR,REVENUE
Walsall Council,http://opendatacommunities.org/id/metropolitan-district-council/walsall ,WC141-386,31.08.2022,ADULT SOCIAL CARE,ADVANCE HEALTH CARE (UK) LTD,25/08/2022,690.12,6541-Domiciliary Care,THIRD PARTY PAYMENTS,PRIVATE CONTRACTOR,REVENUE
Walsall Council,http://opendatacommunities.org/id/metropolitan-district-council/walsall ,WC141-387,31.08.2022,ADULT SOCIAL CARE,ADVANCE HEALTH CARE (UK) LTD,01/08/2022,497.70,6541-Domiciliary Care,THIRD PARTY PAYMENTS,PRIVATE CONTRACTOR,REVENUE
Walsall Council,http://opendatacommunities.org/id/metropolitan-district-council/walsall ,WC141-388,31.08.2022,ADULT SOCIAL CARE,ADVANCE HEALTH CARE (UK) LTD,01/08/2022,497.70,6541-Domiciliary Care,THIRD PARTY PAYMENTS,PRIVATE CONTRACTOR,REVENUE
Walsall Council,http://opendatacommunities.org/id/metropolitan-district-council/walsall ,WC141-389,31.08.2022,ADULT SOCIAL CARE,ADVANCE HEALTH CARE (UK) LTD,01/08/2022,497.70,6541-Domiciliary Care,THIRD PARTY PAYMENTS,PRIVATE CONTRACTOR,REVENUE
Walsall Council,http://opendatacommunities.org/id/metropolitan-district-council/walsall ,WC141-390,31.08.2022,ADULT SOCIAL CARE,ADVANCE HEALTH CARE (UK) LTD,01/08/2022,490.40,6541-Domiciliary Care,THIRD PARTY PAYMENTS,PRIVATE CONTRACTOR,REVENUE
Walsall Council,http://opendatacommunities.org/id/metropolitan-district-council/walsall ,WC141-391,31.08.2022,ADULT SOCIAL CARE,ADVANCE HEALTH CARE (UK) LTD,01/08/2022,497.70,6541-Domiciliary Care,THIRD PARTY PAYMENTS,PRIVATE CONTRACTOR,REVENUE
Walsall Council,http://opendatacommunities.org/id/metropolitan-district-council/walsall ,WC141-392,31.08.2022,ADULT SOCIAL CARE,ADVANCE HEALTH CARE (UK) LTD,01/08/2022,576.70,6541-Domiciliary Care,THIRD PARTY PAYMENTS,PRIVATE CONTRACTOR,REVENUE
Walsall Council,http://opendatacommunities.org/id/metropolitan-district-council/walsall ,WC141-393,31.08.2022,ADULT SOCIAL CARE,ADVANCE HEALTH CARE (UK) LTD,01/08/2022,497.70,6541-Domiciliary Care,THIRD PARTY PAYMENTS,PRIVATE CONTRACTOR,REVENUE
Walsall Council,http://opendatacommunities.org/id/metropolitan-district-council/walsall ,WC141-394,31.08.2022,ADULT SOCIAL CARE,ADVANCE HEALTH CARE (UK) LTD,01/08/2022,497.70,6541-Domiciliary Care,THIRD PARTY PAYMENTS,PRIVATE CONTRACTOR,REVENUE
Walsall Council,http://opendatacommunities.org/id/metropolitan-district-council/walsall ,WC141-395,31.08.2022,ADULT SOCIAL CARE,ADVANCE HEALTH CARE (UK) LTD,01/08/2022,368.76,6541-Domiciliary Care,THIRD PARTY PAYMENTS,PRIVATE CONTRACTOR,REVENUE
Walsall Council,http://opendatacommunities.org/id/metropolitan-district-council/walsall ,WC141-396,31.08.2022,ADULT SOCIAL CARE,ADVANCE HEALTH CARE (UK) LTD,01/08/2022,845.30,6541-Domiciliary Care,THIRD PARTY PAYMENTS,PRIVATE CONTRACTOR,REVENUE
Walsall Council,http://opendatacommunities.org/id/metropolitan-district-council/walsall ,WC141-397,31.08.2022,ADULT SOCIAL CARE,ADVANCE HEALTH CARE (UK) LTD,01/08/2022,531.98,6541-Domiciliary Care,THIRD PARTY PAYMENTS,PRIVATE CONTRACTOR,REVENUE
Walsall Council,http://opendatacommunities.org/id/metropolitan-district-council/walsall ,WC141-398,31.08.2022,ADULT SOCIAL CARE,ADVANCE HEALTH CARE (UK) LTD,01/08/2022,497.70,6541-Domiciliary Care,THIRD PARTY PAYMENTS,PRIVATE CONTRACTOR,REVENUE
Walsall Council,http://opendatacommunities.org/id/metropolitan-district-council/walsall ,WC141-399,31.08.2022,ADULT SOCIAL CARE,ADVANCE HEALTH CARE (UK) LTD,01/08/2022,497.70,6541-Domiciliary Care,THIRD PARTY PAYMENTS,PRIVATE CONTRACTOR,REVENUE
Walsall Council,http://opendatacommunities.org/id/metropolitan-district-council/walsall ,WC141-400,31.08.2022,ADULT SOCIAL CARE,ADVANCE HEALTH CARE (UK) LTD,01/08/2022,497.70,6541-Domiciliary Care,THIRD PARTY PAYMENTS,PRIVATE CONTRACTOR,REVENUE
Walsall Council,http://opendatacommunities.org/id/metropolitan-district-council/walsall ,WC141-401,31.08.2022,ADULT SOCIAL CARE,ADVANCE HEALTH CARE (UK) LTD,01/08/2022,331.94,6541-Domiciliary Care,THIRD PARTY PAYMENTS,PRIVATE CONTRACTOR,REVENUE
Walsall Council,http://opendatacommunities.org/id/metropolitan-district-council/walsall ,WC141-402,31.08.2022,ADULT SOCIAL CARE,ADVANCE HEALTH CARE (UK) LTD,01/08/2022,331.80,6541-Domiciliary Care,THIRD PARTY PAYMENTS,PRIVATE CONTRACTOR,REVENUE
Walsall Council,http://opendatacommunities.org/id/metropolitan-district-council/walsall ,WC141-403,31.08.2022,ADULT SOCIAL CARE,ADVANCE HEALTH CARE (UK) LTD,01/08/2022,331.94,6541-Domiciliary Care,THIRD PARTY PAYMENTS,PRIVATE CONTRACTOR,REVENUE
Walsall Council,http://opendatacommunities.org/id/metropolitan-district-council/walsall ,WC141-404,31.08.2022,ADULT SOCIAL CARE,ADVANCE HEALTH CARE (UK) LTD,01/08/2022,497.70,6541-Domiciliary Care,THIRD PARTY PAYMENTS,PRIVATE CONTRACTOR,REVENUE
Walsall Council,http://opendatacommunities.org/id/metropolitan-district-council/walsall ,WC141-405,31.08.2022,ADULT SOCIAL CARE,ADVANCE HEALTH CARE (UK) LTD,01/08/2022,497.70,6541-Domiciliary Care,THIRD PARTY PAYMENTS,PRIVATE CONTRACTOR,REVENUE
Walsall Council,http://opendatacommunities.org/id/metropolitan-district-council/walsall ,WC141-406,31.08.2022,ADULT SOCIAL CARE,ADVANCE HEALTH CARE (UK) LTD,01/08/2022,497.70,6541-Domiciliary Care,THIRD PARTY PAYMENTS,PRIVATE CONTRACTOR,REVENUE
Walsall Council,http://opendatacommunities.org/id/metropolitan-district-council/walsall ,WC141-407,31.08.2022,ADULT SOCIAL CARE,ADVANCE HEALTH CARE (UK) LTD,01/08/2022,387.10,6541-Domiciliary Care,THIRD PARTY PAYMENTS,PRIVATE CONTRACTOR,REVENUE
Walsall Council,http://opendatacommunities.org/id/metropolitan-district-council/walsall ,WC141-408,31.08.2022,ADULT SOCIAL CARE,ADVANCE HEALTH CARE (UK) LTD,01/08/2022,331.80,6541-Domiciliary Care,THIRD PARTY PAYMENTS,PRIVATE CONTRACTOR,REVENUE
Walsall Council,http://opendatacommunities.org/id/metropolitan-district-council/walsall ,WC141-409,31.08.2022,ADULT SOCIAL CARE,ADVANCE HEALTH CARE (UK) LTD,01/08/2022,553.00,6541-Domiciliary Care,THIRD PARTY PAYMENTS,PRIVATE CONTRACTOR,REVENUE
Walsall Council,http://opendatacommunities.org/id/metropolitan-district-council/walsall ,WC141-410,31.08.2022,ADULT SOCIAL CARE,ADVANCE HEALTH CARE (UK) LTD,01/08/2022,513.50,6541-Domiciliary Care,THIRD PARTY PAYMENTS,PRIVATE CONTRACTOR,REVENUE
Walsall Council,http://opendatacommunities.org/id/metropolitan-district-council/walsall ,WC141-411,31.08.2022,ADULT SOCIAL CARE,ADVANCE HEALTH CARE (UK) LTD,01/08/2022,497.70,6541-Domiciliary Care,THIRD PARTY PAYMENTS,PRIVATE CONTRACTOR,REVENUE
Walsall Council,http://opendatacommunities.org/id/metropolitan-district-council/walsall ,WC141-412,31.08.2022,ADULT SOCIAL CARE,ADVANCE HEALTH CARE (UK) LTD,01/08/2022,497.70,6541-Domiciliary Care,THIRD PARTY PAYMENTS,PRIVATE CONTRACTOR,REVENUE
Walsall Council,http://opendatacommunities.org/id/metropolitan-district-council/walsall ,WC141-413,31.08.2022,ADULT SOCIAL CARE,ADVANCE HEALTH CARE (UK) LTD,01/08/2022,497.70,6541-Domiciliary Care,THIRD PARTY PAYMENTS,PRIVATE CONTRACTOR,REVENUE
Walsall Council,http://opendatacommunities.org/id/metropolitan-district-council/walsall ,WC141-414,31.08.2022,ADULT SOCIAL CARE,ADVANCE HEALTH CARE (UK) LTD,01/08/2022,553.00,6541-Domiciliary Care,THIRD PARTY PAYMENTS,PRIVATE CONTRACTOR,REVENUE
Walsall Council,http://opendatacommunities.org/id/metropolitan-district-council/walsall ,WC141-415,31.08.2022,ADULT SOCIAL CARE,ADVANCE HEALTH CARE (UK) LTD,01/08/2022,837.40,6541-Domiciliary Care,THIRD PARTY PAYMENTS,PRIVATE CONTRACTOR,REVENUE
Walsall Council,http://opendatacommunities.org/id/metropolitan-district-council/walsall ,WC141-416,31.08.2022,ADULT SOCIAL CARE,ADVANCE HEALTH CARE (UK) LTD,01/08/2022,"1,106.00",6541-Domiciliary Care,THIRD PARTY PAYMENTS,PRIVATE CONTRACTOR,REVENUE
Walsall Council,http://opendatacommunities.org/id/metropolitan-district-council/walsall ,WC141-417,31.08.2022,ADULT SOCIAL CARE,ADVANCE HEALTH CARE (UK) LTD,01/08/2022,387.10,6541-Domiciliary Care,THIRD PARTY PAYMENTS,PRIVATE CONTRACTOR,REVENUE
Walsall Council,http://opendatacommunities.org/id/metropolitan-district-council/walsall ,WC141-418,31.08.2022,ADULT SOCIAL CARE,ADVANCE HEALTH CARE (UK) LTD,01/08/2022,331.80,6541-Domiciliary Care,THIRD PARTY PAYMENTS,PRIVATE CONTRACTOR,REVENUE
Walsall Council,http://opendatacommunities.org/id/metropolitan-district-council/walsall ,WC141-419,31.08.2022,ADULT SOCIAL CARE,ADVANCE HEALTH CARE (UK) LTD,01/08/2022,497.70,6541-Domiciliary Care,THIRD PARTY PAYMENTS,PRIVATE CONTRACTOR,REVENUE
Walsall Council,http://opendatacommunities.org/id/metropolitan-district-council/walsall ,WC141-420,31.08.2022,ADULT SOCIAL CARE,ADVANCE HEALTH CARE (UK) LTD,01/08/2022,576.70,6541-Domiciliary Care,THIRD PARTY PAYMENTS,PRIVATE CONTRACTOR,REVENUE
Walsall Council,http://opendatacommunities.org/id/metropolitan-district-council/walsall ,WC141-421,31.08.2022,ADULT SOCIAL CARE,ADVANCE HEALTH CARE (UK) LTD,01/08/2022,497.70,6541-Domiciliary Care,THIRD PARTY PAYMENTS,PRIVATE CONTRACTOR,REVENUE
Walsall Council,http://opendatacommunities.org/id/metropolitan-district-council/walsall ,WC141-422,31.08.2022,ADULT SOCIAL CARE,ADVANCE HEALTH CARE (UK) LTD,01/08/2022,497.70,6541-Domiciliary Care,THIRD PARTY PAYMENTS,PRIVATE CONTRACTOR,REVENUE
Walsall Council,http://opendatacommunities.org/id/metropolitan-district-council/walsall ,WC141-423,31.08.2022,ADULT SOCIAL CARE,ADVANCE HEALTH CARE (UK) LTD,01/08/2022,368.76,6541-Domiciliary Care,THIRD PARTY PAYMENTS,PRIVATE CONTRACTOR,REVENUE
Walsall Council,http://opendatacommunities.org/id/metropolitan-district-council/walsall ,WC141-424,31.08.2022,ADULT SOCIAL CARE,ADVANCE HEALTH CARE (UK) LTD,01/08/2022,497.70,6541-Domiciliary Care,THIRD PARTY PAYMENTS,PRIVATE CONTRACTOR,REVENUE
Walsall Council,http://opendatacommunities.org/id/metropolitan-district-council/walsall ,WC141-425,31.08.2022,ADULT SOCIAL CARE,ADVANCE HEALTH CARE (UK) LTD,01/08/2022,497.70,6541-Domiciliary Care,THIRD PARTY PAYMENTS,PRIVATE CONTRACTOR,REVENUE
Walsall Council,http://opendatacommunities.org/id/metropolitan-district-council/walsall ,WC141-426,31.08.2022,ADULT SOCIAL CARE,ADVANCE HEALTH CARE (UK) LTD,01/08/2022,553.00,6541-Domiciliary Care,THIRD PARTY PAYMENTS,PRIVATE CONTRACTOR,REVENUE
Walsall Council,http://opendatacommunities.org/id/metropolitan-district-council/walsall ,WC141-427,31.08.2022,ADULT SOCIAL CARE,ADVANCE HEALTH CARE (UK) LTD,01/08/2022,331.80,6541-Domiciliary Care,THIRD PARTY PAYMENTS,PRIVATE CONTRACTOR,REVENUE
Walsall Council,http://opendatacommunities.org/id/metropolitan-district-council/walsall ,WC141-428,31.08.2022,ADULT SOCIAL CARE,ADVANCE HEALTH CARE (UK) LTD,01/08/2022,331.94,6541-Domiciliary Care,THIRD PARTY PAYMENTS,PRIVATE CONTRACTOR,REVENUE
Walsall Council,http://opendatacommunities.org/id/metropolitan-district-council/walsall ,WC141-429,31.08.2022,ADULT SOCIAL CARE,ADVANCE HEALTH CARE (UK) LTD,01/08/2022,497.70,6541-Domiciliary Care,THIRD PARTY PAYMENTS,PRIVATE CONTRACTOR,REVENUE
Walsall Council,http://opendatacommunities.org/id/metropolitan-district-council/walsall ,WC141-430,31.08.2022,ADULT SOCIAL CARE,ADVANCE HEALTH CARE (UK) LTD,01/08/2022,497.70,6541-Domiciliary Care,THIRD PARTY PAYMENTS,PRIVATE CONTRACTOR,REVENUE
Walsall Council,http://opendatacommunities.org/id/metropolitan-district-council/walsall ,WC141-431,31.08.2022,ADULT SOCIAL CARE,ADVANCE HEALTH CARE (UK) LTD,01/08/2022,553.00,6541-Domiciliary Care,THIRD PARTY PAYMENTS,PRIVATE CONTRACTOR,REVENUE
Walsall Council,http://opendatacommunities.org/id/metropolitan-district-council/walsall ,WC141-432,31.08.2022,ADULT SOCIAL CARE,ADVANCE HEALTH CARE (UK) LTD,01/08/2022,513.50,6541-Domiciliary Care,THIRD PARTY PAYMENTS,PRIVATE CONTRACTOR,REVENUE
Walsall Council,http://opendatacommunities.org/id/metropolitan-district-council/walsall ,WC141-433,31.08.2022,ADULT SOCIAL CARE,ADVANCE HEALTH CARE (UK) LTD,01/08/2022,497.70,6541-Domiciliary Care,THIRD PARTY PAYMENTS,PRIVATE CONTRACTOR,REVENUE
Walsall Council,http://opendatacommunities.org/id/metropolitan-district-council/walsall ,WC141-434,31.08.2022,ADULT SOCIAL CARE,ADVANCE HEALTH CARE (UK) LTD,01/08/2022,497.70,6541-Domiciliary Care,THIRD PARTY PAYMENTS,PRIVATE CONTRACTOR,REVENUE
Walsall Council,http://opendatacommunities.org/id/metropolitan-district-council/walsall ,WC141-435,31.08.2022,ADULT SOCIAL CARE,ADVANCE HEALTH CARE (UK) LTD,01/08/2022,497.70,6541-Domiciliary Care,THIRD PARTY PAYMENTS,PRIVATE CONTRACTOR,REVENUE
Walsall Council,http://opendatacommunities.org/id/metropolitan-district-council/walsall ,WC141-436,31.08.2022,ADULT SOCIAL CARE,ADVANCE HEALTH CARE (UK) LTD,01/08/2022,497.70,6541-Domiciliary Care,THIRD PARTY PAYMENTS,PRIVATE CONTRACTOR,REVENUE
Walsall Council,http://opendatacommunities.org/id/metropolitan-district-council/walsall ,WC141-437,31.08.2022,ADULT SOCIAL CARE,ADVANCE HEALTH CARE (UK) LTD,01/08/2022,497.70,6541-Domiciliary Care,THIRD PARTY PAYMENTS,PRIVATE CONTRACTOR,REVENUE
Walsall Council,http://opendatacommunities.org/id/metropolitan-district-council/walsall ,WC141-438,31.08.2022,ADULT SOCIAL CARE,ADVANCE HEALTH CARE (UK) LTD,01/08/2022,490.40,6541-Domiciliary Care,THIRD PARTY PAYMENTS,PRIVATE CONTRACTOR,REVENUE
Walsall Council,http://opendatacommunities.org/id/metropolitan-district-council/walsall ,WC141-439,31.08.2022,ADULT SOCIAL CARE,ADVANCE HEALTH CARE (UK) LTD,01/08/2022,497.70,6541-Domiciliary Care,THIRD PARTY PAYMENTS,PRIVATE CONTRACTOR,REVENUE
Walsall Council,http://opendatacommunities.org/id/metropolitan-district-council/walsall ,WC141-440,31.08.2022,ADULT SOCIAL CARE,ADVANCE HEALTH CARE (UK) LTD,01/08/2022,331.80,6541-Domiciliary Care,THIRD PARTY PAYMENTS,PRIVATE CONTRACTOR,REVENUE
Walsall Council,http://opendatacommunities.org/id/metropolitan-district-council/walsall ,WC141-441,31.08.2022,ADULT SOCIAL CARE,ADVANCE HEALTH CARE (UK) LTD,01/08/2022,497.70,6541-Domiciliary Care,THIRD PARTY PAYMENTS,PRIVATE CONTRACTOR,REVENUE
Walsall Council,http://opendatacommunities.org/id/metropolitan-district-council/walsall ,WC141-442,31.08.2022,ADULT SOCIAL CARE,ADVANCE HEALTH CARE (UK) LTD,01/08/2022,497.70,6541-Domiciliary Care,THIRD PARTY PAYMENTS,PRIVATE CONTRACTOR,REVENUE
Walsall Council,http://opendatacommunities.org/id/metropolitan-district-council/walsall ,WC141-443,31.08.2022,ADULT SOCIAL CARE,ADVANCE HEALTH CARE (UK) LTD,01/08/2022,845.30,6541-Domiciliary Care,THIRD PARTY PAYMENTS,PRIVATE CONTRACTOR,REVENUE
Walsall Council,http://opendatacommunities.org/id/metropolitan-district-council/walsall ,WC141-444,31.08.2022,ADULT SOCIAL CARE,ADVANCE HEALTH CARE (UK) LTD,01/08/2022,531.98,6541-Domiciliary Care,THIRD PARTY PAYMENTS,PRIVATE CONTRACTOR,REVENUE
Walsall Council,http://opendatacommunities.org/id/metropolitan-district-council/walsall ,WC141-445,31.08.2022,ADULT SOCIAL CARE,ADVANCE HEALTH CARE (UK) LTD,01/08/2022,387.24,6541-Domiciliary Care,THIRD PARTY PAYMENTS,PRIVATE CONTRACTOR,REVENUE
Walsall Council,http://opendatacommunities.org/id/metropolitan-district-council/walsall ,WC141-446,31.08.2022,ADULT SOCIAL CARE,ADVANCE HEALTH CARE (UK) LTD,01/08/2022,387.10,6541-Domiciliary Care,THIRD PARTY PAYMENTS,PRIVATE CONTRACTOR,REVENUE
Walsall Council,http://opendatacommunities.org/id/metropolitan-district-council/walsall ,WC141-447,31.08.2022,ADULT SOCIAL CARE,ADVANCE HEALTH CARE (UK) LTD,01/08/2022,331.80,6541-Domiciliary Care,THIRD PARTY PAYMENTS,PRIVATE CONTRACTOR,REVENUE
Walsall Council,http://opendatacommunities.org/id/metropolitan-district-council/walsall ,WC141-448,31.08.2022,ADULT SOCIAL CARE,ADVANCE HEALTH CARE (UK) LTD,01/08/2022,331.94,6541-Domiciliary Care,THIRD PARTY PAYMENTS,PRIVATE CONTRACTOR,REVENUE
Walsall Council,http://opendatacommunities.org/id/metropolitan-district-council/walsall ,WC141-449,31.08.2022,ADULT SOCIAL CARE,ADVANCE HEALTH CARE (UK) LTD,01/08/2022,497.70,6541-Domiciliary Care,THIRD PARTY PAYMENTS,PRIVATE CONTRACTOR,REVENUE
Walsall Council,http://opendatacommunities.org/id/metropolitan-district-council/walsall ,WC141-450,31.08.2022,ADULT SOCIAL CARE,ADVANCE HEALTH CARE (UK) LTD,01/08/2022,553.00,6541-Domiciliary Care,THIRD PARTY PAYMENTS,PRIVATE CONTRACTOR,REVENUE
Walsall Council,http://opendatacommunities.org/id/metropolitan-district-council/walsall ,WC141-451,31.08.2022,ADULT SOCIAL CARE,ADVANCE HEALTH CARE (UK) LTD,01/08/2022,387.10,6541-Domiciliary Care,THIRD PARTY PAYMENTS,PRIVATE CONTRACTOR,REVENUE
Walsall Council,http://opendatacommunities.org/id/metropolitan-district-council/walsall ,WC141-452,31.08.2022,ADULT SOCIAL CARE,ADVANCE HEALTH CARE (UK) LTD,16/08/2022,576.70,6541-Domiciliary Care,THIRD PARTY PAYMENTS,PRIVATE CONTRACTOR,REVENUE
Walsall Council,http://opendatacommunities.org/id/metropolitan-district-council/walsall ,WC141-453,31.08.2022,ADULT SOCIAL CARE,ADVANCE HEALTH CARE (UK) LTD,16/08/2022,497.70,6541-Domiciliary Care,THIRD PARTY PAYMENTS,PRIVATE CONTRACTOR,REVENUE
Walsall Council,http://opendatacommunities.org/id/metropolitan-district-council/walsall ,WC141-454,31.08.2022,ADULT SOCIAL CARE,ADVANCE HEALTH CARE (UK) LTD,16/08/2022,497.70,6541-Domiciliary Care,THIRD PARTY PAYMENTS,PRIVATE CONTRACTOR,REVENUE
Walsall Council,http://opendatacommunities.org/id/metropolitan-district-council/walsall ,WC141-455,31.08.2022,ADULT SOCIAL CARE,ADVANCE HEALTH CARE (UK) LTD,16/08/2022,368.76,6541-Domiciliary Care,THIRD PARTY PAYMENTS,PRIVATE CONTRACTOR,REVENUE
Walsall Council,http://opendatacommunities.org/id/metropolitan-district-council/walsall ,WC141-456,31.08.2022,ADULT SOCIAL CARE,ADVANCE HEALTH CARE (UK) LTD,16/08/2022,845.30,6541-Domiciliary Care,THIRD PARTY PAYMENTS,PRIVATE CONTRACTOR,REVENUE
Walsall Council,http://opendatacommunities.org/id/metropolitan-district-council/walsall ,WC141-457,31.08.2022,ADULT SOCIAL CARE,ADVANCE HEALTH CARE (UK) LTD,16/08/2022,531.98,6541-Domiciliary Care,THIRD PARTY PAYMENTS,PRIVATE CONTRACTOR,REVENUE
Walsall Council,http://opendatacommunities.org/id/metropolitan-district-council/walsall ,WC141-458,31.08.2022,ADULT SOCIAL CARE,ADVANCE HEALTH CARE (UK) LTD,16/08/2022,387.24,6541-Domiciliary Care,THIRD PARTY PAYMENTS,PRIVATE CONTRACTOR,REVENUE
Walsall Council,http://opendatacommunities.org/id/metropolitan-district-council/walsall ,WC141-459,31.08.2022,ADULT SOCIAL CARE,ADVANCE HEALTH CARE (UK) LTD,16/08/2022,497.70,6541-Domiciliary Care,THIRD PARTY PAYMENTS,PRIVATE CONTRACTOR,REVENUE
Walsall Council,http://opendatacommunities.org/id/metropolitan-district-council/walsall ,WC141-460,31.08.2022,ADULT SOCIAL CARE,ADVANCE HEALTH CARE (UK) LTD,16/08/2022,497.70,6541-Domiciliary Care,THIRD PARTY PAYMENTS,PRIVATE CONTRACTOR,REVENUE
Walsall Council,http://opendatacommunities.org/id/metropolitan-district-council/walsall ,WC141-461,31.08.2022,ADULT SOCIAL CARE,ADVANCE HEALTH CARE (UK) LTD,16/08/2022,331.80,6541-Domiciliary Care,THIRD PARTY PAYMENTS,PRIVATE CONTRACTOR,REVENUE
Walsall Council,http://opendatacommunities.org/id/metropolitan-district-council/walsall ,WC141-462,31.08.2022,ADULT SOCIAL CARE,ADVANCE HEALTH CARE (UK) LTD,16/08/2022,331.94,6541-Domiciliary Care,THIRD PARTY PAYMENTS,PRIVATE CONTRACTOR,REVENUE
Walsall Council,http://opendatacommunities.org/id/metropolitan-district-council/walsall ,WC141-463,31.08.2022,ADULT SOCIAL CARE,ADVANCE HEALTH CARE (UK) LTD,16/08/2022,497.70,6541-Domiciliary Care,THIRD PARTY PAYMENTS,PRIVATE CONTRACTOR,REVENUE
Walsall Council,http://opendatacommunities.org/id/metropolitan-district-council/walsall ,WC141-464,31.08.2022,ADULT SOCIAL CARE,ADVANCE HEALTH CARE (UK) LTD,16/08/2022,497.70,6541-Domiciliary Care,THIRD PARTY PAYMENTS,PRIVATE CONTRACTOR,REVENUE
Walsall Council,http://opendatacommunities.org/id/metropolitan-district-council/walsall ,WC141-465,31.08.2022,ADULT SOCIAL CARE,ADVANCE HEALTH CARE (UK) LTD,16/08/2022,387.10,6541-Domiciliary Care,THIRD PARTY PAYMENTS,PRIVATE CONTRACTOR,REVENUE
Walsall Council,http://opendatacommunities.org/id/metropolitan-district-council/walsall ,WC141-466,31.08.2022,ADULT SOCIAL CARE,ADVANCE HEALTH CARE (UK) LTD,16/08/2022,331.80,6541-Domiciliary Care,THIRD PARTY PAYMENTS,PRIVATE CONTRACTOR,REVENUE
Walsall Council,http://opendatacommunities.org/id/metropolitan-district-council/walsall ,WC141-467,31.08.2022,ADULT SOCIAL CARE,ADVANCE HEALTH CARE (UK) LTD,16/08/2022,497.70,6541-Domiciliary Care,THIRD PARTY PAYMENTS,PRIVATE CONTRACTOR,REVENUE
Walsall Council,http://opendatacommunities.org/id/metropolitan-district-council/walsall ,WC141-468,31.08.2022,ADULT SOCIAL CARE,ADVANCE HEALTH CARE (UK) LTD,16/08/2022,479.94,6541-Domiciliary Care,THIRD PARTY PAYMENTS,PRIVATE CONTRACTOR,REVENUE
Walsall Council,http://opendatacommunities.org/id/metropolitan-district-council/walsall ,WC141-469,31.08.2022,ADULT SOCIAL CARE,ADVANCE HEALTH CARE (UK) LTD,16/08/2022,497.70,6541-Domiciliary Care,THIRD PARTY PAYMENTS,PRIVATE CONTRACTOR,REVENUE
Walsall Council,http://opendatacommunities.org/id/metropolitan-district-council/walsall ,WC141-470,31.08.2022,ADULT SOCIAL CARE,ADVANCE HEALTH CARE (UK) LTD,16/08/2022,331.80,6541-Domiciliary Care,THIRD PARTY PAYMENTS,PRIVATE CONTRACTOR,REVENUE
Walsall Council,http://opendatacommunities.org/id/metropolitan-district-council/walsall ,WC141-471,31.08.2022,ADULT SOCIAL CARE,ADVANCE HEALTH CARE (UK) LTD,16/08/2022,497.70,6541-Domiciliary Care,THIRD PARTY PAYMENTS,PRIVATE CONTRACTOR,REVENUE
Walsall Council,http://opendatacommunities.org/id/metropolitan-district-council/walsall ,WC141-472,31.08.2022,ADULT SOCIAL CARE,ADVANCE HEALTH CARE (UK) LTD,16/08/2022,553.00,6541-Domiciliary Care,THIRD PARTY PAYMENTS,PRIVATE CONTRACTOR,REVENUE
Walsall Council,http://opendatacommunities.org/id/metropolitan-district-council/walsall ,WC141-473,31.08.2022,ADULT SOCIAL CARE,ADVANCE HEALTH CARE (UK) LTD,16/08/2022,355.50,6541-Domiciliary Care,THIRD PARTY PAYMENTS,PRIVATE CONTRACTOR,REVENUE
Walsall Council,http://opendatacommunities.org/id/metropolitan-district-council/walsall ,WC141-474,31.08.2022,ADULT SOCIAL CARE,ADVANCE HEALTH CARE (UK) LTD,16/08/2022,331.94,6541-Domiciliary Care,THIRD PARTY PAYMENTS,PRIVATE CONTRACTOR,REVENUE
Walsall Council,http://opendatacommunities.org/id/metropolitan-district-council/walsall ,WC141-475,31.08.2022,ADULT SOCIAL CARE,ADVANCE HEALTH CARE (UK) LTD,16/08/2022,497.70,6541-Domiciliary Care,THIRD PARTY PAYMENTS,PRIVATE CONTRACTOR,REVENUE
Walsall Council,http://opendatacommunities.org/id/metropolitan-district-council/walsall ,WC141-476,31.08.2022,ADULT SOCIAL CARE,ADVANCE HEALTH CARE (UK) LTD,16/08/2022,497.70,6541-Domiciliary Care,THIRD PARTY PAYMENTS,PRIVATE CONTRACTOR,REVENUE
Walsall Council,http://opendatacommunities.org/id/metropolitan-district-council/walsall ,WC141-477,31.08.2022,ADULT SOCIAL CARE,ADVANCE HEALTH CARE (UK) LTD,16/08/2022,497.70,6541-Domiciliary Care,THIRD PARTY PAYMENTS,PRIVATE CONTRACTOR,REVENUE
Walsall Council,http://opendatacommunities.org/id/metropolitan-district-council/walsall ,WC141-478,31.08.2022,ADULT SOCIAL CARE,ADVANCE HEALTH CARE (UK) LTD,16/08/2022,553.00,6541-Domiciliary Care,THIRD PARTY PAYMENTS,PRIVATE CONTRACTOR,REVENUE
Walsall Council,http://opendatacommunities.org/id/metropolitan-district-council/walsall ,WC141-479,31.08.2022,ADULT SOCIAL CARE,ADVANCE HEALTH CARE (UK) LTD,16/08/2022,513.50,6541-Domiciliary Care,THIRD PARTY PAYMENTS,PRIVATE CONTRACTOR,REVENUE
Walsall Council,http://opendatacommunities.org/id/metropolitan-district-council/walsall ,WC141-480,31.08.2022,ADULT SOCIAL CARE,ADVANCE HEALTH CARE (UK) LTD,16/08/2022,497.70,6541-Domiciliary Care,THIRD PARTY PAYMENTS,PRIVATE CONTRACTOR,REVENUE
Walsall Council,http://opendatacommunities.org/id/metropolitan-district-council/walsall ,WC141-481,31.08.2022,ADULT SOCIAL CARE,ADVANCE HEALTH CARE (UK) LTD,16/08/2022,497.70,6541-Domiciliary Care,THIRD PARTY PAYMENTS,PRIVATE CONTRACTOR,REVENUE
Walsall Council,http://opendatacommunities.org/id/metropolitan-district-council/walsall ,WC141-482,31.08.2022,ADULT SOCIAL CARE,ADVANCE HEALTH CARE (UK) LTD,16/08/2022,553.00,6541-Domiciliary Care,THIRD PARTY PAYMENTS,PRIVATE CONTRACTOR,REVENUE
Walsall Council,http://opendatacommunities.org/id/metropolitan-district-council/walsall ,WC141-483,31.08.2022,ADULT SOCIAL CARE,ADVANCE HEALTH CARE (UK) LTD,16/08/2022,387.10,6541-Domiciliary Care,THIRD PARTY PAYMENTS,PRIVATE CONTRACTOR,REVENUE
Walsall Council,http://opendatacommunities.org/id/metropolitan-district-council/walsall ,WC141-484,31.08.2022,ADULT SOCIAL CARE,ADVANCE HEALTH CARE (UK) LTD,16/08/2022,853.20,6541-Domiciliary Care,THIRD PARTY PAYMENTS,PRIVATE CONTRACTOR,REVENUE
Walsall Council,http://opendatacommunities.org/id/metropolitan-district-council/walsall ,WC141-485,31.08.2022,ADULT SOCIAL CARE,ADVANCE HEALTH CARE (UK) LTD,16/08/2022,331.94,6541-Domiciliary Care,THIRD PARTY PAYMENTS,PRIVATE CONTRACTOR,REVENUE
Walsall Council,http://opendatacommunities.org/id/metropolitan-district-council/walsall ,WC141-486,31.08.2022,ADULT SOCIAL CARE,ADVANCE HEALTH CARE (UK) LTD,16/08/2022,497.70,6541-Domiciliary Care,THIRD PARTY PAYMENTS,PRIVATE CONTRACTOR,REVENUE
Walsall Council,http://opendatacommunities.org/id/metropolitan-district-council/walsall ,WC141-487,31.08.2022,ADULT SOCIAL CARE,ADVANCE HEALTH CARE (UK) LTD,16/08/2022,576.70,6541-Domiciliary Care,THIRD PARTY PAYMENTS,PRIVATE CONTRACTOR,REVENUE
Walsall Council,http://opendatacommunities.org/id/metropolitan-district-council/walsall ,WC141-488,31.08.2022,ADULT SOCIAL CARE,ADVANCE HEALTH CARE (UK) LTD,16/08/2022,497.70,6541-Domiciliary Care,THIRD PARTY PAYMENTS,PRIVATE CONTRACTOR,REVENUE
Walsall Council,http://opendatacommunities.org/id/metropolitan-district-council/walsall ,WC141-489,31.08.2022,ADULT SOCIAL CARE,ADVANCE HEALTH CARE (UK) LTD,16/08/2022,497.70,6541-Domiciliary Care,THIRD PARTY PAYMENTS,PRIVATE CONTRACTOR,REVENUE
Walsall Council,http://opendatacommunities.org/id/metropolitan-district-council/walsall ,WC141-490,31.08.2022,ADULT SOCIAL CARE,ADVANCE HEALTH CARE (UK) LTD,16/08/2022,368.76,6541-Domiciliary Care,THIRD PARTY PAYMENTS,PRIVATE CONTRACTOR,REVENUE
Walsall Council,http://opendatacommunities.org/id/metropolitan-district-council/walsall ,WC141-491,31.08.2022,ADULT SOCIAL CARE,ADVANCE HEALTH CARE (UK) LTD,16/08/2022,331.80,6541-Domiciliary Care,THIRD PARTY PAYMENTS,PRIVATE CONTRACTOR,REVENUE
Walsall Council,http://opendatacommunities.org/id/metropolitan-district-council/walsall ,WC141-492,31.08.2022,ADULT SOCIAL CARE,ADVANCE HEALTH CARE (UK) LTD,16/08/2022,497.70,6541-Domiciliary Care,THIRD PARTY PAYMENTS,PRIVATE CONTRACTOR,REVENUE
Walsall Council,http://opendatacommunities.org/id/metropolitan-district-council/walsall ,WC141-493,31.08.2022,ADULT SOCIAL CARE,ADVANCE HEALTH CARE (UK) LTD,16/08/2022,497.70,6541-Domiciliary Care,THIRD PARTY PAYMENTS,PRIVATE CONTRACTOR,REVENUE
Walsall Council,http://opendatacommunities.org/id/metropolitan-district-council/walsall ,WC141-494,31.08.2022,ADULT SOCIAL CARE,ADVANCE HEALTH CARE (UK) LTD,16/08/2022,553.00,6541-Domiciliary Care,THIRD PARTY PAYMENTS,PRIVATE CONTRACTOR,REVENUE
Walsall Council,http://opendatacommunities.org/id/metropolitan-district-council/walsall ,WC141-495,31.08.2022,ADULT SOCIAL CARE,ADVANCE HEALTH CARE (UK) LTD,16/08/2022,497.70,6541-Domiciliary Care,THIRD PARTY PAYMENTS,PRIVATE CONTRACTOR,REVENUE
Walsall Council,http://opendatacommunities.org/id/metropolitan-district-council/walsall ,WC141-496,31.08.2022,ADULT SOCIAL CARE,ADVANCE HEALTH CARE (UK) LTD,16/08/2022,331.94,6541-Domiciliary Care,THIRD PARTY PAYMENTS,PRIVATE CONTRACTOR,REVENUE
Walsall Council,http://opendatacommunities.org/id/metropolitan-district-council/walsall ,WC141-497,31.08.2022,ADULT SOCIAL CARE,ADVANCE HEALTH CARE (UK) LTD,16/08/2022,497.70,6541-Domiciliary Care,THIRD PARTY PAYMENTS,PRIVATE CONTRACTOR,REVENUE
Walsall Council,http://opendatacommunities.org/id/metropolitan-district-council/walsall ,WC141-498,31.08.2022,ADULT SOCIAL CARE,ADVANCE HEALTH CARE (UK) LTD,16/08/2022,497.70,6541-Domiciliary Care,THIRD PARTY PAYMENTS,PRIVATE CONTRACTOR,REVENUE
Walsall Council,http://opendatacommunities.org/id/metropolitan-district-council/walsall ,WC141-499,31.08.2022,ADULT SOCIAL CARE,ADVANCE HEALTH CARE (UK) LTD,16/08/2022,553.00,6541-Domiciliary Care,THIRD PARTY PAYMENTS,PRIVATE CONTRACTOR,REVENUE
Walsall Council,http://opendatacommunities.org/id/metropolitan-district-council/walsall ,WC141-500,31.08.2022,ADULT SOCIAL CARE,ADVANCE HEALTH CARE (UK) LTD,16/08/2022,497.70,6541-Domiciliary Care,THIRD PARTY PAYMENTS,PRIVATE CONTRACTOR,REVENUE
Walsall Council,http://opendatacommunities.org/id/metropolitan-district-council/walsall ,WC141-501,31.08.2022,ADULT SOCIAL CARE,ADVANCE HEALTH CARE (UK) LTD,16/08/2022,331.80,6541-Domiciliary Care,THIRD PARTY PAYMENTS,PRIVATE CONTRACTOR,REVENUE
Walsall Council,http://opendatacommunities.org/id/metropolitan-district-council/walsall ,WC141-502,31.08.2022,ADULT SOCIAL CARE,ADVANCE HEALTH CARE (UK) LTD,16/08/2022,497.70,6541-Domiciliary Care,THIRD PARTY PAYMENTS,PRIVATE CONTRACTOR,REVENUE
Walsall Council,http://opendatacommunities.org/id/metropolitan-district-council/walsall ,WC141-503,31.08.2022,ADULT SOCIAL CARE,ADVANCE HEALTH CARE (UK) LTD,16/08/2022,497.70,6541-Domiciliary Care,THIRD PARTY PAYMENTS,PRIVATE CONTRACTOR,REVENUE
Walsall Council,http://opendatacommunities.org/id/metropolitan-district-council/walsall ,WC141-504,31.08.2022,ADULT SOCIAL CARE,ADVANCE HEALTH CARE (UK) LTD,16/08/2022,553.00,6541-Domiciliary Care,THIRD PARTY PAYMENTS,PRIVATE CONTRACTOR,REVENUE
Walsall Council,http://opendatacommunities.org/id/metropolitan-district-council/walsall ,WC141-505,31.08.2022,ADULT SOCIAL CARE,ADVANCE HEALTH CARE (UK) LTD,16/08/2022,387.10,6541-Domiciliary Care,THIRD PARTY PAYMENTS,PRIVATE CONTRACTOR,REVENUE
Walsall Council,http://opendatacommunities.org/id/metropolitan-district-council/walsall ,WC141-506,31.08.2022,ADULT SOCIAL CARE,ADVANCE HEALTH CARE (UK) LTD,16/08/2022,884.80,6541-Domiciliary Care,THIRD PARTY PAYMENTS,PRIVATE CONTRACTOR,REVENUE
Walsall Council,http://opendatacommunities.org/id/metropolitan-district-council/walsall ,WC141-507,31.08.2022,ADULT SOCIAL CARE,ADVANCE HEALTH CARE (UK) LTD,16/08/2022,497.70,6541-Domiciliary Care,THIRD PARTY PAYMENTS,PRIVATE CONTRACTOR,REVENUE
Walsall Council,http://opendatacommunities.org/id/metropolitan-district-council/walsall ,WC141-508,31.08.2022,ADULT SOCIAL CARE,ADVANCE HEALTH CARE (UK) LTD,16/08/2022,252.80,6541-Domiciliary Care,THIRD PARTY PAYMENTS,PRIVATE CONTRACTOR,REVENUE
Walsall Council,http://opendatacommunities.org/id/metropolitan-district-council/walsall ,WC141-509,31.08.2022,ADULT SOCIAL CARE,ADVANCE HEALTH CARE (UK) LTD,16/08/2022,845.30,6541-Domiciliary Care,THIRD PARTY PAYMENTS,PRIVATE CONTRACTOR,REVENUE
Walsall Council,http://opendatacommunities.org/id/metropolitan-district-council/walsall ,WC141-510,31.08.2022,ADULT SOCIAL CARE,ADVANCE HEALTH CARE (UK) LTD,16/08/2022,531.98,6541-Domiciliary Care,THIRD PARTY PAYMENTS,PRIVATE CONTRACTOR,REVENUE
Walsall Council,http://opendatacommunities.org/id/metropolitan-district-council/walsall ,WC141-511,31.08.2022,ADULT SOCIAL CARE,ADVANCE HEALTH CARE (UK) LTD,16/08/2022,387.24,6541-Domiciliary Care,THIRD PARTY PAYMENTS,PRIVATE CONTRACTOR,REVENUE
Walsall Council,http://opendatacommunities.org/id/metropolitan-district-council/walsall ,WC141-512,31.08.2022,ADULT SOCIAL CARE,ADVANCE HEALTH CARE (UK) LTD,16/08/2022,497.70,6541-Domiciliary Care,THIRD PARTY PAYMENTS,PRIVATE CONTRACTOR,REVENUE
Walsall Council,http://opendatacommunities.org/id/metropolitan-district-council/walsall ,WC141-513,31.08.2022,ADULT SOCIAL CARE,ADVANCE HEALTH CARE (UK) LTD,16/08/2022,497.70,6541-Domiciliary Care,THIRD PARTY PAYMENTS,PRIVATE CONTRACTOR,REVENUE
Walsall Council,http://opendatacommunities.org/id/metropolitan-district-council/walsall ,WC141-514,31.08.2022,ADULT SOCIAL CARE,ADVANCE HEALTH CARE (UK) LTD,16/08/2022,489.80,6541-Domiciliary Care,THIRD PARTY PAYMENTS,PRIVATE CONTRACTOR,REVENUE
Walsall Council,http://opendatacommunities.org/id/metropolitan-district-council/walsall ,WC141-515,31.08.2022,ADULT SOCIAL CARE,ADVANCE HEALTH CARE (UK) LTD,16/08/2022,387.10,6541-Domiciliary Care,THIRD PARTY PAYMENTS,PRIVATE CONTRACTOR,REVENUE
Walsall Council,http://opendatacommunities.org/id/metropolitan-district-council/walsall ,WC141-516,31.08.2022,ADULT SOCIAL CARE,ADVANCE HEALTH CARE (UK) LTD,16/08/2022,331.80,6541-Domiciliary Care,THIRD PARTY PAYMENTS,PRIVATE CONTRACTOR,REVENUE
Walsall Council,http://opendatacommunities.org/id/metropolitan-district-council/walsall ,WC141-517,31.08.2022,ADULT SOCIAL CARE,ADVANCE HEALTH CARE (UK) LTD,24/08/2022,426.60,6541-Domiciliary Care,THIRD PARTY PAYMENTS,PRIVATE CONTRACTOR,REVENUE
Walsall Council,http://opendatacommunities.org/id/metropolitan-district-council/walsall ,WC141-518,31.08.2022,ADULT SOCIAL CARE,ADVANCE HEALTH CARE (UK) LTD,24/08/2022,"1,106.00",6541-Domiciliary Care,THIRD PARTY PAYMENTS,PRIVATE CONTRACTOR,REVENUE
Walsall Council,http://opendatacommunities.org/id/metropolitan-district-council/walsall ,WC141-519,31.08.2022,ADULT SOCIAL CARE,ADVANCE HEALTH CARE (UK) LTD,24/08/2022,426.60,6541-Domiciliary Care,THIRD PARTY PAYMENTS,PRIVATE CONTRACTOR,REVENUE
Walsall Council,http://opendatacommunities.org/id/metropolitan-district-council/walsall ,WC141-520,31.08.2022,ADULT SOCIAL CARE,ADVANCE HEALTH CARE (UK) LTD,24/08/2022,"1,990.80",6541-Domiciliary Care,THIRD PARTY PAYMENTS,PRIVATE CONTRACTOR,REVENUE
Walsall Council,http://opendatacommunities.org/id/metropolitan-district-council/walsall ,WC141-521,31.08.2022,ADULT SOCIAL CARE,ADVANCE HEALTH CARE (UK) LTD,24/08/2022,458.20,6541-Domiciliary Care,THIRD PARTY PAYMENTS,PRIVATE CONTRACTOR,REVENUE
Walsall Council,http://opendatacommunities.org/id/metropolitan-district-council/walsall ,WC141-522,31.08.2022,ADULT SOCIAL CARE,ADVANCE HEALTH CARE (UK) LTD,24/08/2022,284.40,6541-Domiciliary Care,THIRD PARTY PAYMENTS,PRIVATE CONTRACTOR,REVENUE
Walsall Council,http://opendatacommunities.org/id/metropolitan-district-council/walsall ,WC141-523,31.08.2022,ADULT SOCIAL CARE,ADVANCE HEALTH CARE (UK) LTD,24/08/2022,663.60,6541-Domiciliary Care,THIRD PARTY PAYMENTS,PRIVATE CONTRACTOR,REVENUE
Walsall Council,http://opendatacommunities.org/id/metropolitan-district-council/walsall ,WC141-524,31.08.2022,ADULT SOCIAL CARE,ADVANCE HEALTH CARE (UK) LTD,24/08/2022,711.00,6541-Domiciliary Care,THIRD PARTY PAYMENTS,PRIVATE CONTRACTOR,REVENUE
Walsall Council,http://opendatacommunities.org/id/metropolitan-district-council/walsall ,WC141-525,31.08.2022,ADULT SOCIAL CARE,ADVANCE HEALTH CARE (UK) LTD,24/08/2022,284.40,6541-Domiciliary Care,THIRD PARTY PAYMENTS,PRIVATE CONTRACTOR,REVENUE
Walsall Council,http://opendatacommunities.org/id/metropolitan-district-council/walsall ,WC141-526,31.08.2022,ADULT SOCIAL CARE,ADVANCE HEALTH CARE (UK) LTD,24/08/2022,711.00,6541-Domiciliary Care,THIRD PARTY PAYMENTS,PRIVATE CONTRACTOR,REVENUE
Walsall Council,http://opendatacommunities.org/id/metropolitan-district-council/walsall ,WC141-527,31.08.2022,ADULT SOCIAL CARE,ADVANCE HEALTH CARE (UK) LTD,26/08/2022,497.70,6541-Domiciliary Care,THIRD PARTY PAYMENTS,PRIVATE CONTRACTOR,REVENUE
Walsall Council,http://opendatacommunities.org/id/metropolitan-district-council/walsall ,WC141-528,31.08.2022,ADULT SOCIAL CARE,ADVANCE HEALTH CARE (UK) LTD,26/08/2022,497.70,6541-Domiciliary Care,THIRD PARTY PAYMENTS,PRIVATE CONTRACTOR,REVENUE
Walsall Council,http://opendatacommunities.org/id/metropolitan-district-council/walsall ,WC141-529,31.08.2022,ADULT SOCIAL CARE,ADVANCE HEALTH CARE (UK) LTD,26/08/2022,489.80,6541-Domiciliary Care,THIRD PARTY PAYMENTS,PRIVATE CONTRACTOR,REVENUE
Walsall Council,http://opendatacommunities.org/id/metropolitan-district-council/walsall ,WC141-530,31.08.2022,ADULT SOCIAL CARE,ADVANCE HEALTH CARE (UK) LTD,26/08/2022,845.30,6541-Domiciliary Care,THIRD PARTY PAYMENTS,PRIVATE CONTRACTOR,REVENUE
Walsall Council,http://opendatacommunities.org/id/metropolitan-district-council/walsall ,WC141-531,31.08.2022,ADULT SOCIAL CARE,ADVANCE HEALTH CARE (UK) LTD,26/08/2022,531.98,6541-Domiciliary Care,THIRD PARTY PAYMENTS,PRIVATE CONTRACTOR,REVENUE
Walsall Council,http://opendatacommunities.org/id/metropolitan-district-council/walsall ,WC141-532,31.08.2022,ADULT SOCIAL CARE,ADVANCE HEALTH CARE (UK) LTD,26/08/2022,387.24,6541-Domiciliary Care,THIRD PARTY PAYMENTS,PRIVATE CONTRACTOR,REVENUE
Walsall Council,http://opendatacommunities.org/id/metropolitan-district-council/walsall ,WC141-533,31.08.2022,ADULT SOCIAL CARE,ADVANCE HEALTH CARE (UK) LTD,26/08/2022,387.10,6541-Domiciliary Care,THIRD PARTY PAYMENTS,PRIVATE CONTRACTOR,REVENUE
Walsall Council,http://opendatacommunities.org/id/metropolitan-district-council/walsall ,WC141-534,31.08.2022,ADULT SOCIAL CARE,ADVANCE HEALTH CARE (UK) LTD,26/08/2022,331.80,6541-Domiciliary Care,THIRD PARTY PAYMENTS,PRIVATE CONTRACTOR,REVENUE
Walsall Council,http://opendatacommunities.org/id/metropolitan-district-council/walsall ,WC141-535,31.08.2022,ADULT SOCIAL CARE,ADVANCE HEALTH CARE (UK) LTD,26/08/2022,497.70,6541-Domiciliary Care,THIRD PARTY PAYMENTS,PRIVATE CONTRACTOR,REVENUE
Walsall Council,http://opendatacommunities.org/id/metropolitan-district-council/walsall ,WC141-536,31.08.2022,ADULT SOCIAL CARE,ADVANCE HEALTH CARE (UK) LTD,26/08/2022,497.70,6541-Domiciliary Care,THIRD PARTY PAYMENTS,PRIVATE CONTRACTOR,REVENUE
Walsall Council,http://opendatacommunities.org/id/metropolitan-district-council/walsall ,WC141-537,31.08.2022,ADULT SOCIAL CARE,ADVANCE HEALTH CARE (UK) LTD,26/08/2022,553.00,6541-Domiciliary Care,THIRD PARTY PAYMENTS,PRIVATE CONTRACTOR,REVENUE
Walsall Council,http://opendatacommunities.org/id/metropolitan-district-council/walsall ,WC141-538,31.08.2022,ADULT SOCIAL CARE,ADVANCE HEALTH CARE (UK) LTD,26/08/2022,497.70,6541-Domiciliary Care,THIRD PARTY PAYMENTS,PRIVATE CONTRACTOR,REVENUE
Walsall Council,http://opendatacommunities.org/id/metropolitan-district-council/walsall ,WC141-539,31.08.2022,ADULT SOCIAL CARE,ADVANCE HEALTH CARE (UK) LTD,26/08/2022,331.94,6541-Domiciliary Care,THIRD PARTY PAYMENTS,PRIVATE CONTRACTOR,REVENUE
Walsall Council,http://opendatacommunities.org/id/metropolitan-district-council/walsall ,WC141-540,31.08.2022,ADULT SOCIAL CARE,ADVANCE HEALTH CARE (UK) LTD,26/08/2022,497.70,6541-Domiciliary Care,THIRD PARTY PAYMENTS,PRIVATE CONTRACTOR,REVENUE
Walsall Council,http://opendatacommunities.org/id/metropolitan-district-council/walsall ,WC141-541,31.08.2022,ADULT SOCIAL CARE,ADVANCE HEALTH CARE (UK) LTD,26/08/2022,553.00,6541-Domiciliary Care,THIRD PARTY PAYMENTS,PRIVATE CONTRACTOR,REVENUE
Walsall Council,http://opendatacommunities.org/id/metropolitan-district-council/walsall ,WC141-542,31.08.2022,ADULT SOCIAL CARE,ADVANCE HEALTH CARE (UK) LTD,26/08/2022,387.10,6541-Domiciliary Care,THIRD PARTY PAYMENTS,PRIVATE CONTRACTOR,REVENUE
Walsall Council,http://opendatacommunities.org/id/metropolitan-district-council/walsall ,WC141-543,31.08.2022,ADULT SOCIAL CARE,ADVANCE HEALTH CARE (UK) LTD,26/08/2022,884.80,6541-Domiciliary Care,THIRD PARTY PAYMENTS,PRIVATE CONTRACTOR,REVENUE
Walsall Council,http://opendatacommunities.org/id/metropolitan-district-council/walsall ,WC141-544,31.08.2022,ADULT SOCIAL CARE,ADVANCE HEALTH CARE (UK) LTD,26/08/2022,497.70,6541-Domiciliary Care,THIRD PARTY PAYMENTS,PRIVATE CONTRACTOR,REVENUE
Walsall Council,http://opendatacommunities.org/id/metropolitan-district-council/walsall ,WC141-545,31.08.2022,ADULT SOCIAL CARE,ADVANCE HEALTH CARE (UK) LTD,26/08/2022,442.40,6541-Domiciliary Care,THIRD PARTY PAYMENTS,PRIVATE CONTRACTOR,REVENUE
Walsall Council,http://opendatacommunities.org/id/metropolitan-district-council/walsall ,WC141-546,31.08.2022,ADULT SOCIAL CARE,ADVANCE HEALTH CARE (UK) LTD,26/08/2022,576.70,6541-Domiciliary Care,THIRD PARTY PAYMENTS,PRIVATE CONTRACTOR,REVENUE
Walsall Council,http://opendatacommunities.org/id/metropolitan-district-council/walsall ,WC141-547,31.08.2022,ADULT SOCIAL CARE,ADVANCE HEALTH CARE (UK) LTD,26/08/2022,497.70,6541-Domiciliary Care,THIRD PARTY PAYMENTS,PRIVATE CONTRACTOR,REVENUE
Walsall Council,http://opendatacommunities.org/id/metropolitan-district-council/walsall ,WC141-548,31.08.2022,ADULT SOCIAL CARE,ADVANCE HEALTH CARE (UK) LTD,26/08/2022,497.70,6541-Domiciliary Care,THIRD PARTY PAYMENTS,PRIVATE CONTRACTOR,REVENUE
Walsall Council,http://opendatacommunities.org/id/metropolitan-district-council/walsall ,WC141-549,31.08.2022,ADULT SOCIAL CARE,ADVANCE HEALTH CARE (UK) LTD,26/08/2022,368.76,6541-Domiciliary Care,THIRD PARTY PAYMENTS,PRIVATE CONTRACTOR,REVENUE
Walsall Council,http://opendatacommunities.org/id/metropolitan-district-council/walsall ,WC141-550,31.08.2022,ADULT SOCIAL CARE,ADVANCE HEALTH CARE (UK) LTD,26/08/2022,331.80,6541-Domiciliary Care,THIRD PARTY PAYMENTS,PRIVATE CONTRACTOR,REVENUE
Walsall Council,http://opendatacommunities.org/id/metropolitan-district-council/walsall ,WC141-551,31.08.2022,ADULT SOCIAL CARE,ADVANCE HEALTH CARE (UK) LTD,26/08/2022,331.94,6541-Domiciliary Care,THIRD PARTY PAYMENTS,PRIVATE CONTRACTOR,REVENUE
Walsall Council,http://opendatacommunities.org/id/metropolitan-district-council/walsall ,WC141-552,31.08.2022,ADULT SOCIAL CARE,ADVANCE HEALTH CARE (UK) LTD,26/08/2022,497.70,6541-Domiciliary Care,THIRD PARTY PAYMENTS,PRIVATE CONTRACTOR,REVENUE
Walsall Council,http://opendatacommunities.org/id/metropolitan-district-council/walsall ,WC141-553,31.08.2022,ADULT SOCIAL CARE,ADVANCE HEALTH CARE (UK) LTD,26/08/2022,553.00,6541-Domiciliary Care,THIRD PARTY PAYMENTS,PRIVATE CONTRACTOR,REVENUE
Walsall Council,http://opendatacommunities.org/id/metropolitan-district-council/walsall ,WC141-554,31.08.2022,ADULT SOCIAL CARE,ADVANCE HEALTH CARE (UK) LTD,26/08/2022,497.70,6541-Domiciliary Care,THIRD PARTY PAYMENTS,PRIVATE CONTRACTOR,REVENUE
Walsall Council,http://opendatacommunities.org/id/metropolitan-district-council/walsall ,WC141-555,31.08.2022,ADULT SOCIAL CARE,ADVANCE HEALTH CARE (UK) LTD,26/08/2022,497.70,6541-Domiciliary Care,THIRD PARTY PAYMENTS,PRIVATE CONTRACTOR,REVENUE
Walsall Council,http://opendatacommunities.org/id/metropolitan-district-council/walsall ,WC141-556,31.08.2022,ADULT SOCIAL CARE,ADVANCE HEALTH CARE (UK) LTD,26/08/2022,331.80,6541-Domiciliary Care,THIRD PARTY PAYMENTS,PRIVATE CONTRACTOR,REVENUE
Walsall Council,http://opendatacommunities.org/id/metropolitan-district-council/walsall ,WC141-557,31.08.2022,ADULT SOCIAL CARE,ADVANCE HEALTH CARE (UK) LTD,26/08/2022,497.70,6541-Domiciliary Care,THIRD PARTY PAYMENTS,PRIVATE CONTRACTOR,REVENUE
Walsall Council,http://opendatacommunities.org/id/metropolitan-district-council/walsall ,WC141-558,31.08.2022,ADULT SOCIAL CARE,ADVANCE HEALTH CARE (UK) LTD,26/08/2022,497.70,6541-Domiciliary Care,THIRD PARTY PAYMENTS,PRIVATE CONTRACTOR,REVENUE
Walsall Council,http://opendatacommunities.org/id/metropolitan-district-council/walsall ,WC141-559,31.08.2022,ADULT SOCIAL CARE,ADVANCE HEALTH CARE (UK) LTD,26/08/2022,845.30,6541-Domiciliary Care,THIRD PARTY PAYMENTS,PRIVATE CONTRACTOR,REVENUE
Walsall Council,http://opendatacommunities.org/id/metropolitan-district-council/walsall ,WC141-560,31.08.2022,ADULT SOCIAL CARE,ADVANCE HEALTH CARE (UK) LTD,26/08/2022,531.98,6541-Domiciliary Care,THIRD PARTY PAYMENTS,PRIVATE CONTRACTOR,REVENUE
Walsall Council,http://opendatacommunities.org/id/metropolitan-district-council/walsall ,WC141-561,31.08.2022,ADULT SOCIAL CARE,ADVANCE HEALTH CARE (UK) LTD,26/08/2022,387.24,6541-Domiciliary Care,THIRD PARTY PAYMENTS,PRIVATE CONTRACTOR,REVENUE
Walsall Council,http://opendatacommunities.org/id/metropolitan-district-council/walsall ,WC141-562,31.08.2022,ADULT SOCIAL CARE,ADVANCE HEALTH CARE (UK) LTD,26/08/2022,497.70,6541-Domiciliary Care,THIRD PARTY PAYMENTS,PRIVATE CONTRACTOR,REVENUE
Walsall Council,http://opendatacommunities.org/id/metropolitan-district-council/walsall ,WC141-563,31.08.2022,ADULT SOCIAL CARE,ADVANCE HEALTH CARE (UK) LTD,26/08/2022,497.70,6541-Domiciliary Care,THIRD PARTY PAYMENTS,PRIVATE CONTRACTOR,REVENUE
Walsall Council,http://opendatacommunities.org/id/metropolitan-district-council/walsall ,WC141-564,31.08.2022,ADULT SOCIAL CARE,ADVANCE HEALTH CARE (UK) LTD,26/08/2022,489.80,6541-Domiciliary Care,THIRD PARTY PAYMENTS,PRIVATE CONTRACTOR,REVENUE
Walsall Council,http://opendatacommunities.org/id/metropolitan-district-council/walsall ,WC141-565,31.08.2022,ADULT SOCIAL CARE,ADVANCE HEALTH CARE (UK) LTD,26/08/2022,576.70,6541-Domiciliary Care,THIRD PARTY PAYMENTS,PRIVATE CONTRACTOR,REVENUE
Walsall Council,http://opendatacommunities.org/id/metropolitan-district-council/walsall ,WC141-566,31.08.2022,ADULT SOCIAL CARE,ADVANCE HEALTH CARE (UK) LTD,26/08/2022,497.70,6541-Domiciliary Care,THIRD PARTY PAYMENTS,PRIVATE CONTRACTOR,REVENUE
Walsall Council,http://opendatacommunities.org/id/metropolitan-district-council/walsall ,WC141-567,31.08.2022,ADULT SOCIAL CARE,ADVANCE HEALTH CARE (UK) LTD,26/08/2022,497.70,6541-Domiciliary Care,THIRD PARTY PAYMENTS,PRIVATE CONTRACTOR,REVENUE
Walsall Council,http://opendatacommunities.org/id/metropolitan-district-council/walsall ,WC141-568,31.08.2022,ADULT SOCIAL CARE,ADVANCE HEALTH CARE (UK) LTD,26/08/2022,368.76,6541-Domiciliary Care,THIRD PARTY PAYMENTS,PRIVATE CONTRACTOR,REVENUE
Walsall Council,http://opendatacommunities.org/id/metropolitan-district-council/walsall ,WC141-569,31.08.2022,ADULT SOCIAL CARE,ADVANCE HEALTH CARE (UK) LTD,26/08/2022,331.80,6541-Domiciliary Care,THIRD PARTY PAYMENTS,PRIVATE CONTRACTOR,REVENUE
Walsall Council,http://opendatacommunities.org/id/metropolitan-district-council/walsall ,WC141-570,31.08.2022,ADULT SOCIAL CARE,ADVANCE HEALTH CARE (UK) LTD,26/08/2022,331.94,6541-Domiciliary Care,THIRD PARTY PAYMENTS,PRIVATE CONTRACTOR,REVENUE
Walsall Council,http://opendatacommunities.org/id/metropolitan-district-council/walsall ,WC141-571,31.08.2022,ADULT SOCIAL CARE,ADVANCE HEALTH CARE (UK) LTD,26/08/2022,497.70,6541-Domiciliary Care,THIRD PARTY PAYMENTS,PRIVATE CONTRACTOR,REVENUE
Walsall Council,http://opendatacommunities.org/id/metropolitan-district-council/walsall ,WC141-572,31.08.2022,ADULT SOCIAL CARE,ADVANCE HEALTH CARE (UK) LTD,26/08/2022,387.10,6541-Domiciliary Care,THIRD PARTY PAYMENTS,PRIVATE CONTRACTOR,REVENUE
Walsall Council,http://opendatacommunities.org/id/metropolitan-district-council/walsall ,WC141-573,31.08.2022,ADULT SOCIAL CARE,ADVANCE HEALTH CARE (UK) LTD,26/08/2022,331.80,6541-Domiciliary Care,THIRD PARTY PAYMENTS,PRIVATE CONTRACTOR,REVENUE
Walsall Council,http://opendatacommunities.org/id/metropolitan-district-council/walsall ,WC141-574,31.08.2022,ADULT SOCIAL CARE,ADVANCE HEALTH CARE (UK) LTD,26/08/2022,497.70,6541-Domiciliary Care,THIRD PARTY PAYMENTS,PRIVATE CONTRACTOR,REVENUE
Walsall Council,http://opendatacommunities.org/id/metropolitan-district-council/walsall ,WC141-575,31.08.2022,ADULT SOCIAL CARE,ADVANCE HEALTH CARE (UK) LTD,26/08/2022,497.70,6541-Domiciliary Care,THIRD PARTY PAYMENTS,PRIVATE CONTRACTOR,REVENUE
Walsall Council,http://opendatacommunities.org/id/metropolitan-district-council/walsall ,WC141-576,31.08.2022,ADULT SOCIAL CARE,ADVANCE HEALTH CARE (UK) LTD,26/08/2022,553.00,6541-Domiciliary Care,THIRD PARTY PAYMENTS,PRIVATE CONTRACTOR,REVENUE
Walsall Council,http://opendatacommunities.org/id/metropolitan-district-council/walsall ,WC141-577,31.08.2022,ADULT SOCIAL CARE,ADVANCE HEALTH CARE (UK) LTD,26/08/2022,331.94,6541-Domiciliary Care,THIRD PARTY PAYMENTS,PRIVATE CONTRACTOR,REVENUE
Walsall Council,http://opendatacommunities.org/id/metropolitan-district-council/walsall ,WC141-578,31.08.2022,ADULT SOCIAL CARE,ADVANCE HEALTH CARE (UK) LTD,26/08/2022,497.70,6541-Domiciliary Care,THIRD PARTY PAYMENTS,PRIVATE CONTRACTOR,REVENUE
Walsall Council,http://opendatacommunities.org/id/metropolitan-district-council/walsall ,WC141-579,31.08.2022,ADULT SOCIAL CARE,ADVANCE HEALTH CARE (UK) LTD,26/08/2022,553.00,6541-Domiciliary Care,THIRD PARTY PAYMENTS,PRIVATE CONTRACTOR,REVENUE
Walsall Council,http://opendatacommunities.org/id/metropolitan-district-council/walsall ,WC141-580,31.08.2022,ADULT SOCIAL CARE,ADVANCE HEALTH CARE (UK) LTD,26/08/2022,497.70,6541-Domiciliary Care,THIRD PARTY PAYMENTS,PRIVATE CONTRACTOR,REVENUE
Walsall Council,http://opendatacommunities.org/id/metropolitan-district-council/walsall ,WC141-581,31.08.2022,ADULT SOCIAL CARE,ADVANCE HEALTH CARE (UK) LTD,26/08/2022,442.40,6541-Domiciliary Care,THIRD PARTY PAYMENTS,PRIVATE CONTRACTOR,REVENUE
Walsall Council,http://opendatacommunities.org/id/metropolitan-district-council/walsall ,WC141-582,31.08.2022,ADULT SOCIAL CARE,ADVANCE HEALTH CARE (UK) LTD,26/08/2022,497.70,6541-Domiciliary Care,THIRD PARTY PAYMENTS,PRIVATE CONTRACTOR,REVENUE
Walsall Council,http://opendatacommunities.org/id/metropolitan-district-council/walsall ,WC141-583,31.08.2022,ADULT SOCIAL CARE,ADVANCE HEALTH CARE (UK) LTD,26/08/2022,331.80,6541-Domiciliary Care,THIRD PARTY PAYMENTS,PRIVATE CONTRACTOR,REVENUE
Walsall Council,http://opendatacommunities.org/id/metropolitan-district-council/walsall ,WC141-584,31.08.2022,ADULT SOCIAL CARE,ADVANCE HEALTH CARE (UK) LTD,26/08/2022,553.00,6541-Domiciliary Care,THIRD PARTY PAYMENTS,PRIVATE CONTRACTOR,REVENUE
Walsall Council,http://opendatacommunities.org/id/metropolitan-district-council/walsall ,WC141-585,31.08.2022,ADULT SOCIAL CARE,ADVANCE HEALTH CARE (UK) LTD,26/08/2022,387.10,6541-Domiciliary Care,THIRD PARTY PAYMENTS,PRIVATE CONTRACTOR,REVENUE
Walsall Council,http://opendatacommunities.org/id/metropolitan-district-council/walsall ,WC141-586,31.08.2022,ADULT SOCIAL CARE,ADVANCE HEALTH CARE (UK) LTD,26/08/2022,884.80,6541-Domiciliary Care,THIRD PARTY PAYMENTS,PRIVATE CONTRACTOR,REVENUE
Walsall Council,http://opendatacommunities.org/id/metropolitan-district-council/walsall ,WC141-587,31.08.2022,ADULT SOCIAL CARE,ADVANCE HEALTH CARE (UK) LTD,26/08/2022,497.70,6541-Domiciliary Care,THIRD PARTY PAYMENTS,PRIVATE CONTRACTOR,REVENUE
Walsall Council,http://opendatacommunities.org/id/metropolitan-district-council/walsall ,WC141-588,31.08.2022,ADULT SOCIAL CARE,ADVANCE HEALTH CARE (UK) LTD,26/08/2022,497.70,6541-Domiciliary Care,THIRD PARTY PAYMENTS,PRIVATE CONTRACTOR,REVENUE
Walsall Council,http://opendatacommunities.org/id/metropolitan-district-council/walsall ,WC141-589,31.08.2022,ADULT SOCIAL CARE,ADVANCE HEALTH CARE (UK) LTD,26/08/2022,497.70,6541-Domiciliary Care,THIRD PARTY PAYMENTS,PRIVATE CONTRACTOR,REVENUE
Walsall Council,http://opendatacommunities.org/id/metropolitan-district-council/walsall ,WC141-590,31.08.2022,ADULT SOCIAL CARE,ADVANCE HEALTH CARE (UK) LTD,17/08/2022,485.73,6554-Professional Services-Priv Contractor & Other Agencies,THIRD PARTY PAYMENTS,PRIVATE CONTRACTOR,REVENUE
Walsall Council,http://opendatacommunities.org/id/metropolitan-district-council/walsall ,WC141-591,31.08.2022,ADULT SOCIAL CARE,ADVANCE HEALTH CARE (UK) LTD,19/08/2022,485.73,6554-Professional Services-Priv Contractor & Other Agencies,THIRD PARTY PAYMENTS,PRIVATE CONTRACTOR,REVENUE
Walsall Council,http://opendatacommunities.org/id/metropolitan-district-council/walsall ,WC141-592,31.08.2022,ADULT SOCIAL CARE,ADVANCE HEALTH CARE (UK) LTD,19/08/2022,485.73,6554-Professional Services-Priv Contractor & Other Agencies,THIRD PARTY PAYMENTS,PRIVATE CONTRACTOR,REVENUE
Walsall Council,http://opendatacommunities.org/id/metropolitan-district-council/walsall ,WC141-593,31.08.2022,ADULT SOCIAL CARE,ADVANCE HEALTH CARE (UK) LTD,19/08/2022,485.73,6554-Professional Services-Priv Contractor & Other Agencies,THIRD PARTY PAYMENTS,PRIVATE CONTRACTOR,REVENUE
Walsall Council,http://opendatacommunities.org/id/metropolitan-district-council/walsall ,WC141-594,31.08.2022,CHILDRENS,ADVANCED CHILD CARE ASSESSMENTS LTD,23/08/2022,346.20,6220-School Only Payments - Catering,THIRD PARTY PAYMENTS,INDEPENDENT UNIT WITHIN COUNCIL,REVENUE
Walsall Council,http://opendatacommunities.org/id/metropolitan-district-council/walsall ,WC141-595,31.08.2022,CHILDRENS,ADVANCED CHILD CARE ASSESSMENTS LTD,23/08/2022,288.45,6220-School Only Payments - Catering,THIRD PARTY PAYMENTS,INDEPENDENT UNIT WITHIN COUNCIL,REVENUE
Walsall Council,http://opendatacommunities.org/id/metropolitan-district-council/walsall ,WC141-596,31.08.2022,CHILDRENS,ADVANCED CHILD CARE ASSESSMENTS LTD,23/08/2022,"2,508.35",6220-School Only Payments - Catering,THIRD PARTY PAYMENTS,INDEPENDENT UNIT WITHIN COUNCIL,REVENUE
Walsall Council,http://opendatacommunities.org/id/metropolitan-district-council/walsall ,WC141-597,31.08.2022,RESOURCES AND TRANSFORMATION,ADVANCED CONTRACTS (MIDLANDS) LTD,11/08/2022,"19,840.00",6310-Operational Maintenance,PREMISES,REPAIRS & MAINTENANCE,REVENUE
Walsall Council,http://opendatacommunities.org/id/metropolitan-district-council/walsall ,WC141-598,31.08.2022,CHILDRENS CAPITAL,ADVANCED CONTRACTS (MIDLANDS) LTD,15/08/2022,"35,540.00",7150-Site Works Contractors,CAPITAL,"NEW CONSTRUCTION,CONVERSION & RENOVATION",CAPITAL
Walsall Council,http://opendatacommunities.org/id/metropolitan-district-council/walsall ,WC141-599,31.08.2022,ADULT SOCIAL CARE,ADVINIA CARE HOMES LTD - HAMMERWICH HALL CARE HOME,02/08/2022,"2,366.04",6541-Residential EMI,THIRD PARTY PAYMENTS,PRIVATE CONTRACTOR,REVENUE
Walsall Council,http://opendatacommunities.org/id/metropolitan-district-council/walsall ,WC141-600,31.08.2022,ADULT SOCIAL CARE,ADVINIA CARE HOMES LTD - HAMMERWICH HALL CARE HOME,02/08/2022,"2,095.40",6541-Residential,THIRD PARTY PAYMENTS,PRIVATE CONTRACTOR,REVENUE
Walsall Council,http://opendatacommunities.org/id/metropolitan-district-council/walsall ,WC141-601,31.08.2022,ADULT SOCIAL CARE,ADVINIA CARE HOMES LTD - HAMMERWICH HALL CARE HOME,26/08/2022,"2,366.04",6541-Residential EMI,THIRD PARTY PAYMENTS,PRIVATE CONTRACTOR,REVENUE
Walsall Council,http://opendatacommunities.org/id/metropolitan-district-council/walsall ,WC141-602,31.08.2022,ADULT SOCIAL CARE,ADVINIA CARE HOMES LTD - HAMMERWICH HALL CARE HOME,26/08/2022,"2,095.40",6541-Residential,THIRD PARTY PAYMENTS,PRIVATE CONTRACTOR,REVENUE
Walsall Council,http://opendatacommunities.org/id/metropolitan-district-council/walsall ,WC141-603,31.08.2022,CHILDRENS,REDACTED,11/08/2022,667.00,6223-Higher Education Entitlements,TRANSFER PAYMENTS,CHILDREN SOCIAL SERVICES CLIENT,REVENUE
Walsall Council,http://opendatacommunities.org/id/metropolitan-district-council/walsall ,WC141-604,31.08.2022,CHILDRENS,REDACTED,11/08/2022,460.00,6223-Setting Up Home Grant,TRANSFER PAYMENTS,CHILDREN SOCIAL SERVICES CLIENT,REVENUE
Walsall Council,http://opendatacommunities.org/id/metropolitan-district-council/walsall ,WC141-605,31.08.2022,RESOURCES AND TRANSFORMATION,AFRICAN FRENCH SPEAKING COMMUNITY SUPPORT,10/08/2022,"4,785.90",6312-Grants to Other Orgs,SUPPLIES & SERVICES,GRANTS (EXP) & SUBSCRIPTIONS,REVENUE
Walsall Council,http://opendatacommunities.org/id/metropolitan-district-council/walsall ,WC141-606,31.08.2022,RESOURCES AND TRANSFORMATION,AGILE APPLICATIONS LIMITED,02/08/2022,"36,000.00",6623-Computer Equipment,SUPPLIES & SERVICES,COMMUNICATIONS & COMPUTING,REVENUE
Walsall Council,http://opendatacommunities.org/id/metropolitan-district-council/walsall ,WC141-607,31.08.2022,RESOURCES AND TRANSFORMATION CAPITAL,AGILISYS LTD,02/08/2022,"-122,437.00",7300-Consultants Fees,CAPITAL,"NEW CONSTRUCTION,CONVERSION & RENOVATION",CAPITAL
Walsall Council,http://opendatacommunities.org/id/metropolitan-district-council/walsall ,WC141-608,31.08.2022,RESOURCES AND TRANSFORMATION CAPITAL,AGILISYS LTD,02/08/2022,"122,437.00",7300-Consultants Fees,CAPITAL,"NEW CONSTRUCTION,CONVERSION & RENOVATION",CAPITAL
Walsall Council,http://opendatacommunities.org/id/metropolitan-district-council/walsall ,WC141-609,31.08.2022,RESOURCES AND TRANSFORMATION CAPITAL,AGILISYS LTD,05/08/2022,"-2,288.88",7300-Consultants Fees,CAPITAL,"NEW CONSTRUCTION,CONVERSION & RENOVATION",CAPITAL
Walsall Council,http://opendatacommunities.org/id/metropolitan-district-council/walsall ,WC141-610,31.08.2022,RESOURCES AND TRANSFORMATION CAPITAL,AGILISYS LTD,12/08/2022,"-120,000.00",7300-Consultants Fees,CAPITAL,"NEW CONSTRUCTION,CONVERSION & RENOVATION",CAPITAL
Walsall Council,http://opendatacommunities.org/id/metropolitan-district-council/walsall ,WC141-611,31.08.2022,RESOURCES AND TRANSFORMATION CAPITAL,AGILISYS LTD,12/08/2022,"120,000.00",7300-Consultants Fees,CAPITAL,"NEW CONSTRUCTION,CONVERSION & RENOVATION",CAPITAL
Walsall Council,http://opendatacommunities.org/id/metropolitan-district-council/walsall ,WC141-612,31.08.2022,RESOURCES AND TRANSFORMATION CAPITAL,AGILISYS LTD,12/08/2022,"85,182.90",7300-Consultants Fees,CAPITAL,"NEW CONSTRUCTION,CONVERSION & RENOVATION",CAPITAL
Walsall Council,http://opendatacommunities.org/id/metropolitan-district-council/walsall ,WC141-613,31.08.2022,RESOURCES AND TRANSFORMATION CAPITAL,AGILISYS LTD,05/08/2022,"-122,437.00",7300-Consultants Fees,CAPITAL,"NEW CONSTRUCTION,CONVERSION & RENOVATION",CAPITAL
Walsall Council,http://opendatacommunities.org/id/metropolitan-district-council/walsall ,WC141-614,31.08.2022,RESOURCES AND TRANSFORMATION CAPITAL,AGILISYS LTD,16/08/2022,"52,101.00",7300-Consultants Fees,CAPITAL,"NEW CONSTRUCTION,CONVERSION & RENOVATION",CAPITAL
Walsall Council,http://opendatacommunities.org/id/metropolitan-district-council/walsall ,WC141-615,31.08.2022,RESOURCES AND TRANSFORMATION CAPITAL,AGILISYS LTD,26/08/2022,"12,334.52",7300-Consultants Fees,CAPITAL,"NEW CONSTRUCTION,CONVERSION & RENOVATION",CAPITAL
Walsall Council,http://opendatacommunities.org/id/metropolitan-district-council/walsall ,WC141-616,31.08.2022,"ECONOMY, ENVIRONMENT & COMMUNITIES",AGROVISTA UK LTD,09/08/2022,307.15,6410-Materials,SUPPLIES & SERVICES,EQUIPMENT FURNITURE & MATERIALS,REVENUE
Walsall Council,http://opendatacommunities.org/id/metropolitan-district-council/walsall ,WC141-617,31.08.2022,"ECONOMY, ENVIRONMENT & COMMUNITIES",AGROVISTA UK LTD,09/08/2022,401.99,6410-Materials,SUPPLIES & SERVICES,EQUIPMENT FURNITURE & MATERIALS,REVENUE
Walsall Council,http://opendatacommunities.org/id/metropolitan-district-council/walsall ,WC141-618,31.08.2022,"ECONOMY, ENVIRONMENT & COMMUNITIES",AGROVISTA UK LTD,11/08/2022,899.00,6410-Materials,SUPPLIES & SERVICES,EQUIPMENT FURNITURE & MATERIALS,REVENUE
Walsall Council,http://opendatacommunities.org/id/metropolitan-district-council/walsall ,WC141-619,31.08.2022,"ECONOMY, ENVIRONMENT & COMMUNITIES",AGROVISTA UK LTD,11/08/2022,"1,123.08",6410-Materials,SUPPLIES & SERVICES,EQUIPMENT FURNITURE & MATERIALS,REVENUE
Walsall Council,http://opendatacommunities.org/id/metropolitan-district-council/walsall ,WC141-620,31.08.2022,"ECONOMY, ENVIRONMENT & COMMUNITIES",AGROVISTA UK LTD,16/08/2022,493.70,6410-Materials,SUPPLIES & SERVICES,EQUIPMENT FURNITURE & MATERIALS,REVENUE
Walsall Council,http://opendatacommunities.org/id/metropolitan-district-council/walsall ,WC141-621,31.08.2022,"ECONOMY, ENVIRONMENT & COMMUNITIES",AGROVISTA UK LTD,16/08/2022,486.40,6410-Materials,SUPPLIES & SERVICES,EQUIPMENT FURNITURE & MATERIALS,REVENUE
Walsall Council,http://opendatacommunities.org/id/metropolitan-district-council/walsall ,WC141-622,31.08.2022,ADULT SOCIAL CARE,REDACTED,03/08/2022,"2,517.12",6541-Direct Payment,THIRD PARTY PAYMENTS,PRIVATE CONTRACTOR,REVENUE
Walsall Council,http://opendatacommunities.org/id/metropolitan-district-council/walsall ,WC141-623,31.08.2022,ADULT SOCIAL CARE,REDACTED,03/08/2022,639.20,6541-Direct Payment,THIRD PARTY PAYMENTS,PRIVATE CONTRACTOR,REVENUE
Walsall Council,http://opendatacommunities.org/id/metropolitan-district-council/walsall ,WC141-624,31.08.2022,CHILDRENS,ALAN SAVILL T/A INSPIRED TRAINERS,02/08/2022,"1,460.00",6211-External Training,INDIRECT EMPLOYEES,EXTERNAL TRAINING,REVENUE
Walsall Council,http://opendatacommunities.org/id/metropolitan-district-council/walsall ,WC141-625,31.08.2022,"ECONOMY, ENVIRONMENT & COMMUNITIES",ALBERT JAGGER LTD,15/08/2022,607.52,6410-Materials to Stores,SUPPLIES & SERVICES,EQUIPMENT FURNITURE & MATERIALS,REVENUE
Walsall Council,http://opendatacommunities.org/id/metropolitan-district-council/walsall ,WC141-626,31.08.2022,CHILDRENS,ALDRIDGE & BARONS LIMITED,16/08/2022,"1,560.00",6241-Hire of Vehicle with Driver,TRANSPORT,DIRECT TRANSPORT COSTS,REVENUE
Walsall Council,http://opendatacommunities.org/id/metropolitan-district-council/walsall ,WC141-627,31.08.2022,CHILDRENS,ALDRIDGE & BARONS LIMITED,16/08/2022,"1,702.50",6241-Hire of Vehicle with Driver,TRANSPORT,DIRECT TRANSPORT COSTS,REVENUE
Walsall Council,http://opendatacommunities.org/id/metropolitan-district-council/walsall ,WC141-628,31.08.2022,CHILDRENS,ALDRIDGE & BARONS LIMITED,16/08/2022,"2,023.50",6241-Hire of Vehicle with Driver,TRANSPORT,DIRECT TRANSPORT COSTS,REVENUE
Walsall Council,http://opendatacommunities.org/id/metropolitan-district-council/walsall ,WC141-629,31.08.2022,CHILDRENS,ALDRIDGE & BARONS LIMITED,16/08/2022,"1,263.00",6241-Hire of Vehicle with Driver,TRANSPORT,DIRECT TRANSPORT COSTS,REVENUE
Walsall Council,http://opendatacommunities.org/id/metropolitan-district-council/walsall ,WC141-630,31.08.2022,CHILDRENS,ALDRIDGE & BARONS LIMITED,16/08/2022,"1,950.00",6241-Hire of Vehicle with Driver,TRANSPORT,DIRECT TRANSPORT COSTS,REVENUE
Walsall Council,http://opendatacommunities.org/id/metropolitan-district-council/walsall ,WC141-631,31.08.2022,CHILDRENS,ALDRIDGE & BARONS LIMITED,16/08/2022,"1,848.00",6241-Hire of Vehicle with Driver,TRANSPORT,DIRECT TRANSPORT COSTS,REVENUE
Walsall Council,http://opendatacommunities.org/id/metropolitan-district-council/walsall ,WC141-632,31.08.2022,CHILDRENS,ALDRIDGE & BARONS LIMITED,16/08/2022,"1,503.32",6241-Hire of Vehicle with Driver,TRANSPORT,DIRECT TRANSPORT COSTS,REVENUE
Walsall Council,http://opendatacommunities.org/id/metropolitan-district-council/walsall ,WC141-633,31.08.2022,CHILDRENS,ALDRIDGE & BARONS LIMITED,16/08/2022,"1,800.00",6241-Hire of Vehicle with Driver,TRANSPORT,DIRECT TRANSPORT COSTS,REVENUE
Walsall Council,http://opendatacommunities.org/id/metropolitan-district-council/walsall ,WC141-634,31.08.2022,CHILDRENS,ALDRIDGE & BARONS LIMITED,16/08/2022,281.40,6241-Hire of Vehicle with Driver,TRANSPORT,DIRECT TRANSPORT COSTS,REVENUE
Walsall Council,http://opendatacommunities.org/id/metropolitan-district-council/walsall ,WC141-635,31.08.2022,CHILDRENS,ALDRIDGE & BARONS LIMITED,16/08/2022,973.00,6241-Hire of Vehicle with Driver,TRANSPORT,DIRECT TRANSPORT COSTS,REVENUE
Walsall Council,http://opendatacommunities.org/id/metropolitan-district-council/walsall ,WC141-636,31.08.2022,CHILDRENS,ALDRIDGE & BARONS LIMITED,16/08/2022,"1,540.00",6241-Hire of Vehicle with Driver,TRANSPORT,DIRECT TRANSPORT COSTS,REVENUE
Walsall Council,http://opendatacommunities.org/id/metropolitan-district-council/walsall ,WC141-637,31.08.2022,CHILDRENS,ALDRIDGE & BARONS LIMITED,16/08/2022,"1,448.55",6241-Hire of Vehicle with Driver,TRANSPORT,DIRECT TRANSPORT COSTS,REVENUE
Walsall Council,http://opendatacommunities.org/id/metropolitan-district-council/walsall ,WC141-638,31.08.2022,CHILDRENS,ALDRIDGE & BARONS LIMITED,16/08/2022,387.00,6241-Hire of Vehicle with Driver,TRANSPORT,DIRECT TRANSPORT COSTS,REVENUE
Walsall Council,http://opendatacommunities.org/id/metropolitan-district-council/walsall ,WC141-639,31.08.2022,CHILDRENS,ALDRIDGE & BARONS LIMITED,16/08/2022,"1,652.00",6241-Hire of Vehicle with Driver,TRANSPORT,DIRECT TRANSPORT COSTS,REVENUE
Walsall Council,http://opendatacommunities.org/id/metropolitan-district-council/walsall ,WC141-640,31.08.2022,CHILDRENS,ALDRIDGE & BARONS LIMITED,16/08/2022,480.00,6241-Hire of Vehicle with Driver,TRANSPORT,DIRECT TRANSPORT COSTS,REVENUE
Walsall Council,http://opendatacommunities.org/id/metropolitan-district-council/walsall ,WC141-641,31.08.2022,CHILDRENS,ALDRIDGE & BARONS LIMITED,16/08/2022,"1,350.00",6241-Hire of Vehicle with Driver,TRANSPORT,DIRECT TRANSPORT COSTS,REVENUE
Walsall Council,http://opendatacommunities.org/id/metropolitan-district-council/walsall ,WC141-642,31.08.2022,CHILDRENS,ALDRIDGE & BARONS LIMITED,16/08/2022,"1,287.75",6241-Hire of Vehicle with Driver,TRANSPORT,DIRECT TRANSPORT COSTS,REVENUE
Walsall Council,http://opendatacommunities.org/id/metropolitan-district-council/walsall ,WC141-643,31.08.2022,CHILDRENS,ALDRIDGE & BARONS LIMITED,16/08/2022,885.00,6241-Hire of Vehicle with Driver,TRANSPORT,DIRECT TRANSPORT COSTS,REVENUE
Walsall Council,http://opendatacommunities.org/id/metropolitan-district-council/walsall ,WC141-644,31.08.2022,CHILDRENS,ALDRIDGE & BARONS LIMITED,16/08/2022,"1,708.50",6241-Hire of Vehicle with Driver,TRANSPORT,DIRECT TRANSPORT COSTS,REVENUE
Walsall Council,http://opendatacommunities.org/id/metropolitan-district-council/walsall ,WC141-645,31.08.2022,CHILDRENS,ALDRIDGE & BARONS LIMITED,16/08/2022,"1,042.20",6241-Hire of Vehicle with Driver,TRANSPORT,DIRECT TRANSPORT COSTS,REVENUE
Walsall Council,http://opendatacommunities.org/id/metropolitan-district-council/walsall ,WC141-646,31.08.2022,CHILDRENS,ALDRIDGE & BARONS LIMITED,16/08/2022,"2,100.00",6241-Hire of Vehicle with Driver,TRANSPORT,DIRECT TRANSPORT COSTS,REVENUE
Walsall Council,http://opendatacommunities.org/id/metropolitan-district-council/walsall ,WC141-647,31.08.2022,CHILDRENS,ALDRIDGE & BARONS LIMITED,16/08/2022,"1,569.10",6241-Hire of Vehicle with Driver,TRANSPORT,DIRECT TRANSPORT COSTS,REVENUE
Walsall Council,http://opendatacommunities.org/id/metropolitan-district-council/walsall ,WC141-648,31.08.2022,CHILDRENS,ALDRIDGE & BARONS LIMITED,16/08/2022,"1,674.00",6241-Hire of Vehicle with Driver,TRANSPORT,DIRECT TRANSPORT COSTS,REVENUE
Walsall Council,http://opendatacommunities.org/id/metropolitan-district-council/walsall ,WC141-649,31.08.2022,CHILDRENS,ALDRIDGE & BARONS LIMITED,16/08/2022,"2,700.00",6241-Hire of Vehicle with Driver,TRANSPORT,DIRECT TRANSPORT COSTS,REVENUE
Walsall Council,http://opendatacommunities.org/id/metropolitan-district-council/walsall ,WC141-650,31.08.2022,CHILDRENS,ALDRIDGE & BARONS LIMITED,16/08/2022,"1,260.00",6241-Hire of Vehicle with Driver,TRANSPORT,DIRECT TRANSPORT COSTS,REVENUE
Walsall Council,http://opendatacommunities.org/id/metropolitan-district-council/walsall ,WC141-651,31.08.2022,CHILDRENS,ALDRIDGE & BARONS LIMITED,16/08/2022,"1,540.00",6241-Hire of Vehicle with Driver,TRANSPORT,DIRECT TRANSPORT COSTS,REVENUE
Walsall Council,http://opendatacommunities.org/id/metropolitan-district-council/walsall ,WC141-652,31.08.2022,CHILDRENS,ALDRIDGE & BARONS LIMITED,16/08/2022,953.53,6241-Hire of Vehicle with Driver,TRANSPORT,DIRECT TRANSPORT COSTS,REVENUE
Walsall Council,http://opendatacommunities.org/id/metropolitan-district-council/walsall ,WC141-653,31.08.2022,CHILDRENS,ALDRIDGE & BARONS LIMITED,16/08/2022,"1,260.00",6241-Hire of Vehicle with Driver,TRANSPORT,DIRECT TRANSPORT COSTS,REVENUE
Walsall Council,http://opendatacommunities.org/id/metropolitan-district-council/walsall ,WC141-654,31.08.2022,CHILDRENS,ALDRIDGE & BARONS LIMITED,16/08/2022,"1,339.80",6241-Hire of Vehicle with Driver,TRANSPORT,DIRECT TRANSPORT COSTS,REVENUE
Walsall Council,http://opendatacommunities.org/id/metropolitan-district-council/walsall ,WC141-655,31.08.2022,CHILDRENS,ALDRIDGE & BARONS LIMITED,16/08/2022,"1,456.00",6241-Hire of Vehicle with Driver,TRANSPORT,DIRECT TRANSPORT COSTS,REVENUE
Walsall Council,http://opendatacommunities.org/id/metropolitan-district-council/walsall ,WC141-656,31.08.2022,CHILDRENS,ALDRIDGE & BARONS LIMITED,16/08/2022,"1,389.50",6241-Hire of Vehicle with Driver,TRANSPORT,DIRECT TRANSPORT COSTS,REVENUE
Walsall Council,http://opendatacommunities.org/id/metropolitan-district-council/walsall ,WC141-657,31.08.2022,CHILDRENS,ALDRIDGE & BARONS LIMITED,16/08/2022,"1,045.00",6241-Hire of Vehicle with Driver,TRANSPORT,DIRECT TRANSPORT COSTS,REVENUE
Walsall Council,http://opendatacommunities.org/id/metropolitan-district-council/walsall ,WC141-658,31.08.2022,CHILDRENS,ALDRIDGE & BARONS LIMITED,16/08/2022,297.00,6241-Hire of Vehicle with Driver,TRANSPORT,DIRECT TRANSPORT COSTS,REVENUE
Walsall Council,http://opendatacommunities.org/id/metropolitan-district-council/walsall ,WC141-659,31.08.2022,ADULT SOCIAL CARE,REDACTED,03/08/2022,"1,516.80",6541-Direct Payment,THIRD PARTY PAYMENTS,PRIVATE CONTRACTOR,REVENUE
Walsall Council,http://opendatacommunities.org/id/metropolitan-district-council/walsall ,WC141-660,31.08.2022,ADULT SOCIAL CARE,ALEXANDRA HOUSE CARE SERVICES LTD T/A STONEBRIDGE NURSING HOME,02/08/2022,"7,434.72",6541-Residential,THIRD PARTY PAYMENTS,PRIVATE CONTRACTOR,REVENUE
Walsall Council,http://opendatacommunities.org/id/metropolitan-district-council/walsall ,WC141-661,31.08.2022,ADULT SOCIAL CARE,ALEXANDRA HOUSE CARE SERVICES LTD T/A STONEBRIDGE NURSING HOME,26/08/2022,"7,434.72",6541-Residential,THIRD PARTY PAYMENTS,PRIVATE CONTRACTOR,REVENUE
Walsall Council,http://opendatacommunities.org/id/metropolitan-district-council/walsall ,WC141-662,31.08.2022,ADULT SOCIAL CARE,REDACTED,03/08/2022,971.52,6541-Direct Payment,THIRD PARTY PAYMENTS,PRIVATE CONTRACTOR,REVENUE
Walsall Council,http://opendatacommunities.org/id/metropolitan-district-council/walsall ,WC141-663,31.08.2022,CHILDRENS,REDACTED,24/08/2022,318.68,6223-Special Guardianship Orders,TRANSFER PAYMENTS,CHILDREN SOCIAL SERVICES CLIENT,REVENUE
Walsall Council,http://opendatacommunities.org/id/metropolitan-district-council/walsall ,WC141-664,31.08.2022,CHILDRENS,ALL SAINTS NATIONAL ACADEMY #1,18/08/2022,"5,366.96",1220-Top Up Funding -Grants to Schools,SUPPLIES & SERVICES,GRANTS (EXP) & SUBSCRIPTIONS,REVENUE
Walsall Council,http://opendatacommunities.org/id/metropolitan-district-council/walsall ,WC141-665,31.08.2022,ECONOMY & ENVIRONMENT CAPITAL,ALLIANCE LEISURE SERVICES LTD,15/08/2022,"31,747.14",7200-Site Works Contractors,CAPITAL,"NEW CONSTRUCTION,CONVERSION & RENOVATION",CAPITAL
Walsall Council,http://opendatacommunities.org/id/metropolitan-district-council/walsall ,WC141-666,31.08.2022,RESOURCES AND TRANSFORMATION,ALLIED PUBLICITY SERVICES (MANCHESTER) LIMITED T/A APS GROUP,12/08/2022,"1,572.01",6312-External Printing Services,SUPPLIES & SERVICES,PRINTING STATIONERY & GENERAL OFFICE,REVENUE
Walsall Council,http://opendatacommunities.org/id/metropolitan-district-council/walsall ,WC141-667,31.08.2022,RESOURCES AND TRANSFORMATION,ALLIED PUBLICITY SERVICES (MANCHESTER) LIMITED T/A APS GROUP,05/08/2022,"1,315.83",6312-External Printing Services,SUPPLIES & SERVICES,PRINTING STATIONERY & GENERAL OFFICE,REVENUE
Walsall Council,http://opendatacommunities.org/id/metropolitan-district-council/walsall ,WC141-668,31.08.2022,RESOURCES AND TRANSFORMATION CAPITAL,ALLSORTS OFFICE SUPPLIES LTD,31/08/2022,720.00,7300-Site Works Contractors,CAPITAL,"NEW CONSTRUCTION,CONVERSION & RENOVATION",CAPITAL
Walsall Council,http://opendatacommunities.org/id/metropolitan-district-council/walsall ,WC141-669,31.08.2022,RESOURCES AND TRANSFORMATION,ALLSORTS OFFICE SUPPLIES LTD,31/08/2022,379.29,6310-Purchase of Furniture & Equipment,SUPPLIES & SERVICES,EQUIPMENT FURNITURE & MATERIALS,REVENUE
Walsall Council,http://opendatacommunities.org/id/metropolitan-district-council/walsall ,WC141-670,31.08.2022,RESOURCES AND TRANSFORMATION,ALLSORTS OFFICE SUPPLIES LTD,31/08/2022,"2,386.32",6310-Purchase of Furniture & Equipment,SUPPLIES & SERVICES,EQUIPMENT FURNITURE & MATERIALS,REVENUE
Walsall Council,http://opendatacommunities.org/id/metropolitan-district-council/walsall ,WC141-671,31.08.2022,RESOURCES AND TRANSFORMATION,ALLSORTS OFFICE SUPPLIES LTD,31/08/2022,"2,583.00",6310-Purchase of Furniture & Equipment,SUPPLIES & SERVICES,EQUIPMENT FURNITURE & MATERIALS,REVENUE
Walsall Council,http://opendatacommunities.org/id/metropolitan-district-council/walsall ,WC141-672,31.08.2022,ADULT SOCIAL CARE,ALMA COURT,02/08/2022,"6,718.40",6541-Residential,THIRD PARTY PAYMENTS,PRIVATE CONTRACTOR,REVENUE
Walsall Council,http://opendatacommunities.org/id/metropolitan-district-council/walsall ,WC141-673,31.08.2022,ADULT SOCIAL CARE,ALMA COURT,02/08/2022,"4,805.72",6541-Nursing EMI,THIRD PARTY PAYMENTS,PRIVATE CONTRACTOR,REVENUE
Walsall Council,http://opendatacommunities.org/id/metropolitan-district-council/walsall ,WC141-674,31.08.2022,ADULT SOCIAL CARE,ALMA COURT,02/08/2022,"4,428.57",6541-Nursing EMI,THIRD PARTY PAYMENTS,PRIVATE CONTRACTOR,REVENUE
Walsall Council,http://opendatacommunities.org/id/metropolitan-district-council/walsall ,WC141-675,31.08.2022,ADULT SOCIAL CARE,ALMA COURT,02/08/2022,"4,263.00",6541-Residential,THIRD PARTY PAYMENTS,PRIVATE CONTRACTOR,REVENUE
Walsall Council,http://opendatacommunities.org/id/metropolitan-district-council/walsall ,WC141-676,31.08.2022,ADULT SOCIAL CARE,ALMA COURT,02/08/2022,"3,667.80",6541-Nursing EMI,THIRD PARTY PAYMENTS,PRIVATE CONTRACTOR,REVENUE
Walsall Council,http://opendatacommunities.org/id/metropolitan-district-council/walsall ,WC141-677,31.08.2022,ADULT SOCIAL CARE,ALMA COURT,26/08/2022,"4,805.72",6541-Nursing EMI,THIRD PARTY PAYMENTS,PRIVATE CONTRACTOR,REVENUE
Walsall Council,http://opendatacommunities.org/id/metropolitan-district-council/walsall ,WC141-678,31.08.2022,ADULT SOCIAL CARE,ALMA COURT,26/08/2022,"4,263.00",6541-Residential,THIRD PARTY PAYMENTS,PRIVATE CONTRACTOR,REVENUE
Walsall Council,http://opendatacommunities.org/id/metropolitan-district-council/walsall ,WC141-679,31.08.2022,ADULT SOCIAL CARE,ALMA COURT,26/08/2022,"3,667.80",6541-Nursing EMI,THIRD PARTY PAYMENTS,PRIVATE CONTRACTOR,REVENUE
Walsall Council,http://opendatacommunities.org/id/metropolitan-district-council/walsall ,WC141-680,31.08.2022,ADULT SOCIAL CARE,ALMA COURT,26/08/2022,"6,718.40",6541-Residential,THIRD PARTY PAYMENTS,PRIVATE CONTRACTOR,REVENUE
Walsall Council,http://opendatacommunities.org/id/metropolitan-district-council/walsall ,WC141-681,31.08.2022,ADULT SOCIAL CARE,ALMA COURT,26/08/2022,"4,000.00",6541-Nursing EMI,THIRD PARTY PAYMENTS,PRIVATE CONTRACTOR,REVENUE
Walsall Council,http://opendatacommunities.org/id/metropolitan-district-council/walsall ,WC141-682,31.08.2022,CHILDRENS,ALMOZENE NURSERY & CHILDRENS CENTRE,04/08/2022,"1,252.26",1220-Top Up Funding -Grants to Schools,SUPPLIES & SERVICES,GRANTS (EXP) & SUBSCRIPTIONS,REVENUE
Walsall Council,http://opendatacommunities.org/id/metropolitan-district-council/walsall ,WC141-683,31.08.2022,"ECONOMY, ENVIRONMENT & COMMUNITIES",ALMOZENE NURSERY & CHILDRENS CENTRE,25/08/2022,791.26,6313-Grants to Other Orgs,SUPPLIES & SERVICES,GRANTS (EXP) & SUBSCRIPTIONS,REVENUE
Walsall Council,http://opendatacommunities.org/id/metropolitan-district-council/walsall ,WC141-684,31.08.2022,"ECONOMY, ENVIRONMENT & COMMUNITIES",ALMOZENE NURSERY & CHILDRENS CENTRE,01/08/2022,"1,069.98",6313-Grants to Other Orgs,SUPPLIES & SERVICES,GRANTS (EXP) & SUBSCRIPTIONS,REVENUE
Walsall Council,http://opendatacommunities.org/id/metropolitan-district-council/walsall ,WC141-685,31.08.2022,ADULT SOCIAL CARE,ALPHA HEALTH CARE LTD,02/08/2022,"2,889.52",6541-Residential EMI,THIRD PARTY PAYMENTS,PRIVATE CONTRACTOR,REVENUE
Walsall Council,http://opendatacommunities.org/id/metropolitan-district-council/walsall ,WC141-686,31.08.2022,ADULT SOCIAL CARE,ALPHA HEALTH CARE LTD,02/08/2022,"2,763.80",6541-Nursing EMI,THIRD PARTY PAYMENTS,PRIVATE CONTRACTOR,REVENUE
Walsall Council,http://opendatacommunities.org/id/metropolitan-district-council/walsall ,WC141-687,31.08.2022,ADULT SOCIAL CARE,ALPHA HEALTH CARE LTD,02/08/2022,"3,132.12",6541-Nursing EMI,THIRD PARTY PAYMENTS,PRIVATE CONTRACTOR,REVENUE
Walsall Council,http://opendatacommunities.org/id/metropolitan-district-council/walsall ,WC141-688,31.08.2022,ADULT SOCIAL CARE,ALPHA HEALTH CARE LTD,02/08/2022,"7,105.00",6541-Residential,THIRD PARTY PAYMENTS,PRIVATE CONTRACTOR,REVENUE
Walsall Council,http://opendatacommunities.org/id/metropolitan-district-council/walsall ,WC141-689,31.08.2022,ADULT SOCIAL CARE,ALPHA HEALTH CARE LTD,02/08/2022,"3,374.96",6541-Residential EMI,THIRD PARTY PAYMENTS,PRIVATE CONTRACTOR,REVENUE
Walsall Council,http://opendatacommunities.org/id/metropolitan-district-council/walsall ,WC141-690,31.08.2022,ADULT SOCIAL CARE,ALPHA HEALTH CARE LTD,02/08/2022,"5,740.84",6541-Residential,THIRD PARTY PAYMENTS,PRIVATE CONTRACTOR,REVENUE
Walsall Council,http://opendatacommunities.org/id/metropolitan-district-council/walsall ,WC141-691,31.08.2022,ADULT SOCIAL CARE,ALPHA HEALTH CARE LTD,02/08/2022,"2,763.80",6541-Nursing EMI,THIRD PARTY PAYMENTS,PRIVATE CONTRACTOR,REVENUE
Walsall Council,http://opendatacommunities.org/id/metropolitan-district-council/walsall ,WC141-692,31.08.2022,ADULT SOCIAL CARE,ALPHA HEALTH CARE LTD,02/08/2022,"7,067.80",6541-Nursing EMI,THIRD PARTY PAYMENTS,PRIVATE CONTRACTOR,REVENUE
Walsall Council,http://opendatacommunities.org/id/metropolitan-district-council/walsall ,WC141-693,31.08.2022,ADULT SOCIAL CARE,ALPHA HEALTH CARE LTD,02/08/2022,"6,343.36",6541-Residential,THIRD PARTY PAYMENTS,PRIVATE CONTRACTOR,REVENUE
Walsall Council,http://opendatacommunities.org/id/metropolitan-district-council/walsall ,WC141-694,31.08.2022,ADULT SOCIAL CARE,ALPHA HEALTH CARE LTD,02/08/2022,"2,366.04",6541-Residential EMI,THIRD PARTY PAYMENTS,PRIVATE CONTRACTOR,REVENUE
Walsall Council,http://opendatacommunities.org/id/metropolitan-district-council/walsall ,WC141-695,31.08.2022,ADULT SOCIAL CARE,ALPHA HEALTH CARE LTD,02/08/2022,"3,105.16",6541-Nursing EMI,THIRD PARTY PAYMENTS,PRIVATE CONTRACTOR,REVENUE
Walsall Council,http://opendatacommunities.org/id/metropolitan-district-council/walsall ,WC141-696,31.08.2022,ADULT SOCIAL CARE,ALPHA HEALTH CARE LTD,02/08/2022,"3,085.88",6541-Nursing,THIRD PARTY PAYMENTS,PRIVATE CONTRACTOR,REVENUE
Walsall Council,http://opendatacommunities.org/id/metropolitan-district-council/walsall ,WC141-697,31.08.2022,ADULT SOCIAL CARE,ALPHA HEALTH CARE LTD,02/08/2022,"3,132.12",6541-Nursing EMI,THIRD PARTY PAYMENTS,PRIVATE CONTRACTOR,REVENUE
Walsall Council,http://opendatacommunities.org/id/metropolitan-district-council/walsall ,WC141-698,31.08.2022,ADULT SOCIAL CARE,ALPHA HEALTH CARE LTD,02/08/2022,"2,766.04",6541-Residential EMI,THIRD PARTY PAYMENTS,PRIVATE CONTRACTOR,REVENUE
Walsall Council,http://opendatacommunities.org/id/metropolitan-district-council/walsall ,WC141-699,31.08.2022,ADULT SOCIAL CARE,ALPHA HEALTH CARE LTD,02/08/2022,"3,958.52",6541-Residential,THIRD PARTY PAYMENTS,PRIVATE CONTRACTOR,REVENUE
Walsall Council,http://opendatacommunities.org/id/metropolitan-district-council/walsall ,WC141-700,31.08.2022,ADULT SOCIAL CARE,ALPHA HEALTH CARE LTD,02/08/2022,"3,836.28",6541-Nursing,THIRD PARTY PAYMENTS,PRIVATE CONTRACTOR,REVENUE
Walsall Council,http://opendatacommunities.org/id/metropolitan-district-council/walsall ,WC141-701,31.08.2022,ADULT SOCIAL CARE,ALPHA HEALTH CARE LTD,02/08/2022,"3,398.04",6541-Residential EMI,THIRD PARTY PAYMENTS,PRIVATE CONTRACTOR,REVENUE
Walsall Council,http://opendatacommunities.org/id/metropolitan-district-council/walsall ,WC141-702,31.08.2022,ADULT SOCIAL CARE,ALPHA HEALTH CARE LTD,02/08/2022,"3,090.44",6541-Nursing EMI,THIRD PARTY PAYMENTS,PRIVATE CONTRACTOR,REVENUE
Walsall Council,http://opendatacommunities.org/id/metropolitan-district-council/walsall ,WC141-703,31.08.2022,ADULT SOCIAL CARE,ALPHA HEALTH CARE LTD,02/08/2022,"8,955.00",6541-Residential,THIRD PARTY PAYMENTS,PRIVATE CONTRACTOR,REVENUE
Walsall Council,http://opendatacommunities.org/id/metropolitan-district-council/walsall ,WC141-704,31.08.2022,ADULT SOCIAL CARE,ALPHA HEALTH CARE LTD,02/08/2022,"3,374.96",6541-Residential EMI,THIRD PARTY PAYMENTS,PRIVATE CONTRACTOR,REVENUE
Walsall Council,http://opendatacommunities.org/id/metropolitan-district-council/walsall ,WC141-705,31.08.2022,ADULT SOCIAL CARE,ALPHA HEALTH CARE LTD,02/08/2022,"2,763.80",6541-Nursing EMI,THIRD PARTY PAYMENTS,PRIVATE CONTRACTOR,REVENUE
Walsall Council,http://opendatacommunities.org/id/metropolitan-district-council/walsall ,WC141-706,31.08.2022,ADULT SOCIAL CARE,ALPHA HEALTH CARE LTD,02/08/2022,"2,998.00",6541-Nursing,THIRD PARTY PAYMENTS,PRIVATE CONTRACTOR,REVENUE
Walsall Council,http://opendatacommunities.org/id/metropolitan-district-council/walsall ,WC141-707,31.08.2022,ADULT SOCIAL CARE,ALPHA HEALTH CARE LTD,02/08/2022,"3,667.80",6541-Nursing EMI,THIRD PARTY PAYMENTS,PRIVATE CONTRACTOR,REVENUE
Walsall Council,http://opendatacommunities.org/id/metropolitan-district-council/walsall ,WC141-708,31.08.2022,ADULT SOCIAL CARE,ALPHA HEALTH CARE LTD,02/08/2022,"2,630.96",6541-Residential,THIRD PARTY PAYMENTS,PRIVATE CONTRACTOR,REVENUE
Walsall Council,http://opendatacommunities.org/id/metropolitan-district-council/walsall ,WC141-709,31.08.2022,ADULT SOCIAL CARE,ALPHA HEALTH CARE LTD,02/08/2022,"2,520.00",6541-Residential & Nursing Care Placements,THIRD PARTY PAYMENTS,PRIVATE CONTRACTOR,REVENUE
Walsall Council,http://opendatacommunities.org/id/metropolitan-district-council/walsall ,WC141-710,31.08.2022,ADULT SOCIAL CARE,ALPHA HEALTH CARE LTD,02/08/2022,"2,985.71",6541-Professional Services-Priv Contractor & Other Agencies,THIRD PARTY PAYMENTS,PRIVATE CONTRACTOR,REVENUE
Walsall Council,http://opendatacommunities.org/id/metropolitan-district-council/walsall ,WC141-711,31.08.2022,ADULT SOCIAL CARE,ALPHA HEALTH CARE LTD,26/08/2022,"2,889.52",6541-Residential EMI,THIRD PARTY PAYMENTS,PRIVATE CONTRACTOR,REVENUE
Walsall Council,http://opendatacommunities.org/id/metropolitan-district-council/walsall ,WC141-712,31.08.2022,ADULT SOCIAL CARE,ALPHA HEALTH CARE LTD,26/08/2022,"2,763.80",6541-Nursing EMI,THIRD PARTY PAYMENTS,PRIVATE CONTRACTOR,REVENUE
Walsall Council,http://opendatacommunities.org/id/metropolitan-district-council/walsall ,WC141-713,31.08.2022,ADULT SOCIAL CARE,ALPHA HEALTH CARE LTD,26/08/2022,"2,763.80",6541-Nursing EMI,THIRD PARTY PAYMENTS,PRIVATE CONTRACTOR,REVENUE
Walsall Council,http://opendatacommunities.org/id/metropolitan-district-council/walsall ,WC141-714,31.08.2022,ADULT SOCIAL CARE,ALPHA HEALTH CARE LTD,26/08/2022,"7,067.80",6541-Nursing EMI,THIRD PARTY PAYMENTS,PRIVATE CONTRACTOR,REVENUE
Walsall Council,http://opendatacommunities.org/id/metropolitan-district-council/walsall ,WC141-715,31.08.2022,ADULT SOCIAL CARE,ALPHA HEALTH CARE LTD,26/08/2022,"2,366.04",6541-Residential EMI,THIRD PARTY PAYMENTS,PRIVATE CONTRACTOR,REVENUE
Walsall Council,http://opendatacommunities.org/id/metropolitan-district-council/walsall ,WC141-716,31.08.2022,ADULT SOCIAL CARE,ALPHA HEALTH CARE LTD,26/08/2022,"2,766.04",6541-Residential EMI,THIRD PARTY PAYMENTS,PRIVATE CONTRACTOR,REVENUE
Walsall Council,http://opendatacommunities.org/id/metropolitan-district-council/walsall ,WC141-717,31.08.2022,ADULT SOCIAL CARE,ALPHA HEALTH CARE LTD,26/08/2022,"3,980.00",6541-Residential,THIRD PARTY PAYMENTS,PRIVATE CONTRACTOR,REVENUE
Walsall Council,http://opendatacommunities.org/id/metropolitan-district-council/walsall ,WC141-718,31.08.2022,ADULT SOCIAL CARE,ALPHA HEALTH CARE LTD,26/08/2022,"6,343.36",6541-Residential,THIRD PARTY PAYMENTS,PRIVATE CONTRACTOR,REVENUE
Walsall Council,http://opendatacommunities.org/id/metropolitan-district-council/walsall ,WC141-719,31.08.2022,ADULT SOCIAL CARE,ALPHA HEALTH CARE LTD,26/08/2022,"3,958.52",6541-Residential,THIRD PARTY PAYMENTS,PRIVATE CONTRACTOR,REVENUE
Walsall Council,http://opendatacommunities.org/id/metropolitan-district-council/walsall ,WC141-720,31.08.2022,ADULT SOCIAL CARE,ALPHA HEALTH CARE LTD,26/08/2022,"3,836.28",6541-Nursing,THIRD PARTY PAYMENTS,PRIVATE CONTRACTOR,REVENUE
Walsall Council,http://opendatacommunities.org/id/metropolitan-district-council/walsall ,WC141-721,31.08.2022,ADULT SOCIAL CARE,ALPHA HEALTH CARE LTD,26/08/2022,"3,132.12",6541-Nursing EMI,THIRD PARTY PAYMENTS,PRIVATE CONTRACTOR,REVENUE
Walsall Council,http://opendatacommunities.org/id/metropolitan-district-council/walsall ,WC141-722,31.08.2022,ADULT SOCIAL CARE,ALPHA HEALTH CARE LTD,26/08/2022,"3,398.04",6541-Residential EMI,THIRD PARTY PAYMENTS,PRIVATE CONTRACTOR,REVENUE
Walsall Council,http://opendatacommunities.org/id/metropolitan-district-council/walsall ,WC141-723,31.08.2022,ADULT SOCIAL CARE,ALPHA HEALTH CARE LTD,26/08/2022,"3,090.44",6541-Nursing EMI,THIRD PARTY PAYMENTS,PRIVATE CONTRACTOR,REVENUE
Walsall Council,http://opendatacommunities.org/id/metropolitan-district-council/walsall ,WC141-724,31.08.2022,ADULT SOCIAL CARE,ALPHA HEALTH CARE LTD,26/08/2022,"3,374.96",6541-Residential EMI,THIRD PARTY PAYMENTS,PRIVATE CONTRACTOR,REVENUE
Walsall Council,http://opendatacommunities.org/id/metropolitan-district-council/walsall ,WC141-725,31.08.2022,ADULT SOCIAL CARE,ALPHA HEALTH CARE LTD,26/08/2022,"2,763.80",6541-Nursing EMI,THIRD PARTY PAYMENTS,PRIVATE CONTRACTOR,REVENUE
Walsall Council,http://opendatacommunities.org/id/metropolitan-district-council/walsall ,WC141-726,31.08.2022,ADULT SOCIAL CARE,ALPHA HEALTH CARE LTD,26/08/2022,"2,998.00",6541-Nursing,THIRD PARTY PAYMENTS,PRIVATE CONTRACTOR,REVENUE
Walsall Council,http://opendatacommunities.org/id/metropolitan-district-council/walsall ,WC141-727,31.08.2022,ADULT SOCIAL CARE,ALPHA HEALTH CARE LTD,26/08/2022,"3,667.80",6541-Nursing EMI,THIRD PARTY PAYMENTS,PRIVATE CONTRACTOR,REVENUE
Walsall Council,http://opendatacommunities.org/id/metropolitan-district-council/walsall ,WC141-728,31.08.2022,ADULT SOCIAL CARE,ALPHA HEALTH CARE LTD,26/08/2022,"2,630.96",6541-Residential,THIRD PARTY PAYMENTS,PRIVATE CONTRACTOR,REVENUE
Walsall Council,http://opendatacommunities.org/id/metropolitan-district-council/walsall ,WC141-729,31.08.2022,ADULT SOCIAL CARE,ALPHA HEALTH CARE LTD,26/08/2022,"7,600.00",6541-Professional Services-Priv Contractor & Other Agencies,THIRD PARTY PAYMENTS,PRIVATE CONTRACTOR,REVENUE
Walsall Council,http://opendatacommunities.org/id/metropolitan-district-council/walsall ,WC141-730,31.08.2022,ADULT SOCIAL CARE,ALPHA HEALTH CARE LTD,26/08/2022,"5,740.84",6541-Residential,THIRD PARTY PAYMENTS,PRIVATE CONTRACTOR,REVENUE
Walsall Council,http://opendatacommunities.org/id/metropolitan-district-council/walsall ,WC141-731,31.08.2022,ADULT SOCIAL CARE,ALPHA HEALTH CARE LTD,26/08/2022,"3,132.12",6541-Nursing EMI,THIRD PARTY PAYMENTS,PRIVATE CONTRACTOR,REVENUE
Walsall Council,http://opendatacommunities.org/id/metropolitan-district-council/walsall ,WC141-732,31.08.2022,ADULT SOCIAL CARE,ALPHA HEALTH CARE LTD,26/08/2022,"7,105.00",6541-Residential,THIRD PARTY PAYMENTS,PRIVATE CONTRACTOR,REVENUE
Walsall Council,http://opendatacommunities.org/id/metropolitan-district-council/walsall ,WC141-733,31.08.2022,ADULT SOCIAL CARE,ALPHA HEALTH CARE LTD,26/08/2022,"3,374.96",6541-Residential EMI,THIRD PARTY PAYMENTS,PRIVATE CONTRACTOR,REVENUE
Walsall Council,http://opendatacommunities.org/id/metropolitan-district-council/walsall ,WC141-734,31.08.2022,ADULT SOCIAL CARE,ALPHA HEALTH CARE LTD,26/08/2022,"3,105.16",6541-Nursing EMI,THIRD PARTY PAYMENTS,PRIVATE CONTRACTOR,REVENUE
Walsall Council,http://opendatacommunities.org/id/metropolitan-district-council/walsall ,WC141-735,31.08.2022,ADULT SOCIAL CARE,ALPHA HEALTH CARE LTD,26/08/2022,"3,085.88",6541-Nursing,THIRD PARTY PAYMENTS,PRIVATE CONTRACTOR,REVENUE
Walsall Council,http://opendatacommunities.org/id/metropolitan-district-council/walsall ,WC141-736,31.08.2022,CHILDRENS,ALPHABIOLABS,04/08/2022,449.00,6223-Medical Specialist Reports,DIRECT EMPLOYEES,EMPLOYEE ALLOWANCES & EXPENSES,REVENUE
Walsall Council,http://opendatacommunities.org/id/metropolitan-district-council/walsall ,WC141-737,31.08.2022,CHILDRENS,ALPHABIOLABS,23/08/2022,419.00,6220-School Only Payments - Catering,THIRD PARTY PAYMENTS,INDEPENDENT UNIT WITHIN COUNCIL,REVENUE
Walsall Council,http://opendatacommunities.org/id/metropolitan-district-council/walsall ,WC141-738,31.08.2022,CHILDRENS,AMANS TRAVEL LTD,16/08/2022,"2,660.00",6241-Hire of Vehicle with Driver,TRANSPORT,DIRECT TRANSPORT COSTS,REVENUE
Walsall Council,http://opendatacommunities.org/id/metropolitan-district-council/walsall ,WC141-739,31.08.2022,CHILDRENS,AMANS TRAVEL LTD,16/08/2022,"2,660.00",6241-Hire of Vehicle with Driver,TRANSPORT,DIRECT TRANSPORT COSTS,REVENUE
Walsall Council,http://opendatacommunities.org/id/metropolitan-district-council/walsall ,WC141-740,31.08.2022,CHILDRENS,AMANS TRAVEL LTD,16/08/2022,"2,660.00",6241-Hire of Vehicle with Driver,TRANSPORT,DIRECT TRANSPORT COSTS,REVENUE
Walsall Council,http://opendatacommunities.org/id/metropolitan-district-council/walsall ,WC141-741,31.08.2022,ADULT SOCIAL CARE,REDACTED,03/08/2022,"2,899.80",6541-Direct Payment,THIRD PARTY PAYMENTS,PRIVATE CONTRACTOR,REVENUE
Walsall Council,http://opendatacommunities.org/id/metropolitan-district-council/walsall ,WC141-742,31.08.2022,ADULT SOCIAL CARE,REDACTED,03/08/2022,"1,650.88",6541-Direct Payment,THIRD PARTY PAYMENTS,PRIVATE CONTRACTOR,REVENUE
Walsall Council,http://opendatacommunities.org/id/metropolitan-district-council/walsall ,WC141-743,31.08.2022,"ECONOMY, ENVIRONMENT & COMMUNITIES",AMEY LG LIMITED,01/08/2022,"15,684.33",6411-Materials,SUPPLIES & SERVICES,EQUIPMENT FURNITURE & MATERIALS,REVENUE
Walsall Council,http://opendatacommunities.org/id/metropolitan-district-council/walsall ,WC141-744,31.08.2022,"ECONOMY, ENVIRONMENT & COMMUNITIES",AMEY LG LIMITED,09/08/2022,"2,892.22",6414-Professional Fees & Services,SUPPLIES & SERVICES,SERVICES,REVENUE
Walsall Council,http://opendatacommunities.org/id/metropolitan-district-council/walsall ,WC141-745,31.08.2022,"ECONOMY, ENVIRONMENT & COMMUNITIES",AMEY LG LIMITED,09/08/2022,"22,221.29",6411-Materials,SUPPLIES & SERVICES,EQUIPMENT FURNITURE & MATERIALS,REVENUE
Walsall Council,http://opendatacommunities.org/id/metropolitan-district-council/walsall ,WC141-746,31.08.2022,ECONOMY & ENVIRONMENT CAPITAL,AMEY OW LTD,11/08/2022,"1,687.23",7200-Project Fees,CAPITAL,"NEW CONSTRUCTION,CONVERSION & RENOVATION",CAPITAL
Walsall Council,http://opendatacommunities.org/id/metropolitan-district-council/walsall ,WC141-747,31.08.2022,ECONOMY & ENVIRONMENT CAPITAL,AMEY OW LTD,05/08/2022,"-1,687.23",7200-Project Fees,CAPITAL,"NEW CONSTRUCTION,CONVERSION & RENOVATION",CAPITAL
Walsall Council,http://opendatacommunities.org/id/metropolitan-district-council/walsall ,WC141-748,31.08.2022,ECONOMY & ENVIRONMENT CAPITAL,AMEY OW LTD,05/08/2022,"1,687.23",7200-Project Fees,CAPITAL,"NEW CONSTRUCTION,CONVERSION & RENOVATION",CAPITAL
Walsall Council,http://opendatacommunities.org/id/metropolitan-district-council/walsall ,WC141-749,31.08.2022,ECONOMY & ENVIRONMENT CAPITAL,AMEY OW LTD,09/08/2022,"-8,633.46",7200-Project Fees,CAPITAL,"NEW CONSTRUCTION,CONVERSION & RENOVATION",CAPITAL
Walsall Council,http://opendatacommunities.org/id/metropolitan-district-council/walsall ,WC141-750,31.08.2022,ECONOMY & ENVIRONMENT CAPITAL,AMEY OW LTD,09/08/2022,"8,633.46",7200-Project Fees,CAPITAL,"NEW CONSTRUCTION,CONVERSION & RENOVATION",CAPITAL
Walsall Council,http://opendatacommunities.org/id/metropolitan-district-council/walsall ,WC141-751,31.08.2022,"ECONOMY, ENVIRONMENT & COMMUNITIES",AMEY OW LTD,23/08/2022,"3,975.65",6313-Professional Services-Priv Contractor & Other Agencies,THIRD PARTY PAYMENTS,PRIVATE CONTRACTOR,REVENUE
Walsall Council,http://opendatacommunities.org/id/metropolitan-district-council/walsall ,WC141-752,31.08.2022,ADULT SOCIAL CARE,AMG NURSING CARE SERVICES,25/08/2022,"15,402.28",6541-Community Supported Living/Supported Accommodation,THIRD PARTY PAYMENTS,PRIVATE CONTRACTOR,REVENUE
Walsall Council,http://opendatacommunities.org/id/metropolitan-district-council/walsall ,WC141-753,31.08.2022,ADULT SOCIAL CARE,AMG NURSING CARE SERVICES,25/08/2022,"3,923.10",6541-Community Supported Living/Supported Accommodation,THIRD PARTY PAYMENTS,PRIVATE CONTRACTOR,REVENUE
Walsall Council,http://opendatacommunities.org/id/metropolitan-district-council/walsall ,WC141-754,31.08.2022,CHILDRENS,AMG NURSING CARE SERVICES,01/08/2022,406.60,6220-Professional Fees & Services,SUPPLIES & SERVICES,SERVICES,REVENUE
Walsall Council,http://opendatacommunities.org/id/metropolitan-district-council/walsall ,WC141-755,31.08.2022,CHILDRENS,AMG NURSING CARE SERVICES,01/08/2022,"1,799.07",6220-Professional Fees & Services,SUPPLIES & SERVICES,SERVICES,REVENUE
Walsall Council,http://opendatacommunities.org/id/metropolitan-district-council/walsall ,WC141-756,31.08.2022,CHILDRENS,AMG NURSING CARE SERVICES,05/08/2022,403.16,6220-Professional Fees & Services,SUPPLIES & SERVICES,SERVICES,REVENUE
Walsall Council,http://opendatacommunities.org/id/metropolitan-district-council/walsall ,WC141-757,31.08.2022,CHILDRENS,AMG NURSING CARE SERVICES,05/08/2022,919.20,6220-Professional Fees & Services,SUPPLIES & SERVICES,SERVICES,REVENUE
Walsall Council,http://opendatacommunities.org/id/metropolitan-district-council/walsall ,WC141-758,31.08.2022,CHILDRENS,AMG NURSING CARE SERVICES,05/08/2022,406.60,6220-Professional Fees & Services,SUPPLIES & SERVICES,SERVICES,REVENUE
Walsall Council,http://opendatacommunities.org/id/metropolitan-district-council/walsall ,WC141-759,31.08.2022,CHILDRENS,AMG NURSING CARE SERVICES,05/08/2022,"1,210.32",6220-Professional Fees & Services,SUPPLIES & SERVICES,SERVICES,REVENUE
Walsall Council,http://opendatacommunities.org/id/metropolitan-district-council/walsall ,WC141-760,31.08.2022,CHILDRENS,AMG NURSING CARE SERVICES,16/08/2022,406.60,6220-Professional Fees & Services,SUPPLIES & SERVICES,SERVICES,REVENUE
Walsall Council,http://opendatacommunities.org/id/metropolitan-district-council/walsall ,WC141-761,31.08.2022,CHILDRENS,AMG NURSING CARE SERVICES,16/08/2022,"1,799.07",6220-Professional Fees & Services,SUPPLIES & SERVICES,SERVICES,REVENUE
Walsall Council,http://opendatacommunities.org/id/metropolitan-district-council/walsall ,WC141-762,31.08.2022,CHILDRENS,AMG NURSING CARE SERVICES,22/08/2022,325.28,6220-Professional Fees & Services,SUPPLIES & SERVICES,SERVICES,REVENUE
Walsall Council,http://opendatacommunities.org/id/metropolitan-district-council/walsall ,WC141-763,31.08.2022,CHILDRENS,AMG NURSING CARE SERVICES,22/08/2022,"1,550.12",6220-Professional Fees & Services,SUPPLIES & SERVICES,SERVICES,REVENUE
Walsall Council,http://opendatacommunities.org/id/metropolitan-district-council/walsall ,WC141-764,31.08.2022,CHILDRENS,AMG NURSING CARE SERVICES,30/08/2022,406.60,6220-Professional Fees & Services,SUPPLIES & SERVICES,SERVICES,REVENUE
Walsall Council,http://opendatacommunities.org/id/metropolitan-district-council/walsall ,WC141-765,31.08.2022,CHILDRENS,AMG NURSING CARE SERVICES,30/08/2022,995.80,6220-Professional Fees & Services,SUPPLIES & SERVICES,SERVICES,REVENUE
Walsall Council,http://opendatacommunities.org/id/metropolitan-district-council/walsall ,WC141-766,31.08.2022,"ECONOMY, ENVIRONMENT & COMMUNITIES",AMX SOLUTIONS LIMITED,02/08/2022,"4,079.56",6411-Materials,SUPPLIES & SERVICES,EQUIPMENT FURNITURE & MATERIALS,REVENUE
Walsall Council,http://opendatacommunities.org/id/metropolitan-district-council/walsall ,WC141-767,31.08.2022,CHILDRENS,REDACTED,24/08/2022,584.00,6223-Foster Carers Maintenance Allowance,TRANSFER PAYMENTS,CHILDREN SOCIAL SERVICES CLIENT,REVENUE
Walsall Council,http://opendatacommunities.org/id/metropolitan-district-council/walsall ,WC141-768,31.08.2022,CHILDRENS,REDACTED,24/08/2022,340.00,6223-Internal Foster Carers-Carer Fees,TRANSFER PAYMENTS,CHILDREN SOCIAL SERVICES CLIENT,REVENUE
Walsall Council,http://opendatacommunities.org/id/metropolitan-district-council/walsall ,WC141-769,31.08.2022,ADULT SOCIAL CARE,ANCHOR CARE HOMES LTD,02/08/2022,"2,366.04",6541-Residential EMI,THIRD PARTY PAYMENTS,PRIVATE CONTRACTOR,REVENUE
Walsall Council,http://opendatacommunities.org/id/metropolitan-district-council/walsall ,WC141-770,31.08.2022,ADULT SOCIAL CARE,ANCHOR CARE HOMES LTD,26/08/2022,"2,366.04",6541-Residential EMI,THIRD PARTY PAYMENTS,PRIVATE CONTRACTOR,REVENUE
Walsall Council,http://opendatacommunities.org/id/metropolitan-district-council/walsall ,WC141-771,31.08.2022,ADULT SOCIAL CARE,ANCHOR CAREHOMES LTD - HARDEN HALL,02/08/2022,"2,366.04",6541-Residential EMI,THIRD PARTY PAYMENTS,PRIVATE CONTRACTOR,REVENUE
Walsall Council,http://opendatacommunities.org/id/metropolitan-district-council/walsall ,WC141-772,31.08.2022,ADULT SOCIAL CARE,ANCHOR CAREHOMES LTD - HARDEN HALL,02/08/2022,"2,366.04",6541-Residential EMI,THIRD PARTY PAYMENTS,PRIVATE CONTRACTOR,REVENUE
Walsall Council,http://opendatacommunities.org/id/metropolitan-district-council/walsall ,WC141-773,31.08.2022,ADULT SOCIAL CARE,ANCHOR CAREHOMES LTD - HARDEN HALL,02/08/2022,"2,366.04",6541-Residential EMI,THIRD PARTY PAYMENTS,PRIVATE CONTRACTOR,REVENUE
Walsall Council,http://opendatacommunities.org/id/metropolitan-district-council/walsall ,WC141-774,31.08.2022,ADULT SOCIAL CARE,ANCHOR CAREHOMES LTD - HARDEN HALL,02/08/2022,"2,095.40",6541-Residential,THIRD PARTY PAYMENTS,PRIVATE CONTRACTOR,REVENUE
Walsall Council,http://opendatacommunities.org/id/metropolitan-district-council/walsall ,WC141-775,31.08.2022,ADULT SOCIAL CARE,ANCHOR CAREHOMES LTD - HARDEN HALL,02/08/2022,"2,366.04",6541-Residential EMI,THIRD PARTY PAYMENTS,PRIVATE CONTRACTOR,REVENUE
Walsall Council,http://opendatacommunities.org/id/metropolitan-district-council/walsall ,WC141-776,31.08.2022,ADULT SOCIAL CARE,ANCHOR CAREHOMES LTD - HARDEN HALL,02/08/2022,"2,366.04",6541-Residential EMI,THIRD PARTY PAYMENTS,PRIVATE CONTRACTOR,REVENUE
Walsall Council,http://opendatacommunities.org/id/metropolitan-district-council/walsall ,WC141-777,31.08.2022,ADULT SOCIAL CARE,ANCHOR CAREHOMES LTD - HARDEN HALL,02/08/2022,"2,366.04",6541-Residential EMI,THIRD PARTY PAYMENTS,PRIVATE CONTRACTOR,REVENUE
Walsall Council,http://opendatacommunities.org/id/metropolitan-district-council/walsall ,WC141-778,31.08.2022,ADULT SOCIAL CARE,ANCHOR CAREHOMES LTD - HARDEN HALL,02/08/2022,"2,417.00",6541-Residential EMI,THIRD PARTY PAYMENTS,PRIVATE CONTRACTOR,REVENUE
Walsall Council,http://opendatacommunities.org/id/metropolitan-district-council/walsall ,WC141-779,31.08.2022,ADULT SOCIAL CARE,ANCHOR CAREHOMES LTD - HARDEN HALL,02/08/2022,"2,366.04",6541-Residential EMI,THIRD PARTY PAYMENTS,PRIVATE CONTRACTOR,REVENUE
Walsall Council,http://opendatacommunities.org/id/metropolitan-district-council/walsall ,WC141-780,31.08.2022,ADULT SOCIAL CARE,ANCHOR CAREHOMES LTD - HARDEN HALL,02/08/2022,"2,366.04",6541-Residential EMI,THIRD PARTY PAYMENTS,PRIVATE CONTRACTOR,REVENUE
Walsall Council,http://opendatacommunities.org/id/metropolitan-district-council/walsall ,WC141-781,31.08.2022,ADULT SOCIAL CARE,ANCHOR CAREHOMES LTD - HARDEN HALL,02/08/2022,"2,726.04",6541-Residential EMI,THIRD PARTY PAYMENTS,PRIVATE CONTRACTOR,REVENUE
Walsall Council,http://opendatacommunities.org/id/metropolitan-district-council/walsall ,WC141-782,31.08.2022,ADULT SOCIAL CARE,ANCHOR CAREHOMES LTD - HARDEN HALL,02/08/2022,"2,726.04",6541-Residential EMI,THIRD PARTY PAYMENTS,PRIVATE CONTRACTOR,REVENUE
Walsall Council,http://opendatacommunities.org/id/metropolitan-district-council/walsall ,WC141-783,31.08.2022,ADULT SOCIAL CARE,ANCHOR CAREHOMES LTD - HARDEN HALL,02/08/2022,"3,222.96",6541-Residential EMI,THIRD PARTY PAYMENTS,PRIVATE CONTRACTOR,REVENUE
Walsall Council,http://opendatacommunities.org/id/metropolitan-district-council/walsall ,WC141-784,31.08.2022,ADULT SOCIAL CARE,ANCHOR CAREHOMES LTD - HARDEN HALL,02/08/2022,"2,726.04",6541-Residential EMI,THIRD PARTY PAYMENTS,PRIVATE CONTRACTOR,REVENUE
Walsall Council,http://opendatacommunities.org/id/metropolitan-district-council/walsall ,WC141-785,31.08.2022,ADULT SOCIAL CARE,ANCHOR CAREHOMES LTD - HARDEN HALL,02/08/2022,"2,566.04",6541-Residential EMI,THIRD PARTY PAYMENTS,PRIVATE CONTRACTOR,REVENUE
Walsall Council,http://opendatacommunities.org/id/metropolitan-district-council/walsall ,WC141-786,31.08.2022,ADULT SOCIAL CARE,ANCHOR CAREHOMES LTD - HARDEN HALL,02/08/2022,"2,566.04",6541-Residential EMI,THIRD PARTY PAYMENTS,PRIVATE CONTRACTOR,REVENUE
Walsall Council,http://opendatacommunities.org/id/metropolitan-district-council/walsall ,WC141-787,31.08.2022,ADULT SOCIAL CARE,ANCHOR CAREHOMES LTD - HARDEN HALL,02/08/2022,"1,265.66",6541-Residential EMI,THIRD PARTY PAYMENTS,PRIVATE CONTRACTOR,REVENUE
Walsall Council,http://opendatacommunities.org/id/metropolitan-district-council/walsall ,WC141-788,31.08.2022,ADULT SOCIAL CARE,ANCHOR CAREHOMES LTD - HARDEN HALL,02/08/2022,"1,571.55",6541-Residential,THIRD PARTY PAYMENTS,PRIVATE CONTRACTOR,REVENUE
Walsall Council,http://opendatacommunities.org/id/metropolitan-district-council/walsall ,WC141-789,31.08.2022,ADULT SOCIAL CARE,ANCHOR CAREHOMES LTD - HARDEN HALL,02/08/2022,"2,366.04",6541-Residential EMI,THIRD PARTY PAYMENTS,PRIVATE CONTRACTOR,REVENUE
Walsall Council,http://opendatacommunities.org/id/metropolitan-district-council/walsall ,WC141-790,31.08.2022,ADULT SOCIAL CARE,ANCHOR CAREHOMES LTD - HARDEN HALL,02/08/2022,"2,095.40",6541-Residential,THIRD PARTY PAYMENTS,PRIVATE CONTRACTOR,REVENUE
Walsall Council,http://opendatacommunities.org/id/metropolitan-district-council/walsall ,WC141-791,31.08.2022,ADULT SOCIAL CARE,ANCHOR CAREHOMES LTD - HARDEN HALL,02/08/2022,"2,366.04",6541-Residential EMI,THIRD PARTY PAYMENTS,PRIVATE CONTRACTOR,REVENUE
Walsall Council,http://opendatacommunities.org/id/metropolitan-district-council/walsall ,WC141-792,31.08.2022,ADULT SOCIAL CARE,ANCHOR CAREHOMES LTD - HARDEN HALL,02/08/2022,"2,726.04",6541-Residential EMI,THIRD PARTY PAYMENTS,PRIVATE CONTRACTOR,REVENUE
Walsall Council,http://opendatacommunities.org/id/metropolitan-district-council/walsall ,WC141-793,31.08.2022,ADULT SOCIAL CARE,ANCHOR CAREHOMES LTD - HARDEN HALL,02/08/2022,"2,726.04",6541-Residential EMI,THIRD PARTY PAYMENTS,PRIVATE CONTRACTOR,REVENUE
Walsall Council,http://opendatacommunities.org/id/metropolitan-district-council/walsall ,WC141-794,31.08.2022,ADULT SOCIAL CARE,ANCHOR CAREHOMES LTD - HARDEN HALL,02/08/2022,"2,366.04",6541-Residential EMI,THIRD PARTY PAYMENTS,PRIVATE CONTRACTOR,REVENUE
Walsall Council,http://opendatacommunities.org/id/metropolitan-district-council/walsall ,WC141-795,31.08.2022,ADULT SOCIAL CARE,ANCHOR CAREHOMES LTD - HARDEN HALL,02/08/2022,"2,646.04",6541-Residential EMI,THIRD PARTY PAYMENTS,PRIVATE CONTRACTOR,REVENUE
Walsall Council,http://opendatacommunities.org/id/metropolitan-district-council/walsall ,WC141-796,31.08.2022,ADULT SOCIAL CARE,ANCHOR CAREHOMES LTD - HARDEN HALL,02/08/2022,"2,726.04",6541-Residential EMI,THIRD PARTY PAYMENTS,PRIVATE CONTRACTOR,REVENUE
Walsall Council,http://opendatacommunities.org/id/metropolitan-district-council/walsall ,WC141-797,31.08.2022,ADULT SOCIAL CARE,ANCHOR CAREHOMES LTD - HARDEN HALL,26/08/2022,"2,366.04",6541-Residential EMI,THIRD PARTY PAYMENTS,PRIVATE CONTRACTOR,REVENUE
Walsall Council,http://opendatacommunities.org/id/metropolitan-district-council/walsall ,WC141-798,31.08.2022,ADULT SOCIAL CARE,ANCHOR CAREHOMES LTD - HARDEN HALL,26/08/2022,"2,366.04",6541-Residential EMI,THIRD PARTY PAYMENTS,PRIVATE CONTRACTOR,REVENUE
Walsall Council,http://opendatacommunities.org/id/metropolitan-district-council/walsall ,WC141-799,31.08.2022,ADULT SOCIAL CARE,ANCHOR CAREHOMES LTD - HARDEN HALL,26/08/2022,"2,366.04",6541-Residential EMI,THIRD PARTY PAYMENTS,PRIVATE CONTRACTOR,REVENUE
Walsall Council,http://opendatacommunities.org/id/metropolitan-district-council/walsall ,WC141-800,31.08.2022,ADULT SOCIAL CARE,ANCHOR CAREHOMES LTD - HARDEN HALL,26/08/2022,"2,366.04",6541-Residential EMI,THIRD PARTY PAYMENTS,PRIVATE CONTRACTOR,REVENUE
Walsall Council,http://opendatacommunities.org/id/metropolitan-district-council/walsall ,WC141-801,31.08.2022,ADULT SOCIAL CARE,ANCHOR CAREHOMES LTD - HARDEN HALL,26/08/2022,"2,417.00",6541-Residential EMI,THIRD PARTY PAYMENTS,PRIVATE CONTRACTOR,REVENUE
Walsall Council,http://opendatacommunities.org/id/metropolitan-district-council/walsall ,WC141-802,31.08.2022,ADULT SOCIAL CARE,ANCHOR CAREHOMES LTD - HARDEN HALL,26/08/2022,"2,566.04",6541-Residential EMI,THIRD PARTY PAYMENTS,PRIVATE CONTRACTOR,REVENUE
Walsall Council,http://opendatacommunities.org/id/metropolitan-district-council/walsall ,WC141-803,31.08.2022,ADULT SOCIAL CARE,ANCHOR CAREHOMES LTD - HARDEN HALL,26/08/2022,"2,095.40",6541-Residential,THIRD PARTY PAYMENTS,PRIVATE CONTRACTOR,REVENUE
Walsall Council,http://opendatacommunities.org/id/metropolitan-district-council/walsall ,WC141-804,31.08.2022,ADULT SOCIAL CARE,ANCHOR CAREHOMES LTD - HARDEN HALL,26/08/2022,"2,095.40",6541-Residential,THIRD PARTY PAYMENTS,PRIVATE CONTRACTOR,REVENUE
Walsall Council,http://opendatacommunities.org/id/metropolitan-district-council/walsall ,WC141-805,31.08.2022,ADULT SOCIAL CARE,ANCHOR CAREHOMES LTD - HARDEN HALL,26/08/2022,"2,366.04",6541-Residential EMI,THIRD PARTY PAYMENTS,PRIVATE CONTRACTOR,REVENUE
Walsall Council,http://opendatacommunities.org/id/metropolitan-district-council/walsall ,WC141-806,31.08.2022,ADULT SOCIAL CARE,ANCHOR CAREHOMES LTD - HARDEN HALL,26/08/2022,"2,566.04",6541-Residential EMI,THIRD PARTY PAYMENTS,PRIVATE CONTRACTOR,REVENUE
Walsall Council,http://opendatacommunities.org/id/metropolitan-district-council/walsall ,WC141-807,31.08.2022,ADULT SOCIAL CARE,ANCHOR CAREHOMES LTD - HARDEN HALL,26/08/2022,"2,726.04",6541-Residential EMI,THIRD PARTY PAYMENTS,PRIVATE CONTRACTOR,REVENUE
Walsall Council,http://opendatacommunities.org/id/metropolitan-district-council/walsall ,WC141-808,31.08.2022,ADULT SOCIAL CARE,ANCHOR CAREHOMES LTD - HARDEN HALL,26/08/2022,"2,366.04",6541-Residential EMI,THIRD PARTY PAYMENTS,PRIVATE CONTRACTOR,REVENUE
Walsall Council,http://opendatacommunities.org/id/metropolitan-district-council/walsall ,WC141-809,31.08.2022,ADULT SOCIAL CARE,ANCHOR CAREHOMES LTD - HARDEN HALL,26/08/2022,"2,366.04",6541-Residential EMI,THIRD PARTY PAYMENTS,PRIVATE CONTRACTOR,REVENUE
Walsall Council,http://opendatacommunities.org/id/metropolitan-district-council/walsall ,WC141-810,31.08.2022,ADULT SOCIAL CARE,ANCHOR CAREHOMES LTD - HARDEN HALL,26/08/2022,"2,366.04",6541-Residential EMI,THIRD PARTY PAYMENTS,PRIVATE CONTRACTOR,REVENUE
